Workbook

Sheet 資料勿動 (hidden)
A1: BillToCode | B1: BillToShortName | C1: 第一組 | D1: 第二組 | E1: 部門名稱 | F1: 區 | G1: 區1 | H1: BUYING_GROUP | I1: BUYING_GROUP-1 | J1: SalesChannelName | K1: SalesAR | L1: ARSalesChannel | M1: =SUM(K:K) -> 1709601495 | N1: 使用狀態 | O1: Promotion_total | P1: Promotion_bill | Q1: Promotion_buy | R1: Pricing Group
A2: TW002512001B | B2: ONETIMECUSTOMER | G2: ETC | H2: ETC | I2: ETC_TT | J2: TW002512001B | K2: =VLOOKUP(A2,[3]工作表5!$A$2:$D$529,4,0) -> 39242 | L2: ETC | M2: 1709601494 | N2: A | O2: =IF(N2="I","無往來",IF(SUM(P2:Q2)>0,"OK","沒有promotion")) ->  | P2: =COUNTIF([4]BALANCE!$A$1:$A$65536,[4]notouch!$A2) ->  | Q2: =COUNTIF([4]BALANCE!$A$1:$A$65536,[4]notouch!$H2) ->  | R2: =VLOOKUP(A2,'[5]Bill+Ship to Code (Active)_08'!$B$1:$N$3286,13,0) -> ETC_TT
A3: TW006291001B | B3: ONETIMECUSTOMER | G3: ETC | H3: ETC | I3: ETC_TT | J3: TW006291001B | M3: =M1-M2 -> 1 | N3: A | O3: =IF(N3="I","無往來",IF(SUM(P3:Q3)>0,"OK","沒有promotion")) ->  | P3: =COUNTIF([4]BALANCE!$A$1:$A$65536,[4]notouch!$A3) ->  | Q3: =COUNTIF([4]BALANCE!$A$1:$A$65536,[4]notouch!$H3) ->  | R3: =VLOOKUP(A3,'[5]Bill+Ship to Code (Active)_08'!$B$1:$N$3286,13,0) -> ETC_TT
A4: TW002605001B | B4: =VLOOKUP(A4,'[2]Bill+Ship to Code (Active) 12'!$B$1:$D$3073,3,0) -> ONE TIME SERVICE FOR TYPE 2 | G4: ETC | H4: ETC | I4: ETC_TT | J4: TW002605001B | K4: =VLOOKUP(A4,[3]工作表5!$A$2:$D$529,4,0) -> 7073290 | L4: SVC | N4: A | O4: 沒有promotion | R4: =VLOOKUP(A4,'[5]Bill+Ship to Code (Active)_08'!$B$1:$N$3286,13,0) -> ETC_TT
A5: TW003659001B | B5: =VLOOKUP(A5,'[2]Bill+Ship to Code (Active) 12'!$B$1:$D$3073,3,0) -> ONE TIME SERVICE E-INVOICE FOR TYPE2 | G5: ETC | H5: ETC | I5: ETC_TT | J5: TW003659001B | K5: =VLOOKUP(A5,[3]工作表5!$A$2:$D$529,4,0) -> 627340 | L5: SVC | N5: A | O5: 沒有promotion | R5: =VLOOKUP(A5,'[5]Bill+Ship to Code (Active)_08'!$B$1:$N$3286,13,0) -> ETC_TT
A6: TW005429001B | B6: =VLOOKUP(A6,'[2]Bill+Ship to Code (Active) 12'!$B$1:$D$3073,3,0) -> One time_SVC | G6: SVC | H6: SVC | I6: SVC | J6: TW005429001B | K6: =VLOOKUP(A6,[3]工作表5!$A$2:$D$529,4,0) -> 3409667 | L6: SVC | N6: A | O6: 沒有promotion | R6: =VLOOKUP(A6,'[5]Bill+Ship to Code (Active)_08'!$B$1:$N$3286,13,0) -> ETC_TT
A7: TW005433001B | G7: ETC | H7: ETC | I7: ETC_TT | J7: TW005433001B | K7: =VLOOKUP(A7,[3]工作表5!$A$2:$D$529,4,0) -> 4533086 | L7: ETC | N7: A | O7: 沒有promotion | R7: =VLOOKUP(A7,'[5]Bill+Ship to Code (Active)_08'!$B$1:$N$3286,13,0) -> ETC_TT
A8: TW004851001B | B8: 億電通國際 | G8: SVC | H8: SVC | I8: SVC | J8: TW004851001B | K8: =VLOOKUP(A8,[3]工作表5!$A$2:$D$529,4,0) -> 940126 | L8: SVC | N8: A | O8: 沒有promotion | R8: =VLOOKUP(A8,'[5]Bill+Ship to Code (Active)_08'!$B$1:$N$3286,13,0) -> ETC_TT
A9: TW007120001B | B9: 通達智能 | G9: SVC | H9: SVC | I9: SVC | J9: TW007120001B | L9: SVC | N9: A | O9: 沒有promotion | R9: =VLOOKUP(A9,'[5]Bill+Ship to Code (Active)_08'!$B$1:$N$3286,13,0) -> ETC_TT
A10: CN000116066B | G10: ETC | H10: ETC | I10: ETC_TT | J10: CN000116066B | L10: ETC | N10: A | P10: =COUNTIF([4]BALANCE!$A$1:$A$65536,[4]notouch!$A10) ->  | Q10: =COUNTIF([4]BALANCE!$A$1:$A$65536,[4]notouch!$H10) ->  | R10: =VLOOKUP(A10,'[5]Bill+Ship to Code (Active)_08'!$B$1:$N$3286,13,0) -> 
A11: KR000001066B | B11: LGEHQ | G11: ETC | H11: ETC | I11: ETC_TT | J11: KR000001066B | K11: =VLOOKUP(A11,[3]工作表5!$A$2:$D$529,4,0) -> 1525631 | L11: ETC | N11: A | O11: =IF(N11="I","無往來",IF(SUM(P11:Q11)>0,"OK","沒有promotion")) ->  | P11: =COUNTIF([4]BALANCE!$A$1:$A$65536,[4]notouch!$A11) ->  | Q11: =COUNTIF([4]BALANCE!$A$1:$A$65536,[4]notouch!$H11) ->  | R11: =VLOOKUP(A11,'[5]Bill+Ship to Code (Active)_08'!$B$1:$N$3286,13,0) -> ETC_TT
A12: PH000001009B | B12: LGEPH | G12: ETC | H12: ETC | I12: ETC_TT | J12: PH000001009B | N12: A | P12: =COUNTIF([4]BALANCE!$A$1:$A$65536,[4]notouch!$A12) ->  | Q12: =COUNTIF([4]BALANCE!$A$1:$A$65536,[4]notouch!$H12) ->  | R12: =VLOOKUP(A12,'[5]Bill+Ship to Code (Active)_08'!$B$1:$N$3286,13,0) -> ETC_TT
A13: VN007883040B | B13: LGEVH | G13: ETC | H13: ETC | I13: ETC_TT | J13: VN007883040B | N13: A | P13: =COUNTIF([4]BALANCE!$A$1:$A$65536,[4]notouch!$A13) ->  | Q13: =COUNTIF([4]BALANCE!$A$1:$A$65536,[4]notouch!$H13) ->  | R13: =VLOOKUP(A13,'[5]Bill+Ship to Code (Active)_08'!$B$1:$N$3286,13,0) -> 
A14: ZA000001060B | B14: LGESA | G14: ETC | H14: ETC | I14: ETC_TT | J14: ZA000001060B | L14: ETC | N14: A | P14: =COUNTIF([4]BALANCE!$A$1:$A$65536,[4]notouch!$A14) ->  | Q14: =COUNTIF([4]BALANCE!$A$1:$A$65536,[4]notouch!$H14) ->  | R14: =VLOOKUP(A14,'[5]Bill+Ship to Code (Active)_08'!$B$1:$N$3286,13,0) -> 
A15: MX011038033B | B15: LGEMN | G15: ETC | H15: ETC | I15: ETC_TT | J15: MX011038033B | K15: =VLOOKUP(A15,[3]工作表5!$A$2:$D$529,4,0) -> 1119173 | L15: ETC | N15: A | O15: =IF(N15="I","無往來",IF(SUM(P15:Q15)>0,"OK","沒有promotion")) ->  | P15: =COUNTIF([4]BALANCE!$A$1:$A$65536,[4]notouch!$A15) ->  | Q15: =COUNTIF([4]BALANCE!$A$1:$A$65536,[4]notouch!$H15) ->  | R15: =VLOOKUP(A15,'[5]Bill+Ship to Code (Active)_08'!$B$1:$N$3286,13,0) -> 
A16: CN000135060B | B16: LGEPN | G16: ETC | H16: ETC | I16: ETC_TT | J16: CN000135060B | L16: ETC | N16: A | O16: =IF(N16="I","無往來",IF(SUM(P16:Q16)>0,"OK","沒有promotion")) ->  | P16: =COUNTIF([4]BALANCE!$A$1:$A$65536,[4]notouch!$A16) ->  | Q16: =COUNTIF([4]BALANCE!$A$1:$A$65536,[4]notouch!$H16) ->  | R16: =VLOOKUP(A16,'[5]Bill+Ship to Code (Active)_08'!$B$1:$N$3286,13,0) -> 
A17: SG001062061B | G17: ETC | H17: ETC | I17: ETC_TT | J17: SG001062061B | N17: A | O17: =IF(N17="I","無往來",IF(SUM(P17:Q17)>0,"OK","沒有promotion")) ->  | P17: =COUNTIF([4]BALANCE!$A$1:$A$65536,[4]notouch!$A17) ->  | Q17: =COUNTIF([4]BALANCE!$A$1:$A$65536,[4]notouch!$H17) ->  | R17: =VLOOKUP(A17,'[5]Bill+Ship to Code (Active)_08'!$B$1:$N$3286,13,0) -> DLC_TT
A18: ID000002065B | B18: PT. LG ELECTRONICS INDONESIA | G18: ETC | H18: ETC | I18: ETC_TT | J18: ID000002065B | N18: A | P18: =COUNTIF([4]BALANCE!$A$1:$A$65536,[4]notouch!$A18) ->  | Q18: =COUNTIF([4]BALANCE!$A$1:$A$65536,[4]notouch!$H18) ->  | R18: =VLOOKUP(A18,'[5]Bill+Ship to Code (Active)_08'!$B$1:$N$3286,13,0) -> 
A19: TW002070001B | B19: 來福電器商行 | C19: 19600401 | D19: 08026783 | E19: 高屏營銷處 | F19: GWB | G19: 高屏 | H19: DEALER_TT | I19: DLC_TT | J19: TW002070001B | K19: =VLOOKUP(A19,[3]工作表5!$A$2:$D$529,4,0) -> 190733 | L19: 高屏營銷處 | N19: A | P19: =COUNTIF([4]BALANCE!$A$1:$A$65536,[4]notouch!$A19) ->  | Q19: =COUNTIF([4]BALANCE!$A$1:$A$65536,[4]notouch!$H19) ->  | R19: =VLOOKUP(A19,'[5]Bill+Ship to Code (Active)_08'!$B$1:$N$3286,13,0) -> DLC_TT
A20: TW002073001B | B20: 貴櫻音響 | C20: 19660906 | D20: 95987415 | E20: 高屏營銷處 | F20: GWB | G20: 高屏 | H20: DEALER_TT | I20: DLC_TT | N20: I | O20: 無往來 | P20: =COUNTIF([4]BALANCE!$A$1:$A$65536,[4]notouch!$A20) ->  | Q20: =COUNTIF([4]BALANCE!$A$1:$A$65536,[4]notouch!$H20) ->  | R20: =VLOOKUP(A20,'[5]Bill+Ship to Code (Active)_08'!$B$1:$N$3286,13,0) -> 
A21: TW002076001B | B21: 億興電業行 | C21: 19640715 | D21: 70940630 | E21: 高屏營銷處 | F21: GWB | G21: 高屏 | H21: DEALER_TT | I21: DLC_TT | J21: TW002076001B | K21: =VLOOKUP(A21,[3]工作表5!$A$2:$D$529,4,0) -> 0 | L21: 高屏營銷處 | N21: A | P21: =COUNTIF([4]BALANCE!$A$1:$A$65536,[4]notouch!$A21) ->  | Q21: =COUNTIF([4]BALANCE!$A$1:$A$65536,[4]notouch!$H21) ->  | R21: =VLOOKUP(A21,'[5]Bill+Ship to Code (Active)_08'!$B$1:$N$3286,13,0) -> DLC_TT
A22: TW002077001B | B22: 信一電器行 | C22: 19520302 | D22: 91730759 | E22: 高屏營銷處 | F22: GWB | G22: 高屏 | H22: DEALER_TT | I22: DLC_TT | J22: TW002077001B | K22: =VLOOKUP(A22,[3]工作表5!$A$2:$D$529,4,0) -> 0 | L22: 高屏營銷處 | N22: A | P22: =COUNTIF([4]BALANCE!$A$1:$A$65536,[4]notouch!$A22) ->  | Q22: =COUNTIF([4]BALANCE!$A$1:$A$65536,[4]notouch!$H22) ->  | R22: =VLOOKUP(A22,'[5]Bill+Ship to Code (Active)_08'!$B$1:$N$3286,13,0) -> DLC_TT
A23: TW002079001B | B23: 立陞電器 | C23: 19600710 | D23: 23956174 | E23: 高屏營銷處 | F23: GWB | G23: 高屏 | H23: DEALER_TT | I23: DLC_TT | J23: TW002079001B | K23: =VLOOKUP(A23,[3]工作表5!$A$2:$D$529,4,0) -> 0 | L23: 高屏營銷處 | N23: A | P23: =COUNTIF([4]BALANCE!$A$1:$A$65536,[4]notouch!$A23) ->  | Q23: =COUNTIF([4]BALANCE!$A$1:$A$65536,[4]notouch!$H23) ->  | R23: =VLOOKUP(A23,'[5]Bill+Ship to Code (Active)_08'!$B$1:$N$3286,13,0) -> DLC_TT
A24: TW002083001B | B24: 路得企業有限公司 | C24: 19600503 | D24: 84672419 | E24: 高屏營銷處 | F24: GWB | G24: 高屏 | H24: DEALER_TT | I24: SPD_TT | J24: TW002083001B | K24: =VLOOKUP(A24,[3]工作表5!$A$2:$D$529,4,0) -> 505890 | L24: 高屏營銷處 | N24: A | P24: =COUNTIF([4]BALANCE!$A$1:$A$65536,[4]notouch!$A24) ->  | Q24: =COUNTIF([4]BALANCE!$A$1:$A$65536,[4]notouch!$H24) ->  | R24: =VLOOKUP(A24,'[5]Bill+Ship to Code (Active)_08'!$B$1:$N$3286,13,0) -> SPD_TT
A25: TW002084001B | B25: 新進發企業行 | C25: 19520414 | D25: 90802950 | E25: 高屏營銷處 | F25: GWB | G25: 高屏 | H25: DEALER_TT | I25: DLC_TT | N25: I | O25: 無往來 | P25: =COUNTIF([4]BALANCE!$A$1:$A$65536,[4]notouch!$A25) ->  | Q25: =COUNTIF([4]BALANCE!$A$1:$A$65536,[4]notouch!$H25) ->  | R25: =VLOOKUP(A25,'[5]Bill+Ship to Code (Active)_08'!$B$1:$N$3286,13,0) -> 
A26: TW002085001B | B26: 皇昇電器行 | C26: 19600320 | D26: 08069071 | E26: 高屏營銷處 | F26: GWB | G26: 高屏 | H26: DEALER_TT | I26: DLC_TT | N26: I | O26: 無往來 | P26: =COUNTIF([4]BALANCE!$A$1:$A$65536,[4]notouch!$A26) ->  | Q26: =COUNTIF([4]BALANCE!$A$1:$A$65536,[4]notouch!$H26) ->  | R26: =VLOOKUP(A26,'[5]Bill+Ship to Code (Active)_08'!$B$1:$N$3286,13,0) -> 
A27: TW002090001B | B27: 慶旺電器有限公司 | C27: hw7498625 | D27: hw16826605 | E27: 高屏營銷處 | F27: GWB | G27: 高屏 | H27: DEALER_TT | I27: DLC_TT | J27: TW002090001B | K27: =VLOOKUP(A27,[3]工作表5!$A$2:$D$529,4,0) -> 0 | L27: 高屏營銷處 | N27: A | P27: =COUNTIF([4]BALANCE!$A$1:$A$65536,[4]notouch!$A27) ->  | Q27: =COUNTIF([4]BALANCE!$A$1:$A$65536,[4]notouch!$H27) ->  | R27: =VLOOKUP(A27,'[5]Bill+Ship to Code (Active)_08'!$B$1:$N$3286,13,0) -> DLC_TT
A28: TW002091001B | B28: 人友電器行 | C28: 19601028 | D28: 77003547 | E28: 高屏營銷處 | F28: GWB | G28: 高屏 | H28: DEALER_TT | I28: DLC_TT | J28: TW002091001B | L28: 高屏營銷處 | N28: A | P28: =COUNTIF([4]BALANCE!$A$1:$A$65536,[4]notouch!$A28) ->  | Q28: =COUNTIF([4]BALANCE!$A$1:$A$65536,[4]notouch!$H28) ->  | R28: =VLOOKUP(A28,'[5]Bill+Ship to Code (Active)_08'!$B$1:$N$3286,13,0) -> DLC_TT
A29: TW002093001B | B29: 鴻嘉電化商行 | C29: 19480106 | D29: 06696505 | E29: 高屏營銷處 | F29: GWB | G29: 高屏 | H29: DEALER_TT | I29: DCS_TT | J29: TW002093001B | K29: =VLOOKUP(A29,[3]工作表5!$A$2:$D$529,4,0) -> 0 | L29: 高屏營銷處 | N29: A | P29: =COUNTIF([4]BALANCE!$A$1:$A$65536,[4]notouch!$A29) ->  | Q29: =COUNTIF([4]BALANCE!$A$1:$A$65536,[4]notouch!$H29) ->  | R29: =VLOOKUP(A29,'[5]Bill+Ship to Code (Active)_08'!$B$1:$N$3286,13,0) -> DCS_TT
A30: TW002094001B | B30: 力利企業有限公司 | C30: 19660912 | D30: 16683445 | E30: 高屏營銷處 | F30: GWB | G30: 高屏 | H30: DEALER_TT | I30: DCS_TT | J30: TW002094001B | K30: =VLOOKUP(A30,[3]工作表5!$A$2:$D$529,4,0) -> 59364 | L30: 高屏營銷處 | N30: A | P30: =COUNTIF([4]BALANCE!$A$1:$A$65536,[4]notouch!$A30) ->  | Q30: =COUNTIF([4]BALANCE!$A$1:$A$65536,[4]notouch!$H30) ->  | R30: =VLOOKUP(A30,'[5]Bill+Ship to Code (Active)_08'!$B$1:$N$3286,13,0) -> DCS_TT
A31: TW002099001B | B31: 淙勝電器有限公司 | C31: 19580807 | D31: 16476213 | E31: 高屏營銷處 | F31: GWB | G31: 高屏 | H31: DEALER_TT | I31: DLC_TT | J31: TW002099001B | L31: 高屏營銷處 | N31: A | P31: =COUNTIF([4]BALANCE!$A$1:$A$65536,[4]notouch!$A31) ->  | Q31: =COUNTIF([4]BALANCE!$A$1:$A$65536,[4]notouch!$H31) ->  | R31: =VLOOKUP(A31,'[5]Bill+Ship to Code (Active)_08'!$B$1:$N$3286,13,0) -> 
A32: TW002104001B | B32: 三豐電器行 | C32: 19681110 | D32: 19661607 | E32: 高屏營銷處 | F32: GWB | G32: 高屏 | H32: DEALER_TT | I32: DLC_TT | J32: TW002104001B | K32: =VLOOKUP(A32,[3]工作表5!$A$2:$D$529,4,0) -> 58190 | L32: 高屏營銷處 | N32: A | P32: =COUNTIF([4]BALANCE!$A$1:$A$65536,[4]notouch!$A32) ->  | Q32: =COUNTIF([4]BALANCE!$A$1:$A$65536,[4]notouch!$H32) ->  | R32: =VLOOKUP(A32,'[5]Bill+Ship to Code (Active)_08'!$B$1:$N$3286,13,0) -> DLC_TT
A33: TW002105001B | B33: 上眾電器有限公司 | C33: 19600908 | D33: 97408406 | E33: 高屏營銷處 | F33: GWB | G33: 高屏 | H33: DEALER_TT | I33: DLC_TT | J33: TW002105001B | K33: =VLOOKUP(A33,[3]工作表5!$A$2:$D$529,4,0) -> 85442 | L33: 高屏營銷處 | N33: A | P33: =COUNTIF([4]BALANCE!$A$1:$A$65536,[4]notouch!$A33) ->  | Q33: =COUNTIF([4]BALANCE!$A$1:$A$65536,[4]notouch!$H33) ->  | R33: =VLOOKUP(A33,'[5]Bill+Ship to Code (Active)_08'!$B$1:$N$3286,13,0) -> DLC_TT
A34: TW002106001B | B34: 大時代量販家電 | C34: 19670921 | D34: 07910980 | E34: 高屏營銷處 | F34: GWB | G34: 高屏 | H34: DEALER_TT | I34: SPD_TT | J34: TW002106001B | K34: =VLOOKUP(A34,[3]工作表5!$A$2:$D$529,4,0) -> 1227067 | L34: 高屏營銷處 | N34: A | P34: =COUNTIF([4]BALANCE!$A$1:$A$65536,[4]notouch!$A34) ->  | Q34: =COUNTIF([4]BALANCE!$A$1:$A$65536,[4]notouch!$H34) ->  | R34: =VLOOKUP(A34,'[5]Bill+Ship to Code (Active)_08'!$B$1:$N$3286,13,0) -> SPD_TT
A35: TW002108001B | B35: 春聲電器有限公司 | C35: 19590922 | D35: 86633356 | E35: 高屏營銷處 | F35: GWB | G35: 高屏 | H35: DEALER_TT | I35: DCS_TT | J35: TW002108001B | K35: =VLOOKUP(A35,[3]工作表5!$A$2:$D$529,4,0) -> 93013 | L35: 高屏營銷處 | N35: A | P35: =COUNTIF([4]BALANCE!$A$1:$A$65536,[4]notouch!$A35) ->  | Q35: =COUNTIF([4]BALANCE!$A$1:$A$65536,[4]notouch!$H35) ->  | R35: =VLOOKUP(A35,'[5]Bill+Ship to Code (Active)_08'!$B$1:$N$3286,13,0) -> DCS_TT
A36: TW002118001B | B36: 福總電業社 | C36: 19551001 | D36: 08519549 | E36: 高屏營銷處 | F36: GWB | G36: 高屏 | H36: DEALER_TT | I36: DLC_TT | J36: TW002118001B | K36: =VLOOKUP(A36,[3]工作表5!$A$2:$D$529,4,0) -> 0 | L36: 高屏營銷處 | N36: A | P36: =COUNTIF([4]BALANCE!$A$1:$A$65536,[4]notouch!$A36) ->  | Q36: =COUNTIF([4]BALANCE!$A$1:$A$65536,[4]notouch!$H36) ->  | R36: =VLOOKUP(A36,'[5]Bill+Ship to Code (Active)_08'!$B$1:$N$3286,13,0) -> DLC_TT
A37: TW002119001B | B37: 聯立貿易有限公司 | C37: 19520813 | D37: 70405187 | E37: 高屏營銷處 | F37: GWB | G37: 高屏 | H37: DEALER_TT | I37: DCS_TT | J37: TW002119001B | K37: =VLOOKUP(A37,[3]工作表5!$A$2:$D$529,4,0) -> 62533 | L37: 高屏營銷處 | N37: A | P37: =COUNTIF([4]BALANCE!$A$1:$A$65536,[4]notouch!$A37) ->  | Q37: =COUNTIF([4]BALANCE!$A$1:$A$65536,[4]notouch!$H37) ->  | R37: =VLOOKUP(A37,'[5]Bill+Ship to Code (Active)_08'!$B$1:$N$3286,13,0) -> DCS_TT
A38: TW002130001B | B38: 百鈴電器影視有限公司 | C38: 19530824 | D38: 72192956 | E38: 嘉南營銷處 | F38: DNB | G38: 嘉南 | H38: DEALER_TT | I38: DLC_TT | J38: TW002130001B | K38: =VLOOKUP(A38,[3]工作表5!$A$2:$D$529,4,0) -> 36246 | L38: 嘉南營銷處 | N38: A | P38: =COUNTIF([4]BALANCE!$A$1:$A$65536,[4]notouch!$A38) ->  | Q38: =COUNTIF([4]BALANCE!$A$1:$A$65536,[4]notouch!$H38) ->  | R38: =VLOOKUP(A38,'[5]Bill+Ship to Code (Active)_08'!$B$1:$N$3286,13,0) -> DLC_TT
A39: TW002140001B | B39: 大時代量販家電 | C39: 19681011 | D39: 87692727 | E39: 嘉南營銷處 | F39: DNB | G39: 嘉南 | H39: DEALER_TT | I39: DCS_TT | J39: TW002140001B | K39: =VLOOKUP(A39,[3]工作表5!$A$2:$D$529,4,0) -> 244223 | L39: 嘉南營銷處 | N39: A | P39: =COUNTIF([4]BALANCE!$A$1:$A$65536,[4]notouch!$A39) ->  | Q39: =COUNTIF([4]BALANCE!$A$1:$A$65536,[4]notouch!$H39) ->  | R39: =VLOOKUP(A39,'[5]Bill+Ship to Code (Active)_08'!$B$1:$N$3286,13,0) -> DCS_TT
A40: TW002141001B | B40: 冠銓電器有限公司 | C40: 19630606 | D40: 16860835 | E40: 嘉南營銷處 | F40: DNB | G40: 嘉南 | H40: DEALER_TT | I40: SPD_TT | J40: TW002141001B | K40: =VLOOKUP(A40,[3]工作表5!$A$2:$D$529,4,0) -> 707708 | L40: 嘉南營銷處 | N40: A | P40: =COUNTIF([4]BALANCE!$A$1:$A$65536,[4]notouch!$A40) ->  | Q40: =COUNTIF([4]BALANCE!$A$1:$A$65536,[4]notouch!$H40) ->  | R40: =VLOOKUP(A40,'[5]Bill+Ship to Code (Active)_08'!$B$1:$N$3286,13,0) -> SPD_TT
A41: TW002143001B | B41: 全省電器有限公司 | C41: 19701230 | D41: 69689334 | E41: 嘉南營銷處 | F41: DNB | G41: 嘉南 | H41: DEALER_TT | I41: SPD_TT | J41: TW002143001B | K41: =VLOOKUP(A41,[3]工作表5!$A$2:$D$529,4,0) -> 2751608 | L41: 嘉南營銷處 | N41: A | P41: =COUNTIF([4]BALANCE!$A$1:$A$65536,[4]notouch!$A41) ->  | Q41: =COUNTIF([4]BALANCE!$A$1:$A$65536,[4]notouch!$H41) ->  | R41: =VLOOKUP(A41,'[5]Bill+Ship to Code (Active)_08'!$B$1:$N$3286,13,0) -> SPD_TT
A42: TW002144001B | B42: 歐鋒電器行 | C42: 19630108 | D42: 78995756 | E42: 嘉南營銷處 | F42: DNB | G42: 嘉南 | H42: DEALER_TT | I42: DCS_TT | J42: TW002144001B | K42: =VLOOKUP(A42,[3]工作表5!$A$2:$D$529,4,0) -> 27375 | L42: 嘉南營銷處 | N42: A | P42: =COUNTIF([4]BALANCE!$A$1:$A$65536,[4]notouch!$A42) ->  | Q42: =COUNTIF([4]BALANCE!$A$1:$A$65536,[4]notouch!$H42) ->  | R42: =VLOOKUP(A42,'[5]Bill+Ship to Code (Active)_08'!$B$1:$N$3286,13,0) -> DCS_TT
A43: TW002146001B | B43: 宇騰電器行 | C43: 19630910 | D43: 78630074 | E43: 嘉南營銷處 | F43: DNB | G43: 嘉南 | H43: DEALER_TT | I43: DCS_TT | N43: I | O43: 無往來 | P43: =COUNTIF([4]BALANCE!$A$1:$A$65536,[4]notouch!$A43) ->  | Q43: =COUNTIF([4]BALANCE!$A$1:$A$65536,[4]notouch!$H43) ->  | R43: =VLOOKUP(A43,'[5]Bill+Ship to Code (Active)_08'!$B$1:$N$3286,13,0) -> 
A44: TW002150001B | B44: 宏偉電器行 | C44: 19610121 | D44: 06504730 | E44: 嘉南營銷處 | F44: DNB | G44: 嘉南 | H44: DEALER_TT | I44: DCS_TT | J44: TW002150001B | K44: =VLOOKUP(A44,[3]工作表5!$A$2:$D$529,4,0) -> 368006 | L44: 嘉南營銷處 | N44: A | P44: =COUNTIF([4]BALANCE!$A$1:$A$65536,[4]notouch!$A44) ->  | Q44: =COUNTIF([4]BALANCE!$A$1:$A$65536,[4]notouch!$H44) ->  | R44: =VLOOKUP(A44,'[5]Bill+Ship to Code (Active)_08'!$B$1:$N$3286,13,0) -> DCS_TT
A45: TW002151001B | B45: 松寶電器行 | C45: 19530411 | D45: 85741379 | E45: 嘉南營銷處 | F45: DNB | G45: 嘉南 | H45: DEALER_TT | I45: DLC_TT | J45: TW002151001B | K45: =VLOOKUP(A45,[3]工作表5!$A$2:$D$529,4,0) -> 0 | L45: 嘉南營銷處 | N45: A | P45: =COUNTIF([4]BALANCE!$A$1:$A$65536,[4]notouch!$A45) ->  | Q45: =COUNTIF([4]BALANCE!$A$1:$A$65536,[4]notouch!$H45) ->  | R45: =VLOOKUP(A45,'[5]Bill+Ship to Code (Active)_08'!$B$1:$N$3286,13,0) -> DLC_TT
A46: TW002152001B | B46: 世英電業行 | C46: 19510120 | D46: 69310389 | E46: 嘉南營銷處 | F46: DNB | G46: 嘉南 | H46: DEALER_TT | I46: DCS_TT | N46: A | P46: =COUNTIF([4]BALANCE!$A$1:$A$65536,[4]notouch!$A46) ->  | Q46: =COUNTIF([4]BALANCE!$A$1:$A$65536,[4]notouch!$H46) ->  | R46: =VLOOKUP(A46,'[5]Bill+Ship to Code (Active)_08'!$B$1:$N$3286,13,0) -> 
A47: TW002154001B | B47: 信福電器有限公司 | C47: 19710107 | D47: 69279211 | E47: 嘉南營銷處 | F47: DNB | G47: 嘉南 | H47: DEALER_TT | I47: DCS_TT | J47: TW002154001B | K47: =VLOOKUP(A47,[3]工作表5!$A$2:$D$529,4,0) -> 1980158 | L47: 嘉南營銷處 | N47: A | P47: =COUNTIF([4]BALANCE!$A$1:$A$65536,[4]notouch!$A47) ->  | Q47: =COUNTIF([4]BALANCE!$A$1:$A$65536,[4]notouch!$H47) ->  | R47: =VLOOKUP(A47,'[5]Bill+Ship to Code (Active)_08'!$B$1:$N$3286,13,0) -> DCS_TT
A48: TW002155001B | B48: 老李電器企業有限公司 | C48: 19541025 | D48: 06375829 | E48: 嘉南營銷處 | F48: DNB | G48: 嘉南 | H48: DEALER_TT | I48: DLC_TT | J48: TW002155001B | K48: =VLOOKUP(A48,[3]工作表5!$A$2:$D$529,4,0) -> 28832 | L48: 嘉南營銷處 | N48: A | P48: =COUNTIF([4]BALANCE!$A$1:$A$65536,[4]notouch!$A48) ->  | Q48: =COUNTIF([4]BALANCE!$A$1:$A$65536,[4]notouch!$H48) ->  | R48: =VLOOKUP(A48,'[5]Bill+Ship to Code (Active)_08'!$B$1:$N$3286,13,0) -> DLC_TT
A49: TW002158001B | B49: 中美電器行 | C49: 19640417 | D49: 20198584 | E49: 嘉南營銷處 | F49: DNB | G49: 嘉南 | H49: DEALER_TT | I49: DLC_TT | J49: TW002158001B | K49: =VLOOKUP(A49,[3]工作表5!$A$2:$D$529,4,0) -> 0 | L49: 嘉南營銷處 | N49: A | P49: =COUNTIF([4]BALANCE!$A$1:$A$65536,[4]notouch!$A49) ->  | Q49: =COUNTIF([4]BALANCE!$A$1:$A$65536,[4]notouch!$H49) ->  | R49: =VLOOKUP(A49,'[5]Bill+Ship to Code (Active)_08'!$B$1:$N$3286,13,0) -> DLC_TT
A50: TW002173001B | B50: 泰欣電器行 | C50: 19601208 | D50: 06556096 | E50: 嘉南營銷處 | F50: DNB | G50: 嘉南 | H50: DEALER_TT | I50: DCS_TT | J50: TW002173001B | K50: =VLOOKUP(A50,[3]工作表5!$A$2:$D$529,4,0) -> 449730 | L50: 嘉南營銷處 | N50: A | P50: =COUNTIF([4]BALANCE!$A$1:$A$65536,[4]notouch!$A50) ->  | Q50: =COUNTIF([4]BALANCE!$A$1:$A$65536,[4]notouch!$H50) ->  | R50: =VLOOKUP(A50,'[5]Bill+Ship to Code (Active)_08'!$B$1:$N$3286,13,0) -> DCS_TT
A51: TW002174001B | B51: 強尼電器百貨大批發 | C51: 19651231 | D51: 06583544 | E51: 嘉南營銷處 | F51: DNB | G51: 嘉南 | H51: DEALER_TT | I51: DLC_TT | N51: A | P51: =COUNTIF([4]BALANCE!$A$1:$A$65536,[4]notouch!$A51) ->  | Q51: =COUNTIF([4]BALANCE!$A$1:$A$65536,[4]notouch!$H51) ->  | R51: =VLOOKUP(A51,'[5]Bill+Ship to Code (Active)_08'!$B$1:$N$3286,13,0) -> 
A52: TW002176001B | B52: 益昌電氣行 | C52: 19720603 | D52: 72166747 | E52: 嘉南營銷處 | F52: DNB | G52: 嘉南 | H52: DEALER_TT | I52: DCS_TT | J52: TW002176001B | K52: =VLOOKUP(A52,[3]工作表5!$A$2:$D$529,4,0) -> 171140 | L52: 嘉南營銷處 | N52: A | P52: =COUNTIF([4]BALANCE!$A$1:$A$65536,[4]notouch!$A52) ->  | Q52: =COUNTIF([4]BALANCE!$A$1:$A$65536,[4]notouch!$H52) ->  | R52: =VLOOKUP(A52,'[5]Bill+Ship to Code (Active)_08'!$B$1:$N$3286,13,0) -> DCS_TT
A53: TW002192001B | B53: 和春電器行 | C53: 19681015 | D53: 64910498 | E53: 嘉南營銷處 | F53: DNB | G53: 嘉南 | H53: DEALER_TT | I53: DLC_TT | J53: TW002192001B | K53: =VLOOKUP(A53,[3]工作表5!$A$2:$D$529,4,0) -> 0 | L53: 嘉南營銷處 | N53: A | P53: =COUNTIF([4]BALANCE!$A$1:$A$65536,[4]notouch!$A53) ->  | Q53: =COUNTIF([4]BALANCE!$A$1:$A$65536,[4]notouch!$H53) ->  | R53: =VLOOKUP(A53,'[5]Bill+Ship to Code (Active)_08'!$B$1:$N$3286,13,0) -> DLC_TT
A54: TW002194001B | B54: 宏達電氣行 | C54: 19780611 | D54: 64862377 | E54: 台中營銷處 | F54: DJB | G54: 台中 | H54: DEALER_TT | I54: DCS_TT | J54: TW002194001B | K54: =VLOOKUP(A54,[3]工作表5!$A$2:$D$529,4,0) -> 642935 | L54: 台中營銷處 | N54: A | P54: =COUNTIF([4]BALANCE!$A$1:$A$65536,[4]notouch!$A54) ->  | Q54: =COUNTIF([4]BALANCE!$A$1:$A$65536,[4]notouch!$H54) ->  | R54: =VLOOKUP(A54,'[5]Bill+Ship to Code (Active)_08'!$B$1:$N$3286,13,0) -> DCS_TT
A55: TW002201001B | B55: 中聯發國際企業有限公司 | C55: TW002201 | D55: 16402395 | E55: 台中營銷處 | F55: DJB | G55: 台中 | H55: DEALER_TT | I55: DLC_TT | J55: TW002201001B | K55: =VLOOKUP(A55,[3]工作表5!$A$2:$D$529,4,0) -> 148670 | L55: 台中營銷處 | N55: A | P55: =COUNTIF([4]BALANCE!$A$1:$A$65536,[4]notouch!$A55) ->  | Q55: =COUNTIF([4]BALANCE!$A$1:$A$65536,[4]notouch!$H55) ->  | R55: =VLOOKUP(A55,'[5]Bill+Ship to Code (Active)_08'!$B$1:$N$3286,13,0) -> DLC_TT
A56: TW002204001B | B56: 鑫昌電器有限公司 | C56: 22789515 | D56: 22791019 | E56: 台中營銷處 | F56: DJB | G56: 台中 | H56: DEALER_TT | I56: SPD_TT | J56: TW002204001B | L56: 台中營銷處 | N56: A | P56: =COUNTIF([4]BALANCE!$A$1:$A$65536,[4]notouch!$A56) ->  | Q56: =COUNTIF([4]BALANCE!$A$1:$A$65536,[4]notouch!$H56) ->  | R56: =VLOOKUP(A56,'[5]Bill+Ship to Code (Active)_08'!$B$1:$N$3286,13,0) -> 
A57: TW002206001B | B57: 祥峰電器行 | C57: TW002206 | D57: 61841075 | E57: 台中營銷處 | F57: DJB | G57: 台中 | H57: DEALER_TT | I57: DLC_TT | J57: TW002206001B | K57: =VLOOKUP(A57,[3]工作表5!$A$2:$D$529,4,0) -> 48143 | L57: 台中營銷處 | N57: A | P57: =COUNTIF([4]BALANCE!$A$1:$A$65536,[4]notouch!$A57) ->  | Q57: =COUNTIF([4]BALANCE!$A$1:$A$65536,[4]notouch!$H57) ->  | R57: =VLOOKUP(A57,'[5]Bill+Ship to Code (Active)_08'!$B$1:$N$3286,13,0) -> DLC_TT
A58: TW002214001B | B58: 欣益電器行 | C58: TW002214 | D58: 12043905 | E58: 台中營銷處 | F58: DJB | G58: 台中 | H58: DEALER_TT | I58: SPD_TT | J58: TW002214001B | K58: =VLOOKUP(A58,[3]工作表5!$A$2:$D$529,4,0) -> 82593 | L58: 台中營銷處 | N58: A | P58: =COUNTIF([4]BALANCE!$A$1:$A$65536,[4]notouch!$A58) ->  | Q58: =COUNTIF([4]BALANCE!$A$1:$A$65536,[4]notouch!$H58) ->  | R58: =VLOOKUP(A58,'[5]Bill+Ship to Code (Active)_08'!$B$1:$N$3286,13,0) -> SPD_TT
A59: TW002223001B | B59: 長紅電子專賣店 | C59: 19680422 | D59: 92812618 | E59: 台中營銷處 | F59: DJB | G59: 台中 | H59: DEALER_TT | I59: DLC_TT | J59: TW002223001B | K59: =VLOOKUP(A59,[3]工作表5!$A$2:$D$529,4,0) -> 51071 | L59: 台中營銷處 | N59: A | P59: =COUNTIF([4]BALANCE!$A$1:$A$65536,[4]notouch!$A59) ->  | Q59: =COUNTIF([4]BALANCE!$A$1:$A$65536,[4]notouch!$H59) ->  | R59: =VLOOKUP(A59,'[5]Bill+Ship to Code (Active)_08'!$B$1:$N$3286,13,0) -> DLC_TT
A60: TW002228001B | B60: 嘉聲電器有限公司 | C60: TW002228 | D60: 22960798 | E60: 台中營銷處 | F60: DJB | G60: 台中 | H60: DEALER_TT | I60: DLC_TT | N60: I | O60: 無往來 | P60: =COUNTIF([4]BALANCE!$A$1:$A$65536,[4]notouch!$A60) ->  | Q60: =COUNTIF([4]BALANCE!$A$1:$A$65536,[4]notouch!$H60) ->  | R60: =VLOOKUP(A60,'[5]Bill+Ship to Code (Active)_08'!$B$1:$N$3286,13,0) -> 
A61: TW002229001B | B61: 宏昌電器行 | C61: 19590618 | D61: 24151920 | E61: 台中營銷處 | F61: DJB | G61: 台中 | H61: DEALER_TT | I61: DLC_TT | J61: TW002229001B | K61: =VLOOKUP(A61,[3]工作表5!$A$2:$D$529,4,0) -> 123562 | L61: 台中營銷處 | N61: A | P61: =COUNTIF([4]BALANCE!$A$1:$A$65536,[4]notouch!$A61) ->  | Q61: =COUNTIF([4]BALANCE!$A$1:$A$65536,[4]notouch!$H61) ->  | R61: =VLOOKUP(A61,'[5]Bill+Ship to Code (Active)_08'!$B$1:$N$3286,13,0) -> DLC_TT
A62: TW002239001B | B62: 明信電子專賣店 | C62: 19641206 | D62: 77109680 | E62: 台中營銷處 | F62: DJB | G62: 台中 | H62: DEALER_TT | I62: DLC_TT | J62: TW002239001B | K62: =VLOOKUP(A62,[3]工作表5!$A$2:$D$529,4,0) -> 0 | L62: 台中營銷處 | N62: A | P62: =COUNTIF([4]BALANCE!$A$1:$A$65536,[4]notouch!$A62) ->  | Q62: =COUNTIF([4]BALANCE!$A$1:$A$65536,[4]notouch!$H62) ->  | R62: =VLOOKUP(A62,'[5]Bill+Ship to Code (Active)_08'!$B$1:$N$3286,13,0) -> DLC_TT
A63: TW002245001B | B63: 明嘉電器 | C63: TW002245 | D63: 23077347 | E63: 台中營銷處 | F63: DJB | G63: 台中 | H63: DEALER_TT | I63: DLC_TT | N63: I | O63: 無往來 | P63: =COUNTIF([4]BALANCE!$A$1:$A$65536,[4]notouch!$A63) ->  | Q63: =COUNTIF([4]BALANCE!$A$1:$A$65536,[4]notouch!$H63) ->  | R63: =VLOOKUP(A63,'[5]Bill+Ship to Code (Active)_08'!$B$1:$N$3286,13,0) -> 
A64: TW002248001B | B64: 盟音電器 | C64: TW002248 | D64: 84181461 | E64: 台中營銷處 | F64: DJB | G64: 台中 | H64: DEALER_TT | I64: DLC_TT | N64: I | O64: 無往來 | P64: =COUNTIF([4]BALANCE!$A$1:$A$65536,[4]notouch!$A64) ->  | Q64: =COUNTIF([4]BALANCE!$A$1:$A$65536,[4]notouch!$H64) ->  | R64: =VLOOKUP(A64,'[5]Bill+Ship to Code (Active)_08'!$B$1:$N$3286,13,0) -> 
A65: TW002250001B | B65: 格愛陞有限公司 | C65: TW002250 | D65: 84694814 | E65: 台中營銷處 | F65: DJB | G65: 台中 | H65: DEALER_TT | I65: DCS_TT | N65: I | O65: 無往來 | P65: =COUNTIF([4]BALANCE!$A$1:$A$65536,[4]notouch!$A65) ->  | Q65: =COUNTIF([4]BALANCE!$A$1:$A$65536,[4]notouch!$H65) ->  | R65: =VLOOKUP(A65,'[5]Bill+Ship to Code (Active)_08'!$B$1:$N$3286,13,0) -> 
A66: TW002252001B | B66: 沅富電器行 | C66: 19611227 | D66: 18334578 | E66: 台中營銷處 | F66: DJB | G66: 台中 | H66: DEALER_TT | I66: SPD_TT | J66: TW002252001B | K66: =VLOOKUP(A66,[3]工作表5!$A$2:$D$529,4,0) -> 250975 | L66: 台中營銷處 | N66: A | P66: =COUNTIF([4]BALANCE!$A$1:$A$65536,[4]notouch!$A66) ->  | Q66: =COUNTIF([4]BALANCE!$A$1:$A$65536,[4]notouch!$H66) ->  | R66: =VLOOKUP(A66,'[5]Bill+Ship to Code (Active)_08'!$B$1:$N$3286,13,0) -> SPD_TT
A67: TW002257001B | B67: 恆信電器有限公司 | C67: TW002257 | D67: 89817694 | E67: 台中營銷處 | F67: DJB | G67: 台中 | H67: DEALER_TT | I67: DLC_TT | J67: TW002257001B | K67: =VLOOKUP(A67,[3]工作表5!$A$2:$D$529,4,0) -> 0 | L67: 台中營銷處 | N67: A | P67: =COUNTIF([4]BALANCE!$A$1:$A$65536,[4]notouch!$A67) ->  | Q67: =COUNTIF([4]BALANCE!$A$1:$A$65536,[4]notouch!$H67) ->  | R67: =VLOOKUP(A67,'[5]Bill+Ship to Code (Active)_08'!$B$1:$N$3286,13,0) -> DLC_TT
A68: TW002261001B | B68: 美齊富有限公司 | C68: 23893338 | D68: 23811788 | E68: 台中營銷處 | F68: DJB | G68: 台中 | H68: DEALER_TT | I68: DLC_TT | J68: TW002261001B | K68: =VLOOKUP(A68,[3]工作表5!$A$2:$D$529,4,0) -> 49981 | L68: 台中營銷處 | N68: A | P68: =COUNTIF([4]BALANCE!$A$1:$A$65536,[4]notouch!$A68) ->  | Q68: =COUNTIF([4]BALANCE!$A$1:$A$65536,[4]notouch!$H68) ->  | R68: =VLOOKUP(A68,'[5]Bill+Ship to Code (Active)_08'!$B$1:$N$3286,13,0) -> DLC_TT
A69: TW002261002B | B69: 美齊富有限公司 | C69: XXXXXXXX | D69: XXXXXXXX | E69: SAC | F69: ID&SAC | G69: SAC Sales | H69: B2B_TT | I69: CAC_TT | N69: I | O69: 無往來 | P69: =COUNTIF([4]BALANCE!$A$1:$A$65536,[4]notouch!$A69) ->  | Q69: =COUNTIF([4]BALANCE!$A$1:$A$65536,[4]notouch!$H69) ->  | R69: =VLOOKUP(A69,'[5]Bill+Ship to Code (Active)_08'!$B$1:$N$3286,13,0) -> 
A70: TW002262001B | B70: 太子電業行 | C70: TW002262 | D70: 77685331 | E70: 台中營銷處 | F70: DJB | G70: 台中 | H70: DEALER_TT | I70: DCS_TT | J70: TW002262001B | K70: =VLOOKUP(A70,[3]工作表5!$A$2:$D$529,4,0) -> 592271 | L70: 台中營銷處 | N70: A | P70: =COUNTIF([4]BALANCE!$A$1:$A$65536,[4]notouch!$A70) ->  | Q70: =COUNTIF([4]BALANCE!$A$1:$A$65536,[4]notouch!$H70) ->  | R70: =VLOOKUP(A70,'[5]Bill+Ship to Code (Active)_08'!$B$1:$N$3286,13,0) -> DCS_TT
A71: TW002265001B | B71: 大謄電器有限公司 | C71: TW002265 | D71: 22915458 | E71: 台中營銷處 | F71: DJB | G71: 台中 | H71: DEALER_TT | I71: DLC_TT | J71: TW002265001B | K71: =VLOOKUP(A71,[3]工作表5!$A$2:$D$529,4,0) -> 38744 | L71: 台中營銷處 | N71: A | P71: =COUNTIF([4]BALANCE!$A$1:$A$65536,[4]notouch!$A71) ->  | Q71: =COUNTIF([4]BALANCE!$A$1:$A$65536,[4]notouch!$H71) ->  | R71: =VLOOKUP(A71,'[5]Bill+Ship to Code (Active)_08'!$B$1:$N$3286,13,0) -> DLC_TT
A72: TW002267001B | B72: 東林電器有限公司 | C72: 19531101 | D72: 97482257 | E72: 台中營銷處 | F72: DJB | G72: 台中 | H72: DEALER_TT | I72: DLC_TT | J72: TW002267001B | L72: 台中營銷處 | N72: A | P72: =COUNTIF([4]BALANCE!$A$1:$A$65536,[4]notouch!$A72) ->  | Q72: =COUNTIF([4]BALANCE!$A$1:$A$65536,[4]notouch!$H72) ->  | R72: =VLOOKUP(A72,'[5]Bill+Ship to Code (Active)_08'!$B$1:$N$3286,13,0) -> DLC_TT
A73: TW002268001B | B73: 佳億電器量販 | C73: TW002268 | D73: 77249459 | E73: 台中營銷處 | F73: DJB | G73: 台中 | H73: DEALER_TT | I73: DLC_TT | N73: I | O73: 無往來 | P73: =COUNTIF([4]BALANCE!$A$1:$A$65536,[4]notouch!$A73) ->  | Q73: =COUNTIF([4]BALANCE!$A$1:$A$65536,[4]notouch!$H73) ->  | R73: =VLOOKUP(A73,'[5]Bill+Ship to Code (Active)_08'!$B$1:$N$3286,13,0) -> 
A74: TW002277001B | B74: 家晟電器 | C74: TW002277 | D74: 22401937 | E74: 台中營銷處 | F74: DJB | G74: 台中 | H74: DEALER_TT | I74: DLC_TT | N74: I | O74: 無往來 | P74: =COUNTIF([4]BALANCE!$A$1:$A$65536,[4]notouch!$A74) ->  | Q74: =COUNTIF([4]BALANCE!$A$1:$A$65536,[4]notouch!$H74) ->  | R74: =VLOOKUP(A74,'[5]Bill+Ship to Code (Active)_08'!$B$1:$N$3286,13,0) -> 
A75: TW002288001B | B75: 幸韻電器有限公司 | C75: 19661201 | D75: 89328106 | E75: 桃竹營銷處 | F75: DWB | G75: 桃竹 | H75: DEALER_TT | I75: SPD_TT | J75: TW002288001B | K75: =VLOOKUP(A75,[3]工作表5!$A$2:$D$529,4,0) -> 1069977 | L75: 桃竹營銷處 | N75: A | P75: =COUNTIF([4]BALANCE!$A$1:$A$65536,[4]notouch!$A75) ->  | Q75: =COUNTIF([4]BALANCE!$A$1:$A$65536,[4]notouch!$H75) ->  | R75: =VLOOKUP(A75,'[5]Bill+Ship to Code (Active)_08'!$B$1:$N$3286,13,0) -> SPD_TT
A76: TW002291001B | B76: 金一電器有限公司 | C76: 19570623 | D76: 22137992 | E76: 桃竹營銷處 | F76: DWB | G76: 桃竹 | H76: DEALER_TT | I76: SPD_TT | J76: TW002291001B | K76: =VLOOKUP(A76,[3]工作表5!$A$2:$D$529,4,0) -> 3060226 | L76: 桃竹營銷處 | N76: A | P76: =COUNTIF([4]BALANCE!$A$1:$A$65536,[4]notouch!$A76) ->  | Q76: =COUNTIF([4]BALANCE!$A$1:$A$65536,[4]notouch!$H76) ->  | R76: =VLOOKUP(A76,'[5]Bill+Ship to Code (Active)_08'!$B$1:$N$3286,13,0) -> SPD_TT
A77: TW002295001B | B77: 金昇電器有限公司 | C77: 19691111 | D77: 49651654 | E77: 桃竹營銷處 | F77: DWB | G77: 桃竹 | H77: DEALER_TT | I77: DLC_TT | N77: I | O77: 無往來 | P77: =COUNTIF([4]BALANCE!$A$1:$A$65536,[4]notouch!$A77) ->  | Q77: =COUNTIF([4]BALANCE!$A$1:$A$65536,[4]notouch!$H77) ->  | R77: =VLOOKUP(A77,'[5]Bill+Ship to Code (Active)_08'!$B$1:$N$3286,13,0) -> 
A78: TW002305001B | B78: 皇典電器行 | C78: 19680201 | D78: 78544155 | E78: 桃竹營銷處 | F78: DWB | G78: 桃竹 | H78: DEALER_TT | I78: DLC_TT | J78: TW002305001B | K78: =VLOOKUP(A78,[3]工作表5!$A$2:$D$529,4,0) -> 44819 | L78: 桃竹營銷處 | N78: A | O78: =IF(N78="I","無往來",IF(SUM(P78:Q78)>0,"OK","沒有promotion")) ->  | P78: =COUNTIF([4]BALANCE!$A$1:$A$65536,[4]notouch!$A78) ->  | Q78: =COUNTIF([4]BALANCE!$A$1:$A$65536,[4]notouch!$H78) ->  | R78: =VLOOKUP(A78,'[5]Bill+Ship to Code (Active)_08'!$B$1:$N$3286,13,0) -> DLC_TT
A79: TW002315001B | B79: 銓日電器行 | C79: 19670416 | D79: 73800090 | E79: 桃竹營銷處 | F79: DWB | G79: 桃竹 | H79: DEALER_TT | I79: DLC_TT | K79: =VLOOKUP(A79,[3]工作表5!$A$2:$D$529,4,0) -> 44133 | L79: 桃竹營銷處 | N79: A | P79: =COUNTIF([4]BALANCE!$A$1:$A$65536,[4]notouch!$A79) ->  | Q79: =COUNTIF([4]BALANCE!$A$1:$A$65536,[4]notouch!$H79) ->  | R79: =VLOOKUP(A79,'[5]Bill+Ship to Code (Active)_08'!$B$1:$N$3286,13,0) -> DLC_TT
A80: TW002324001B | B80: 兆宏電業行 | C80: 19640130 | D80: 47039765 | E80: 桃竹營銷處 | F80: DWB | G80: 桃竹 | H80: DEALER_TT | I80: DCS_TT | J80: TW002324001B | K80: =VLOOKUP(A80,[3]工作表5!$A$2:$D$529,4,0) -> 249437 | L80: 桃竹營銷處 | N80: A | P80: =COUNTIF([4]BALANCE!$A$1:$A$65536,[4]notouch!$A80) ->  | Q80: =COUNTIF([4]BALANCE!$A$1:$A$65536,[4]notouch!$H80) ->  | R80: =VLOOKUP(A80,'[5]Bill+Ship to Code (Active)_08'!$B$1:$N$3286,13,0) -> DCS_TT
A81: TW002331001B | B81: 同慶電氣行 | C81: 19530412 | D81: 43779752 | E81: 桃竹營銷處 | F81: DWB | G81: 桃竹 | H81: DEALER_TT | I81: DCS_TT | J81: TW002331001B | K81: =VLOOKUP(A81,[3]工作表5!$A$2:$D$529,4,0) -> 0 | L81: 桃竹營銷處 | N81: A | P81: =COUNTIF([4]BALANCE!$A$1:$A$65536,[4]notouch!$A81) ->  | Q81: =COUNTIF([4]BALANCE!$A$1:$A$65536,[4]notouch!$H81) ->  | R81: =VLOOKUP(A81,'[5]Bill+Ship to Code (Active)_08'!$B$1:$N$3286,13,0) -> DCS_TT
A82: TW002338001B | B82: 福娥電業行 | C82: 19580811 | D82: 13513828 | E82: 桃竹營銷處 | F82: DWB | G82: 桃竹 | H82: DEALER_TT | I82: DCS_TT | J82: TW002338001B | K82: =VLOOKUP(A82,[3]工作表5!$A$2:$D$529,4,0) -> 221246 | L82: 桃竹營銷處 | N82: A | P82: =COUNTIF([4]BALANCE!$A$1:$A$65536,[4]notouch!$A82) ->  | Q82: =COUNTIF([4]BALANCE!$A$1:$A$65536,[4]notouch!$H82) ->  | R82: =VLOOKUP(A82,'[5]Bill+Ship to Code (Active)_08'!$B$1:$N$3286,13,0) -> DCS_TT
A83: TW002343001B | B83: 名富電器行 | C83: 19500615 | D83: 45162367 | E83: 桃竹營銷處 | F83: DWB | G83: 桃竹 | H83: DEALER_TT | I83: DCS_TT | J83: TW002343001B | K83: =VLOOKUP(A83,[3]工作表5!$A$2:$D$529,4,0) -> 198162 | L83: 桃竹營銷處 | N83: A | P83: =COUNTIF([4]BALANCE!$A$1:$A$65536,[4]notouch!$A83) ->  | Q83: =COUNTIF([4]BALANCE!$A$1:$A$65536,[4]notouch!$H83) ->  | R83: =VLOOKUP(A83,'[5]Bill+Ship to Code (Active)_08'!$B$1:$N$3286,13,0) -> DCS_TT
A84: TW002347001B | B84: 得興電器有限公司 | C84: 19690802 | D84: 89730711 | E84: 桃竹營銷處 | F84: DWB | G84: 桃竹 | H84: DEALER_TT | I84: DCS_TT | J84: TW002347001B | K84: =VLOOKUP(A84,[3]工作表5!$A$2:$D$529,4,0) -> 1567850 | L84: 桃竹營銷處 | N84: A | P84: =COUNTIF([4]BALANCE!$A$1:$A$65536,[4]notouch!$A84) ->  | Q84: =COUNTIF([4]BALANCE!$A$1:$A$65536,[4]notouch!$H84) ->  | R84: =VLOOKUP(A84,'[5]Bill+Ship to Code (Active)_08'!$B$1:$N$3286,13,0) -> DCS_TT
A85: TW002349001B | B85: 金長益電器有限公司 | C85: 19640714 | D85: 16908253 | E85: 桃竹營銷處 | F85: DWB | G85: 桃竹 | H85: DEALER_TT | I85: DLC_TT | J85: TW002349001B | K85: =VLOOKUP(A85,[3]工作表5!$A$2:$D$529,4,0) -> 502889 | L85: 桃竹營銷處 | N85: A | P85: =COUNTIF([4]BALANCE!$A$1:$A$65536,[4]notouch!$A85) ->  | Q85: =COUNTIF([4]BALANCE!$A$1:$A$65536,[4]notouch!$H85) ->  | R85: =VLOOKUP(A85,'[5]Bill+Ship to Code (Active)_08'!$B$1:$N$3286,13,0) -> DLC_TT
A86: TW002351001B | B86: 雅光有限公司 | C86: 19590805 | D86: 01189353 | E86: 台北營銷處 | F86: TPH | G86: 台北 | H86: DEALER_TT | I86: SPD_TT | J86: TW002351001B | K86: =VLOOKUP(A86,[3]工作表5!$A$2:$D$529,4,0) -> 3579618 | L86: 台北營銷處 | N86: A | P86: =COUNTIF([4]BALANCE!$A$1:$A$65536,[4]notouch!$A86) ->  | Q86: =COUNTIF([4]BALANCE!$A$1:$A$65536,[4]notouch!$H86) ->  | R86: =VLOOKUP(A86,'[5]Bill+Ship to Code (Active)_08'!$B$1:$N$3286,13,0) -> SPD_TT
A87: TW002351002B | B87: 雅光有限公司 | C87: XXXXXXXX | D87: XXXXXXXX | E87: SAC | F87: ID&SAC | G87: SAC Sales | H87: B2B_TT | I87: CAC_TT | N87: I | O87: 無往來 | P87: =COUNTIF([4]BALANCE!$A$1:$A$65536,[4]notouch!$A87) ->  | Q87: =COUNTIF([4]BALANCE!$A$1:$A$65536,[4]notouch!$H87) ->  | R87: =VLOOKUP(A87,'[5]Bill+Ship to Code (Active)_08'!$B$1:$N$3286,13,0) -> 
A88: TW002352001B | B88: 佳禾貿易有限公司 | C88: 19501112 | D88: 97310065 | E88: 台北營銷處 | F88: TPH | G88: 台北 | H88: DEALER_TT | I88: DLC_TT | J88: TW002352001B | K88: =VLOOKUP(A88,[3]工作表5!$A$2:$D$529,4,0) -> 0 | L88: 台北營銷處 | N88: A | P88: =COUNTIF([4]BALANCE!$A$1:$A$65536,[4]notouch!$A88) ->  | Q88: =COUNTIF([4]BALANCE!$A$1:$A$65536,[4]notouch!$H88) ->  | R88: =VLOOKUP(A88,'[5]Bill+Ship to Code (Active)_08'!$B$1:$N$3286,13,0) -> DLC_TT
A89: TW002359001B | B89: 宏仁電器行 | C89: 19690518 | D89: 92883893 | E89: 台北營銷處 | F89: TPH | G89: 台北 | H89: DEALER_TT | I89: DLC_TT | J89: TW002359001B | L89: 台北營銷處 | N89: A | P89: =COUNTIF([4]BALANCE!$A$1:$A$65536,[4]notouch!$A89) ->  | Q89: =COUNTIF([4]BALANCE!$A$1:$A$65536,[4]notouch!$H89) ->  | R89: =VLOOKUP(A89,'[5]Bill+Ship to Code (Active)_08'!$B$1:$N$3286,13,0) -> 
A90: TW002363001B | B90: 吳頡興電器企業有限公司 | C90: 19551115 | D90: 22905634 | E90: 台北營銷處 | F90: TPH | G90: 台北 | H90: DEALER_TT | I90: DLC_TT | J90: TW002363001B | K90: =VLOOKUP(A90,[3]工作表5!$A$2:$D$529,4,0) -> 0 | L90: 台北營銷處 | N90: A | P90: =COUNTIF([4]BALANCE!$A$1:$A$65536,[4]notouch!$A90) ->  | Q90: =COUNTIF([4]BALANCE!$A$1:$A$65536,[4]notouch!$H90) ->  | R90: =VLOOKUP(A90,'[5]Bill+Ship to Code (Active)_08'!$B$1:$N$3286,13,0) -> DLC_TT
A91: TW002368001B | B91: 健融電器行 | C91: 19590810 | D91: 02153403 | E91: 台北營銷處 | F91: TPH | G91: 台北 | H91: DEALER_TT | I91: DLC_TT | J91: TW002368001B | K91: =VLOOKUP(A91,[3]工作表5!$A$2:$D$529,4,0) -> 58190 | L91: 台北營銷處 | N91: A | P91: =COUNTIF([4]BALANCE!$A$1:$A$65536,[4]notouch!$A91) ->  | Q91: =COUNTIF([4]BALANCE!$A$1:$A$65536,[4]notouch!$H91) ->  | R91: =VLOOKUP(A91,'[5]Bill+Ship to Code (Active)_08'!$B$1:$N$3286,13,0) -> DLC_TT
A92: TW002372001B | B92: 承德國際有限公司 | C92: 19661020 | D92: 89960924 | E92: 台北營銷處 | F92: TPH | G92: 台北 | H92: DEALER_TT | I92: DCS_TT | J92: TW002372001B | K92: =VLOOKUP(A92,[3]工作表5!$A$2:$D$529,4,0) -> 270617 | L92: 台北營銷處 | N92: A | P92: =COUNTIF([4]BALANCE!$A$1:$A$65536,[4]notouch!$A92) ->  | Q92: =COUNTIF([4]BALANCE!$A$1:$A$65536,[4]notouch!$H92) ->  | R92: =VLOOKUP(A92,'[5]Bill+Ship to Code (Active)_08'!$B$1:$N$3286,13,0) -> DCS_TT
A93: TW002375001B | B93: 建而福電器有限公司 | C93: 19470824 | D93: 33842192 | E93: 台北營銷處 | F93: TPH | G93: 台北 | H93: DEALER_TT | I93: DLC_TT | J93: TW002375001B | L93: 台北營銷處 | N93: A | P93: =COUNTIF([4]BALANCE!$A$1:$A$65536,[4]notouch!$A93) ->  | Q93: =COUNTIF([4]BALANCE!$A$1:$A$65536,[4]notouch!$H93) ->  | R93: =VLOOKUP(A93,'[5]Bill+Ship to Code (Active)_08'!$B$1:$N$3286,13,0) -> 
A94: TW002376001B | B94: 新弘貿易有限公司 | C94: 19590115 | D94: 23004274 | E94: 台北營銷處 | F94: TPH | G94: 台北 | H94: DEALER_TT | I94: SPD_TT | J94: TW002376001B | K94: =VLOOKUP(A94,[3]工作表5!$A$2:$D$529,4,0) -> 930646 | L94: 台北營銷處 | N94: A | P94: =COUNTIF([4]BALANCE!$A$1:$A$65536,[4]notouch!$A94) ->  | Q94: =COUNTIF([4]BALANCE!$A$1:$A$65536,[4]notouch!$H94) ->  | R94: =VLOOKUP(A94,'[5]Bill+Ship to Code (Active)_08'!$B$1:$N$3286,13,0) -> SPD_TT
A95: TW002378001B | B95: 上順電器有限公司 | C95: 19550916 | D95: 23815317 | E95: 台北營銷處 | F95: TPH | G95: 台北 | H95: DEALER_TT | I95: DCS_TT | J95: TW002378001B | K95: =VLOOKUP(A95,[3]工作表5!$A$2:$D$529,4,0) -> 78388 | L95: 台北營銷處 | N95: A | P95: =COUNTIF([4]BALANCE!$A$1:$A$65536,[4]notouch!$A95) ->  | Q95: =COUNTIF([4]BALANCE!$A$1:$A$65536,[4]notouch!$H95) ->  | R95: =VLOOKUP(A95,'[5]Bill+Ship to Code (Active)_08'!$B$1:$N$3286,13,0) -> DCS_TT
A96: TW002381001B | B96: 萬豐視聽電業有限公司 | C96: 19620320 | D96: 22592990 | E96: 台北營銷處 | F96: TPH | G96: 台北 | H96: DEALER_TT | I96: DCS_TT | J96: TW002381001B | K96: =VLOOKUP(A96,[3]工作表5!$A$2:$D$529,4,0) -> 2629144 | L96: 台北營銷處 | N96: A | P96: =COUNTIF([4]BALANCE!$A$1:$A$65536,[4]notouch!$A96) ->  | Q96: =COUNTIF([4]BALANCE!$A$1:$A$65536,[4]notouch!$H96) ->  | R96: =VLOOKUP(A96,'[5]Bill+Ship to Code (Active)_08'!$B$1:$N$3286,13,0) -> DCS_TT
A97: TW002382001B | B97: 訊立電器有限公司 | C97: 19560601 | D97: 12710694 | E97: 台北營銷處 | F97: TPH | G97: 台北 | H97: DEALER_TT | I97: DLC_TT | J97: TW002382001B | L97: 台北營銷處 | N97: A | P97: =COUNTIF([4]BALANCE!$A$1:$A$65536,[4]notouch!$A97) ->  | Q97: =COUNTIF([4]BALANCE!$A$1:$A$65536,[4]notouch!$H97) ->  | R97: =VLOOKUP(A97,'[5]Bill+Ship to Code (Active)_08'!$B$1:$N$3286,13,0) -> 
A98: TW002387001B | B98: 鎮吉實業 | C98: 19651125 | D98: 70662642 | E98: 台北營銷處 | F98: TPH | G98: 台北 | H98: DEALER_TT | I98: DCS_TT | K98: =VLOOKUP(A98,[3]工作表5!$A$2:$D$529,4,0) -> 81283 | N98: A | O98: =IF(N98="I","無往來",IF(SUM(P98:Q98)>0,"OK","沒有promotion")) ->  | P98: =COUNTIF([4]BALANCE!$A$1:$A$65536,[4]notouch!$A98) ->  | Q98: =COUNTIF([4]BALANCE!$A$1:$A$65536,[4]notouch!$H98) ->  | R98: =VLOOKUP(A98,'[5]Bill+Ship to Code (Active)_08'!$B$1:$N$3286,13,0) -> DCS_TT
A99: TW002391001B | B99: 益大家電事業有限公司 | C99: 24239141 | D99: 22573614 | E99: 台北營銷處 | F99: TPH | G99: 台北 | H99: DEALER_TT | I99: DLC_TT | J99: TW002391001B | K99: =VLOOKUP(A99,[3]工作表5!$A$2:$D$529,4,0) -> 0 | L99: 台北營銷處 | N99: A | P99: =COUNTIF([4]BALANCE!$A$1:$A$65536,[4]notouch!$A99) ->  | Q99: =COUNTIF([4]BALANCE!$A$1:$A$65536,[4]notouch!$H99) ->  | R99: =VLOOKUP(A99,'[5]Bill+Ship to Code (Active)_08'!$B$1:$N$3286,13,0) -> DLC_TT
A100: TW002398001B | B100: 彥昌電器行 | C100: 26416154 | D100: 02300192 | E100: 台北營銷處 | F100: TPH | G100: 台北 | H100: DEALER_TT | I100: DLC_TT | J100: TW002398001B | L100: 台北營銷處 | N100: A | P100: =COUNTIF([4]BALANCE!$A$1:$A$65536,[4]notouch!$A100) ->  | Q100: =COUNTIF([4]BALANCE!$A$1:$A$65536,[4]notouch!$H100) ->  | R100: =VLOOKUP(A100,'[5]Bill+Ship to Code (Active)_08'!$B$1:$N$3286,13,0) -> 
A101: TW002400001B | B101: 金亞實業有限公司 | C101: 26473088 | D101: 89230504 | E101: 台北營銷處 | F101: TPH | G101: 台北 | H101: DEALER_TT | I101: SPD_TT | J101: TW002400001B | K101: =VLOOKUP(A101,[3]工作表5!$A$2:$D$529,4,0) -> 4866760 | L101: 台北營銷處 | N101: A | P101: =COUNTIF([4]BALANCE!$A$1:$A$65536,[4]notouch!$A101) ->  | Q101: =COUNTIF([4]BALANCE!$A$1:$A$65536,[4]notouch!$H101) ->  | R101: =VLOOKUP(A101,'[5]Bill+Ship to Code (Active)_08'!$B$1:$N$3286,13,0) -> SPD_TT
A102: TW002409001B | B102: 太空電器行 | C102: 19551106 | D102: 77300011 | E102: 高屏營銷處 | F102: GWB | G102: 高屏 | H102: DEALER_TT | I102: DLC_TT | J102: TW002409001B | L102: 高屏營銷處 | N102: A | P102: =COUNTIF([4]BALANCE!$A$1:$A$65536,[4]notouch!$A102) ->  | Q102: =COUNTIF([4]BALANCE!$A$1:$A$65536,[4]notouch!$H102) ->  | R102: =VLOOKUP(A102,'[5]Bill+Ship to Code (Active)_08'!$B$1:$N$3286,13,0) -> 
A103: TW002409002B | B103: 太空電器行 | C103: XXXXXXXX | D103: XXXXXXXX | E103: SAC | F103: ID&SAC | G103: SAC Sales | H103: B2B_TT | I103: CAC_TT | N103: I | O103: 無往來 | P103: =COUNTIF([4]BALANCE!$A$1:$A$65536,[4]notouch!$A103) ->  | Q103: =COUNTIF([4]BALANCE!$A$1:$A$65536,[4]notouch!$H103) ->  | R103: =VLOOKUP(A103,'[5]Bill+Ship to Code (Active)_08'!$B$1:$N$3286,13,0) -> 
A104: TW002410001B | B104: 全新電器有限公司 | C104: 19510722 | D104: 20760963 | E104: 台北營銷處 | F104: TPH | G104: 台北 | H104: DEALER_TT | I104: DLC_TT | N104: A | P104: =COUNTIF([4]BALANCE!$A$1:$A$65536,[4]notouch!$A104) ->  | Q104: =COUNTIF([4]BALANCE!$A$1:$A$65536,[4]notouch!$H104) ->  | R104: =VLOOKUP(A104,'[5]Bill+Ship to Code (Active)_08'!$B$1:$N$3286,13,0) -> 
A105: TW002411001B | B105: 金門電器行 | C105: 19530605 | D105: 77265149 | E105: 高屏營銷處 | F105: GWB | G105: 高屏 | H105: DEALER_TT | I105: DLC_TT | J105: TW002411001B | K105: =VLOOKUP(A105,[3]工作表5!$A$2:$D$529,4,0) -> 220957 | L105: 高屏營銷處 | N105: A | P105: =COUNTIF([4]BALANCE!$A$1:$A$65536,[4]notouch!$A105) ->  | Q105: =COUNTIF([4]BALANCE!$A$1:$A$65536,[4]notouch!$H105) ->  | R105: =VLOOKUP(A105,'[5]Bill+Ship to Code (Active)_08'!$B$1:$N$3286,13,0) -> DLC_TT
A106: TW002416001B | B106: 國寶電業行 | C106: 19680525 | D106: 12180750 | E106: 台北營銷處 | F106: TPH | G106: 台北 | H106: DEALER_TT | I106: DLC_TT | J106: TW002416001B | L106: 台北營銷處 | N106: A | P106: =COUNTIF([4]BALANCE!$A$1:$A$65536,[4]notouch!$A106) ->  | Q106: =COUNTIF([4]BALANCE!$A$1:$A$65536,[4]notouch!$H106) ->  | R106: =VLOOKUP(A106,'[5]Bill+Ship to Code (Active)_08'!$B$1:$N$3286,13,0) -> 
A107: TW002420001B | B107: 高登電器有限公司 | C107: 19551029 | D107: 22629645 | E107: 台北營銷處 | F107: TPH | G107: 台北 | H107: DEALER_TT | I107: DLC_TT | J107: TW002420001B | K107: =VLOOKUP(A107,[3]工作表5!$A$2:$D$529,4,0) -> 186028 | L107: 台北營銷處 | N107: A | P107: =COUNTIF([4]BALANCE!$A$1:$A$65536,[4]notouch!$A107) ->  | Q107: =COUNTIF([4]BALANCE!$A$1:$A$65536,[4]notouch!$H107) ->  | R107: =VLOOKUP(A107,'[5]Bill+Ship to Code (Active)_08'!$B$1:$N$3286,13,0) -> DLC_TT
A108: TW002427001B | B108: 國豐電業商行 | C108: 19551014 | D108: 94836355 | E108: 台北營銷處 | F108: TPH | G108: 台北 | H108: DEALER_TT | I108: DLC_TT | J108: TW002427001B | L108: 台北營銷處 | N108: A | P108: =COUNTIF([4]BALANCE!$A$1:$A$65536,[4]notouch!$A108) ->  | Q108: =COUNTIF([4]BALANCE!$A$1:$A$65536,[4]notouch!$H108) ->  | R108: =VLOOKUP(A108,'[5]Bill+Ship to Code (Active)_08'!$B$1:$N$3286,13,0) -> 
A109: TW002428001B | B109: 精實電器行 | C109: 19740715 | D109: 64803602 | E109: 台北營銷處 | F109: TPH | G109: 台北 | H109: DEALER_TT | I109: DLC_TT | J109: TW002428001B | K109: =VLOOKUP(A109,[3]工作表5!$A$2:$D$529,4,0) -> 94971 | L109: 台北營銷處 | N109: A | P109: =COUNTIF([4]BALANCE!$A$1:$A$65536,[4]notouch!$A109) ->  | Q109: =COUNTIF([4]BALANCE!$A$1:$A$65536,[4]notouch!$H109) ->  | R109: =VLOOKUP(A109,'[5]Bill+Ship to Code (Active)_08'!$B$1:$N$3286,13,0) -> DLC_TT
A110: TW002431001B | B110: 一世代電氣行 | C110: 19620315 | D110: 18063076 | E110: 台北營銷處 | F110: TPH | G110: 台北 | H110: DEALER_TT | I110: DCS_TT | J110: TW002431001B | K110: =VLOOKUP(A110,[3]工作表5!$A$2:$D$529,4,0) -> 221524 | L110: 台北營銷處 | N110: A | P110: =COUNTIF([4]BALANCE!$A$1:$A$65536,[4]notouch!$A110) ->  | Q110: =COUNTIF([4]BALANCE!$A$1:$A$65536,[4]notouch!$H110) ->  | R110: =VLOOKUP(A110,'[5]Bill+Ship to Code (Active)_08'!$B$1:$N$3286,13,0) -> DCS_TT
A111: TW002434001B | B111: 上將電業社 | C111: 19550423 | D111: 92933057 | E111: 台北營銷處 | F111: TPH | G111: 台北 | H111: DEALER_TT | I111: DLC_TT | J111: TW002434001B | K111: =VLOOKUP(A111,[3]工作表5!$A$2:$D$529,4,0) -> 55692 | L111: 台北營銷處 | N111: A | P111: =COUNTIF([4]BALANCE!$A$1:$A$65536,[4]notouch!$A111) ->  | Q111: =COUNTIF([4]BALANCE!$A$1:$A$65536,[4]notouch!$H111) ->  | R111: =VLOOKUP(A111,'[5]Bill+Ship to Code (Active)_08'!$B$1:$N$3286,13,0) -> DLC_TT
A112: TW002441001B | B112: 上揚電器行 | C112: 19660523 | D112: 02418034 | E112: 台北營銷處 | F112: TPH | G112: 台北 | H112: DEALER_TT | I112: DLC_TT | J112: TW002441001B | K112: =VLOOKUP(A112,[3]工作表5!$A$2:$D$529,4,0) -> 29756 | L112: 台北營銷處 | N112: A | P112: =COUNTIF([4]BALANCE!$A$1:$A$65536,[4]notouch!$A112) ->  | Q112: =COUNTIF([4]BALANCE!$A$1:$A$65536,[4]notouch!$H112) ->  | R112: =VLOOKUP(A112,'[5]Bill+Ship to Code (Active)_08'!$B$1:$N$3286,13,0) -> DLC_TT
A113: TW002444001B | B113: 台灣電器專賣店 | C113: 19700805 | D113: 98077164 | E113: 台北營銷處 | F113: TPH | G113: 台北 | H113: DEALER_TT | I113: DCS_TT | J113: TW002444001B | K113: =VLOOKUP(A113,[3]工作表5!$A$2:$D$529,4,0) -> 305622 | L113: 台北營銷處 | N113: A | P113: =COUNTIF([4]BALANCE!$A$1:$A$65536,[4]notouch!$A113) ->  | Q113: =COUNTIF([4]BALANCE!$A$1:$A$65536,[4]notouch!$H113) ->  | R113: =VLOOKUP(A113,'[5]Bill+Ship to Code (Active)_08'!$B$1:$N$3286,13,0) -> DCS_TT
A114: TW002448001B | B114: 宜勇電器 | C114: 19631117 | D114: 66256925 | E114: 台北營銷處 | F114: TPH | G114: 台北 | H114: DEALER_TT | I114: DLC_TT | N114: I | O114: 無往來 | P114: =COUNTIF([4]BALANCE!$A$1:$A$65536,[4]notouch!$A114) ->  | Q114: =COUNTIF([4]BALANCE!$A$1:$A$65536,[4]notouch!$H114) ->  | R114: =VLOOKUP(A114,'[5]Bill+Ship to Code (Active)_08'!$B$1:$N$3286,13,0) -> 
A115: TW002450001B | B115: 日大電業行 | C115: 19770914 | D115: 40523763 | E115: 台北營銷處 | F115: TPH | G115: 台北 | H115: DEALER_TT | I115: DLC_TT | J115: TW002450001B | K115: =VLOOKUP(A115,[3]工作表5!$A$2:$D$529,4,0) -> 37316 | L115: 台北營銷處 | N115: A | P115: =COUNTIF([4]BALANCE!$A$1:$A$65536,[4]notouch!$A115) ->  | Q115: =COUNTIF([4]BALANCE!$A$1:$A$65536,[4]notouch!$H115) ->  | R115: =VLOOKUP(A115,'[5]Bill+Ship to Code (Active)_08'!$B$1:$N$3286,13,0) -> DLC_TT
A116: TW002456001B | B116: 燦坤實業股份有限公司 | C116: 69568009 | D116: 69568009 | E116: MMCS-燦坤 | F116: MMCS | G116: MMCS | H116: MMCS_TK3C | I116: CSC_TT | J116: TW002456001B | K116: =VLOOKUP(A116,[3]工作表5!$A$2:$D$529,4,0) -> 300931324 | L116: 燦坤 | N116: A | P116: =COUNTIF([4]BALANCE!$A$1:$A$65536,[4]notouch!$A116) ->  | Q116: =COUNTIF([4]BALANCE!$A$1:$A$65536,[4]notouch!$H116) ->  | R116: =VLOOKUP(A116,'[5]Bill+Ship to Code (Active)_08'!$B$1:$N$3286,13,0) -> 
A117: TW002501001B | B117: 家福股份有限公司總公司 | C117: 22662550 | D117: 22662550 | E117: MMCS-家福 | F117: MMCS | G117: MMCS | H117: MMCS_C4 | I117: MMC_TT | J117: TW002501001B | K117: =VLOOKUP(A117,[3]工作表5!$A$2:$D$529,4,0) -> 213932937 | L117: 家樂福 | N117: A | P117: =COUNTIF([4]BALANCE!$A$1:$A$65536,[4]notouch!$A117) ->  | Q117: =COUNTIF([4]BALANCE!$A$1:$A$65536,[4]notouch!$H117) ->  | R117: =VLOOKUP(A117,'[5]Bill+Ship to Code (Active)_08'!$B$1:$N$3286,13,0) -> MMC_TT
A118: TW002514001B | B118: 今漢電器有限公司 | C118: 19591213 | D118: 22117460 | E118: 台北營銷處 | F118: TPH | G118: 台北 | H118: DEALER_TT | I118: SPD_TT | J118: TW002514001B | K118: =VLOOKUP(A118,[3]工作表5!$A$2:$D$529,4,0) -> 1287995 | L118: 台北營銷處 | N118: A | P118: =COUNTIF([4]BALANCE!$A$1:$A$65536,[4]notouch!$A118) ->  | Q118: =COUNTIF([4]BALANCE!$A$1:$A$65536,[4]notouch!$H118) ->  | R118: =VLOOKUP(A118,'[5]Bill+Ship to Code (Active)_08'!$B$1:$N$3286,13,0) -> SPD_TT
A119: TW002516001B | B119: 順寶電器 | C119: 19520904 | D119: 34159393 | E119: 台北營銷處 | F119: TPH | G119: 台北 | H119: DEALER_TT | I119: DLC_TT | N119: I | O119: 無往來 | P119: =COUNTIF([4]BALANCE!$A$1:$A$65536,[4]notouch!$A119) ->  | Q119: =COUNTIF([4]BALANCE!$A$1:$A$65536,[4]notouch!$H119) ->  | R119: =VLOOKUP(A119,'[5]Bill+Ship to Code (Active)_08'!$B$1:$N$3286,13,0) -> 
A120: TW002525001B | B120: 大潤發流通事業股份有限公司 | C120: 97165560 | D120: 97165560 | E120: MMCS-大潤發 | F120: MMCS | G120: MMCS | H120: MMCS_RT | I120: MMC_TT | J120: TW002525001B | K120: =VLOOKUP(A120,[3]工作表5!$A$2:$D$529,4,0) -> 87933837 | L120: 大潤發 | N120: A | P120: =COUNTIF([4]BALANCE!$A$1:$A$65536,[4]notouch!$A120) ->  | Q120: =COUNTIF([4]BALANCE!$A$1:$A$65536,[4]notouch!$H120) ->  | R120: =VLOOKUP(A120,'[5]Bill+Ship to Code (Active)_08'!$B$1:$N$3286,13,0) -> MMC_TT
A121: TW002529001B | B121: 遠百企業股份有限公司 | C121: 05714195 | D121: 05714195 | E121: MMCS-愛買 | F121: MMCS | G121: MMCS | H121: MMCS_OTHERS | I121: MMC_TT | J121: TW002529001B | K121: =VLOOKUP(A121,[3]工作表5!$A$2:$D$529,4,0) -> 27480292 | L121: 愛買 | N121: A | P121: =COUNTIF([4]BALANCE!$A$1:$A$65536,[4]notouch!$A121) ->  | Q121: =COUNTIF([4]BALANCE!$A$1:$A$65536,[4]notouch!$H121) ->  | R121: =VLOOKUP(A121,'[5]Bill+Ship to Code (Active)_08'!$B$1:$N$3286,13,0) -> MMC_TT
A122: TW002535001B | B122: 瑞豪電器行 | C122: 19711205 | D122: 67899377 | E122: 台北營銷處 | F122: TPH | G122: 台北 | H122: DEALER_TT | I122: DLC_TT | J122: TW002535001B | K122: =VLOOKUP(A122,[3]工作表5!$A$2:$D$529,4,0) -> 80108 | L122: 台北營銷處 | N122: A | P122: =COUNTIF([4]BALANCE!$A$1:$A$65536,[4]notouch!$A122) ->  | Q122: =COUNTIF([4]BALANCE!$A$1:$A$65536,[4]notouch!$H122) ->  | R122: =VLOOKUP(A122,'[5]Bill+Ship to Code (Active)_08'!$B$1:$N$3286,13,0) -> DLC_TT
A123: TW002542001B | B123: 佳麗寶股份有限公司 | C123: 19470128 | D123: 04897247 | E123: 台北營銷處 | F123: TPH | G123: 台北 | H123: DEALER_TT | I123: DCS_TT | N123: I | O123: 無往來 | P123: =COUNTIF([4]BALANCE!$A$1:$A$65536,[4]notouch!$A123) ->  | Q123: =COUNTIF([4]BALANCE!$A$1:$A$65536,[4]notouch!$H123) ->  | R123: =VLOOKUP(A123,'[5]Bill+Ship to Code (Active)_08'!$B$1:$N$3286,13,0) -> 
A124: TW002557001B | B124: 全民電子音響專賣店 | C124: TW002557 | D124: 77593945 | E124: 台中營銷處 | F124: DJB | G124: 台中 | H124: DEALER_TT | I124: SPD_TT | J124: TW002557001B | K124: =VLOOKUP(A124,[3]工作表5!$A$2:$D$529,4,0) -> 527116 | L124: 台中營銷處 | N124: A | P124: =COUNTIF([4]BALANCE!$A$1:$A$65536,[4]notouch!$A124) ->  | Q124: =COUNTIF([4]BALANCE!$A$1:$A$65536,[4]notouch!$H124) ->  | R124: =VLOOKUP(A124,'[5]Bill+Ship to Code (Active)_08'!$B$1:$N$3286,13,0) -> SPD_TT
A125: TW002572001B | B125: 新傑電器有限公司 | C125: 19540819 | D125: 12749635 | E125: 高屏營銷處 | F125: GWB | G125: 高屏 | H125: DEALER_TT | I125: SPD_TT | J125: TW002572001B | K125: =VLOOKUP(A125,[3]工作表5!$A$2:$D$529,4,0) -> 2658145 | L125: 高屏營銷處 | N125: A | P125: =COUNTIF([4]BALANCE!$A$1:$A$65536,[4]notouch!$A125) ->  | Q125: =COUNTIF([4]BALANCE!$A$1:$A$65536,[4]notouch!$H125) ->  | R125: =VLOOKUP(A125,'[5]Bill+Ship to Code (Active)_08'!$B$1:$N$3286,13,0) -> SPD_TT
A126: TW002575001B | B126: 東欣電器商行 | C126: 19510527 | D126: 08001827 | E126: 高屏營銷處 | F126: GWB | G126: 高屏 | H126: DEALER_TT | I126: DLC_TT | J126: TW002575001B | K126: =VLOOKUP(A126,[3]工作表5!$A$2:$D$529,4,0) -> 62865 | L126: 高屏營銷處 | N126: A | P126: =COUNTIF([4]BALANCE!$A$1:$A$65536,[4]notouch!$A126) ->  | Q126: =COUNTIF([4]BALANCE!$A$1:$A$65536,[4]notouch!$H126) ->  | R126: =VLOOKUP(A126,'[5]Bill+Ship to Code (Active)_08'!$B$1:$N$3286,13,0) -> DLC_TT
A127: TW002630001B | B127: 錦穗實業社 | C127: 19571107 | D127: 73713103 | E127: 嘉南營銷處 | F127: DNB | G127: 嘉南 | H127: DEALER_TT | I127: DLC_TT | J127: TW002630001B | K127: =VLOOKUP(A127,[3]工作表5!$A$2:$D$529,4,0) -> 0 | L127: 嘉南營銷處 | N127: A | P127: =COUNTIF([4]BALANCE!$A$1:$A$65536,[4]notouch!$A127) ->  | Q127: =COUNTIF([4]BALANCE!$A$1:$A$65536,[4]notouch!$H127) ->  | R127: =VLOOKUP(A127,'[5]Bill+Ship to Code (Active)_08'!$B$1:$N$3286,13,0) -> DLC_TT
A128: TW002652001B | B128: 第二電器音響有限公司 | C128: 19600410 | D128: 33837276 | E128: 台北營銷處 | F128: TPH | G128: 台北 | H128: DEALER_TT | I128: DCS_TT | J128: TW002652001B | K128: =VLOOKUP(A128,[3]工作表5!$A$2:$D$529,4,0) -> 1205297 | L128: 台北營銷處 | N128: A | P128: =COUNTIF([4]BALANCE!$A$1:$A$65536,[4]notouch!$A128) ->  | Q128: =COUNTIF([4]BALANCE!$A$1:$A$65536,[4]notouch!$H128) ->  | R128: =VLOOKUP(A128,'[5]Bill+Ship to Code (Active)_08'!$B$1:$N$3286,13,0) -> DCS_TT
A129: TW002666001B | B129: 世和電器行 | C129: 19661031 | D129: 87705862 | E129: 桃竹營銷處 | F129: DWB | G129: 桃竹 | H129: DEALER_TT | I129: DLC_TT | N129: A | P129: =COUNTIF([4]BALANCE!$A$1:$A$65536,[4]notouch!$A129) ->  | Q129: =COUNTIF([4]BALANCE!$A$1:$A$65536,[4]notouch!$H129) ->  | R129: =VLOOKUP(A129,'[5]Bill+Ship to Code (Active)_08'!$B$1:$N$3286,13,0) -> DLC_TT
A130: TW002666002B | B130: 世和電器行 | C130: 19661031 | D130: 87705862 | E130: ETC | F130: ETC | G130: ETC | H130: ETC | I130: ETC_TT | J130: TW002666002B | L130: ETC | N130: A | P130: =COUNTIF([4]BALANCE!$A$1:$A$65536,[4]notouch!$A130) ->  | Q130: =COUNTIF([4]BALANCE!$A$1:$A$65536,[4]notouch!$H130) ->  | R130: =VLOOKUP(A130,'[5]Bill+Ship to Code (Active)_08'!$B$1:$N$3286,13,0) -> ETC_TT
A131: TW002674001B | B131: 明聳企業有限公司 | C131: XXXXXXXX | D131: XXXXXXXX | E131: SAC | F131: ID&SAC | G131: SAC Sales | H131: B2B_TT | I131: CAC_TT | N131: I | O131: 無往來 | P131: =COUNTIF([4]BALANCE!$A$1:$A$65536,[4]notouch!$A131) ->  | Q131: =COUNTIF([4]BALANCE!$A$1:$A$65536,[4]notouch!$H131) ->  | R131: =VLOOKUP(A131,'[5]Bill+Ship to Code (Active)_08'!$B$1:$N$3286,13,0) -> 
A132: TW002675001B | B132: 利聲家電有限公司 | C132: 19470925 | D132: 86101317 | E132: 嘉南營銷處 | F132: DNB | G132: 嘉南 | H132: DEALER_TT | I132: DLC_TT | J132: TW002675001B | K132: =VLOOKUP(A132,[3]工作表5!$A$2:$D$529,4,0) -> 0 | L132: 嘉南營銷處 | N132: A | P132: =COUNTIF([4]BALANCE!$A$1:$A$65536,[4]notouch!$A132) ->  | Q132: =COUNTIF([4]BALANCE!$A$1:$A$65536,[4]notouch!$H132) ->  | R132: =VLOOKUP(A132,'[5]Bill+Ship to Code (Active)_08'!$B$1:$N$3286,13,0) -> DLC_TT
A133: TW002677001B | B133: 銘山電器 | C133: 23393762 | D133: 23328168 | E133: 台中營銷處 | F133: DJB | G133: 台中 | H133: DEALER_TT | I133: DLC_TT | N133: I | O133: 無往來 | P133: =COUNTIF([4]BALANCE!$A$1:$A$65536,[4]notouch!$A133) ->  | Q133: =COUNTIF([4]BALANCE!$A$1:$A$65536,[4]notouch!$H133) ->  | R133: =VLOOKUP(A133,'[5]Bill+Ship to Code (Active)_08'!$B$1:$N$3286,13,0) -> 
A134: TW002678001B | B134: 昇泰電業行 | C134: TW002678 | D134: 05830687 | E134: 台中營銷處 | F134: DJB | G134: 台中 | H134: DEALER_TT | I134: DLC_TT | N134: I | O134: 無往來 | P134: =COUNTIF([4]BALANCE!$A$1:$A$65536,[4]notouch!$A134) ->  | Q134: =COUNTIF([4]BALANCE!$A$1:$A$65536,[4]notouch!$H134) ->  | R134: =VLOOKUP(A134,'[5]Bill+Ship to Code (Active)_08'!$B$1:$N$3286,13,0) -> 
A135: TW002685001B | B135: 威揚電器行 | C135: 19690225 | D135: 17276277 | E135: 台北營銷處 | F135: TPH | G135: 台北 | H135: DEALER_TT | I135: SPD_TT | J135: TW002685001B | K135: =VLOOKUP(A135,[3]工作表5!$A$2:$D$529,4,0) -> 537779 | L135: 台北營銷處 | N135: A | P135: =COUNTIF([4]BALANCE!$A$1:$A$65536,[4]notouch!$A135) ->  | Q135: =COUNTIF([4]BALANCE!$A$1:$A$65536,[4]notouch!$H135) ->  | R135: =VLOOKUP(A135,'[5]Bill+Ship to Code (Active)_08'!$B$1:$N$3286,13,0) -> SPD_TT
A136: TW002710001B | B136: 建利電子音響 | C136: 19580810 | D136: 18324380 | E136: 台中營銷處 | F136: DJB | G136: 台中 | H136: DEALER_TT | I136: DLC_TT | N136: A | P136: =COUNTIF([4]BALANCE!$A$1:$A$65536,[4]notouch!$A136) ->  | Q136: =COUNTIF([4]BALANCE!$A$1:$A$65536,[4]notouch!$H136) ->  | R136: =VLOOKUP(A136,'[5]Bill+Ship to Code (Active)_08'!$B$1:$N$3286,13,0) -> DLC_TT
A137: TW002718001B | B137: 全國電子股份有限公司 | C137: 22006252 | D137: 22006252 | E137: MMCS-全國 | F137: MMCS | G137: MMCS | H137: MMCS_E-LIFE | I137: CSC_TT | J137: TW002718001B | K137: =VLOOKUP(A137,[3]工作表5!$A$2:$D$529,4,0) -> 302066431 | L137: 全國 | N137: A | P137: =COUNTIF([4]BALANCE!$A$1:$A$65536,[4]notouch!$A137) ->  | Q137: =COUNTIF([4]BALANCE!$A$1:$A$65536,[4]notouch!$H137) ->  | R137: =VLOOKUP(A137,'[5]Bill+Ship to Code (Active)_08'!$B$1:$N$3286,13,0) -> 
A138: TW002720001B | B138: 天聲電器商行 | C138: 19540401 | D138: 98249862 | E138: 桃竹營銷處 | F138: DWB | G138: 桃竹 | H138: DEALER_TT | I138: DLC_TT | J138: TW002720001B | K138: =VLOOKUP(A138,[3]工作表5!$A$2:$D$529,4,0) -> 72599 | L138: 桃竹營銷處 | N138: A | P138: =COUNTIF([4]BALANCE!$A$1:$A$65536,[4]notouch!$A138) ->  | Q138: =COUNTIF([4]BALANCE!$A$1:$A$65536,[4]notouch!$H138) ->  | R138: =VLOOKUP(A138,'[5]Bill+Ship to Code (Active)_08'!$B$1:$N$3286,13,0) -> DLC_TT
A139: TW002721001B | B139: 統偉視聽工程有限公司 | C139: 19591014 | D139: 22669408 | E139: 桃竹營銷處 | F139: DWB | G139: 桃竹 | H139: DEALER_TT | I139: DCS_TT | J139: TW002721001B | K139: =VLOOKUP(A139,[3]工作表5!$A$2:$D$529,4,0) -> 808644 | L139: 桃竹營銷處 | N139: A | P139: =COUNTIF([4]BALANCE!$A$1:$A$65536,[4]notouch!$A139) ->  | Q139: =COUNTIF([4]BALANCE!$A$1:$A$65536,[4]notouch!$H139) ->  | R139: =VLOOKUP(A139,'[5]Bill+Ship to Code (Active)_08'!$B$1:$N$3286,13,0) -> DCS_TT
A140: TW002725001B | B140: 侑興電器有限公司 | C140: TW002725 | D140: 22682057 | E140: 台中營銷處 | F140: DJB | G140: 台中 | H140: DEALER_TT | I140: DLC_TT | J140: TW002725001B | L140: 台中營銷處 | N140: A | P140: =COUNTIF([4]BALANCE!$A$1:$A$65536,[4]notouch!$A140) ->  | Q140: =COUNTIF([4]BALANCE!$A$1:$A$65536,[4]notouch!$H140) ->  | R140: =VLOOKUP(A140,'[5]Bill+Ship to Code (Active)_08'!$B$1:$N$3286,13,0) -> DLC_TT
A141: TW002725002B | B141: 侑興電器有限公司 | C141: XXXXXXXX | D141: XXXXXXXX | E141: SAC | F141: ID&SAC | G141: SAC Sales | H141: B2B_TT | I141: CAC_TT | J141: TW002725002B | N141: I | O141: 無往來 | P141: =COUNTIF([4]BALANCE!$A$1:$A$65536,[4]notouch!$A141) ->  | Q141: =COUNTIF([4]BALANCE!$A$1:$A$65536,[4]notouch!$H141) ->  | R141: =VLOOKUP(A141,'[5]Bill+Ship to Code (Active)_08'!$B$1:$N$3286,13,0) -> 
A142: TW002745001B | B142: 全英電器有限公司 | C142: 19530909 | D142: 30976506 | E142: 台北營銷處 | F142: TPH | G142: 台北 | H142: DEALER_TT | I142: DLC_TT | J142: TW002745001B | L142: 台北營銷處 | N142: A | O142: =IF(N142="I","無往來",IF(SUM(P142:Q142)>0,"OK","沒有promotion")) ->  | P142: =COUNTIF([4]BALANCE!$A$1:$A$65536,[4]notouch!$A142) ->  | Q142: =COUNTIF([4]BALANCE!$A$1:$A$65536,[4]notouch!$H142) ->  | R142: =VLOOKUP(A142,'[5]Bill+Ship to Code (Active)_08'!$B$1:$N$3286,13,0) -> DLC_TT
A143: TW002748001B | B143: 創作電子音響專賣店 | C143: TW002748 | D143: 81964433 | E143: 台中營銷處 | F143: DJB | G143: 台中 | H143: DEALER_TT | I143: DCS_TT | J143: TW002748001B | K143: =VLOOKUP(A143,[3]工作表5!$A$2:$D$529,4,0) -> 157203 | L143: 台中營銷處 | N143: A | P143: =COUNTIF([4]BALANCE!$A$1:$A$65536,[4]notouch!$A143) ->  | Q143: =COUNTIF([4]BALANCE!$A$1:$A$65536,[4]notouch!$H143) ->  | R143: =VLOOKUP(A143,'[5]Bill+Ship to Code (Active)_08'!$B$1:$N$3286,13,0) -> DCS_TT
A144: TW002750001B | B144: 集雅社股份有限公司 | C144: 89266170 | D144: 89266170 | E144: HPC | F144: DEPT | G144: 百貨 | H144: DEALER_DEPT | I144: DEALER_DEPT | J144: TW002750001B | K144: =VLOOKUP(A144,[3]工作表5!$A$2:$D$529,4,0) -> 91676587 | L144: 百貨 | N144: A | P144: =COUNTIF([4]BALANCE!$A$1:$A$65536,[4]notouch!$A144) ->  | Q144: =COUNTIF([4]BALANCE!$A$1:$A$65536,[4]notouch!$H144) ->  | R144: =VLOOKUP(A144,'[5]Bill+Ship to Code (Active)_08'!$B$1:$N$3286,13,0) -> DEPT_TT
A145: TW002755001B | B145: 聯鈦冷凍空調電器行 | C145: 19660924 | D145: 14156334 | E145: 嘉南營銷處 | F145: DNB | G145: 嘉南 | H145: DEALER_TT | I145: DCS_TT | J145: TW002755001B | K145: =VLOOKUP(A145,[3]工作表5!$A$2:$D$529,4,0) -> 186388 | L145: 嘉南營銷處 | N145: A | P145: =COUNTIF([4]BALANCE!$A$1:$A$65536,[4]notouch!$A145) ->  | Q145: =COUNTIF([4]BALANCE!$A$1:$A$65536,[4]notouch!$H145) ->  | R145: =VLOOKUP(A145,'[5]Bill+Ship to Code (Active)_08'!$B$1:$N$3286,13,0) -> DCS_TT
A146: TW002757001B | B146: 慧聲電器行 | C146: 19601115 | D146: 78215533 | E146: 台北營銷處 | F146: TPH | G146: 台北 | H146: DEALER_TT | I146: DLC_TT | J146: TW002757001B | L146: 台北營銷處 | N146: A | P146: =COUNTIF([4]BALANCE!$A$1:$A$65536,[4]notouch!$A146) ->  | Q146: =COUNTIF([4]BALANCE!$A$1:$A$65536,[4]notouch!$H146) ->  | R146: =VLOOKUP(A146,'[5]Bill+Ship to Code (Active)_08'!$B$1:$N$3286,13,0) -> DLC_TT
A147: TW002758001B | B147: 秀翔實業有限公司 | C147: 89429694 | D147: 89429694 | E147: HPC | F147: DEPT | G147: 百貨 | H147: DEALER_DEPT | I147: DEALER_DEPT | J147: TW002758001B | K147: =VLOOKUP(A147,[3]工作表5!$A$2:$D$529,4,0) -> 11889466 | L147: 百貨 | N147: A | P147: =COUNTIF([4]BALANCE!$A$1:$A$65536,[4]notouch!$A147) ->  | Q147: =COUNTIF([4]BALANCE!$A$1:$A$65536,[4]notouch!$H147) ->  | R147: =VLOOKUP(A147,'[5]Bill+Ship to Code (Active)_08'!$B$1:$N$3286,13,0) -> DEPT_TT
A148: TW002761001B | B148: 憶豐電器有限公司 | C148: 19670109 | D148: 47109086 | E148: 桃竹營銷處 | F148: DWB | G148: 桃竹 | H148: DEALER_TT | I148: DLC_TT | J148: TW002761001B | K148: =VLOOKUP(A148,[3]工作表5!$A$2:$D$529,4,0) -> 0 | L148: 桃竹營銷處 | N148: A | P148: =COUNTIF([4]BALANCE!$A$1:$A$65536,[4]notouch!$A148) ->  | Q148: =COUNTIF([4]BALANCE!$A$1:$A$65536,[4]notouch!$H148) ->  | R148: =VLOOKUP(A148,'[5]Bill+Ship to Code (Active)_08'!$B$1:$N$3286,13,0) -> DLC_TT
A149: TW002762001B | B149: 員毅電器有限公司 | C149: TW002762 | D149: 16929102 | E149: 台中營銷處 | F149: DJB | G149: 台中 | H149: DEALER_TT | I149: DLC_TT | J149: TW002762001B | K149: =VLOOKUP(A149,[3]工作表5!$A$2:$D$529,4,0) -> 0 | L149: 台中營銷處 | N149: A | P149: =COUNTIF([4]BALANCE!$A$1:$A$65536,[4]notouch!$A149) ->  | Q149: =COUNTIF([4]BALANCE!$A$1:$A$65536,[4]notouch!$H149) ->  | R149: =VLOOKUP(A149,'[5]Bill+Ship to Code (Active)_08'!$B$1:$N$3286,13,0) -> DLC_TT
A150: TW002764001B | B150: 弘象電器有限公司 | C150: 19670507 | D150: 97316526 | E150: 台北營銷處 | F150: TPH | G150: 台北 | H150: DEALER_TT | I150: DLC_TT | J150: TW002764001B | L150: 台北營銷處 | N150: A | P150: =COUNTIF([4]BALANCE!$A$1:$A$65536,[4]notouch!$A150) ->  | Q150: =COUNTIF([4]BALANCE!$A$1:$A$65536,[4]notouch!$H150) ->  | R150: =VLOOKUP(A150,'[5]Bill+Ship to Code (Active)_08'!$B$1:$N$3286,13,0) -> DLC_TT
A151: TW002769001B | B151: 東農電器行 | C151: 19611101 | D151: 78766509 | E151: 高屏營銷處 | F151: GWB | G151: 高屏 | H151: DEALER_TT | I151: SPD_TT | J151: TW002769001B | K151: =VLOOKUP(A151,[3]工作表5!$A$2:$D$529,4,0) -> 1561149 | L151: 高屏營銷處 | N151: A | P151: =COUNTIF([4]BALANCE!$A$1:$A$65536,[4]notouch!$A151) ->  | Q151: =COUNTIF([4]BALANCE!$A$1:$A$65536,[4]notouch!$H151) ->  | R151: =VLOOKUP(A151,'[5]Bill+Ship to Code (Active)_08'!$B$1:$N$3286,13,0) -> SPD_TT
A152: TW002769002B | B152: 東農電器行 | C152: XXXXXXXX | D152: XXXXXXXX | E152: SAC | F152: ID&SAC | G152: SAC Sales | H152: B2B_TT | I152: CAC_TT | N152: I | O152: 無往來 | P152: =COUNTIF([4]BALANCE!$A$1:$A$65536,[4]notouch!$A152) ->  | Q152: =COUNTIF([4]BALANCE!$A$1:$A$65536,[4]notouch!$H152) ->  | R152: =VLOOKUP(A152,'[5]Bill+Ship to Code (Active)_08'!$B$1:$N$3286,13,0) -> 
A153: TW002780001B | B153: 金銓電器行 | C153: TW002780 | D153: 13759385 | E153: 台中營銷處 | F153: DJB | G153: 台中 | H153: DEALER_TT | I153: DLC_TT | J153: TW002780001B | K153: =VLOOKUP(A153,[3]工作表5!$A$2:$D$529,4,0) -> 62247 | L153: 台中營銷處 | N153: A | P153: =COUNTIF([4]BALANCE!$A$1:$A$65536,[4]notouch!$A153) ->  | Q153: =COUNTIF([4]BALANCE!$A$1:$A$65536,[4]notouch!$H153) ->  | R153: =VLOOKUP(A153,'[5]Bill+Ship to Code (Active)_08'!$B$1:$N$3286,13,0) -> DLC_TT
A154: TW002789001B | B154: 宏昇電器行 | C154: 19671229 | D154: 97842555 | E154: 台中營銷處 | F154: DJB | G154: 台中 | H154: DEALER_TT | I154: SPD_TT | J154: TW002789001B | K154: =VLOOKUP(A154,[3]工作表5!$A$2:$D$529,4,0) -> 1424752 | L154: 台中營銷處 | N154: A | P154: =COUNTIF([4]BALANCE!$A$1:$A$65536,[4]notouch!$A154) ->  | Q154: =COUNTIF([4]BALANCE!$A$1:$A$65536,[4]notouch!$H154) ->  | R154: =VLOOKUP(A154,'[5]Bill+Ship to Code (Active)_08'!$B$1:$N$3286,13,0) -> SPD_TT
A155: TW002801001B | B155: 銘信視聽電器城 | C155: 19710720 | D155: 92811337 | E155: 台中營銷處 | F155: DJB | G155: 台中 | H155: DEALER_TT | I155: DLC_TT | J155: TW002801001B | K155: =VLOOKUP(A155,[3]工作表5!$A$2:$D$529,4,0) -> 0 | L155: 台中營銷處 | N155: A | P155: =COUNTIF([4]BALANCE!$A$1:$A$65536,[4]notouch!$A155) ->  | Q155: =COUNTIF([4]BALANCE!$A$1:$A$65536,[4]notouch!$H155) ->  | R155: =VLOOKUP(A155,'[5]Bill+Ship to Code (Active)_08'!$B$1:$N$3286,13,0) -> DLC_TT
A156: TW002811001B | B156: 棋杰電器行 | C156: 19650706 | D156: 08016878 | E156: 高屏營銷處 | F156: GWB | G156: 高屏 | H156: DEALER_TT | I156: SPD_TT | J156: TW002811001B | K156: =VLOOKUP(A156,[3]工作表5!$A$2:$D$529,4,0) -> 1148957 | L156: 高屏營銷處 | N156: A | P156: =COUNTIF([4]BALANCE!$A$1:$A$65536,[4]notouch!$A156) ->  | Q156: =COUNTIF([4]BALANCE!$A$1:$A$65536,[4]notouch!$H156) ->  | R156: =VLOOKUP(A156,'[5]Bill+Ship to Code (Active)_08'!$B$1:$N$3286,13,0) -> SPD_TT
A157: TW002843001B | B157: 吉田電器行 | C157: 19620111 | D157: 17683437 | E157: 桃竹營銷處 | F157: DWB | G157: 桃竹 | H157: DEALER_TT | I157: DLC_TT | J157: TW002843001B | K157: =VLOOKUP(A157,[3]工作表5!$A$2:$D$529,4,0) -> 0 | L157: 桃竹營銷處 | N157: A | P157: =COUNTIF([4]BALANCE!$A$1:$A$65536,[4]notouch!$A157) ->  | Q157: =COUNTIF([4]BALANCE!$A$1:$A$65536,[4]notouch!$H157) ->  | R157: =VLOOKUP(A157,'[5]Bill+Ship to Code (Active)_08'!$B$1:$N$3286,13,0) -> DLC_TT
A158: TW002851001B | B158: 隆慶電器行 | C158: 47374042 | D158: 47374803 | E158: 台中營銷處 | F158: DJB | G158: 台中 | H158: DEALER_TT | I158: SPD_TT | J158: TW002851001B | K158: =VLOOKUP(A158,[3]工作表5!$A$2:$D$529,4,0) -> 3155152 | L158: 台中營銷處 | N158: A | P158: =COUNTIF([4]BALANCE!$A$1:$A$65536,[4]notouch!$A158) ->  | Q158: =COUNTIF([4]BALANCE!$A$1:$A$65536,[4]notouch!$H158) ->  | R158: =VLOOKUP(A158,'[5]Bill+Ship to Code (Active)_08'!$B$1:$N$3286,13,0) -> SPD_TT
A159: TW002856001B | B159: 老雙億實業有限公司 | C159: 19490915 | D159: 35957606 | E159: 台北營銷處 | F159: TPH | G159: 台北 | H159: DEALER_TT | I159: DCS_TT | J159: TW002856001B | K159: =VLOOKUP(A159,[3]工作表5!$A$2:$D$529,4,0) -> 109513 | L159: 台北營銷處 | N159: A | P159: =COUNTIF([4]BALANCE!$A$1:$A$65536,[4]notouch!$A159) ->  | Q159: =COUNTIF([4]BALANCE!$A$1:$A$65536,[4]notouch!$H159) ->  | R159: =VLOOKUP(A159,'[5]Bill+Ship to Code (Active)_08'!$B$1:$N$3286,13,0) -> DCS_TT
A160: TW002858001B | B160: 豐昌電器行 | C160: 19630721 | D160: 06565736 | E160: 嘉南營銷處 | F160: DNB | G160: 嘉南 | H160: DEALER_TT | I160: DLC_TT | J160: TW002858001B | K160: =VLOOKUP(A160,[3]工作表5!$A$2:$D$529,4,0) -> 0 | L160: 嘉南營銷處 | N160: A | P160: =COUNTIF([4]BALANCE!$A$1:$A$65536,[4]notouch!$A160) ->  | Q160: =COUNTIF([4]BALANCE!$A$1:$A$65536,[4]notouch!$H160) ->  | R160: =VLOOKUP(A160,'[5]Bill+Ship to Code (Active)_08'!$B$1:$N$3286,13,0) -> DLC_TT
A161: TW002861001B | B161: 昇廣電器有限公司 | C161: 19611020 | D161: 16498693 | E161: 台中營銷處 | F161: DJB | G161: 台中 | H161: DEALER_TT | I161: DLC_TT | J161: TW002861001B | K161: =VLOOKUP(A161,[3]工作表5!$A$2:$D$529,4,0) -> 50916 | L161: 台中營銷處 | N161: A | P161: =COUNTIF([4]BALANCE!$A$1:$A$65536,[4]notouch!$A161) ->  | Q161: =COUNTIF([4]BALANCE!$A$1:$A$65536,[4]notouch!$H161) ->  | R161: =VLOOKUP(A161,'[5]Bill+Ship to Code (Active)_08'!$B$1:$N$3286,13,0) -> DLC_TT
A162: TW002870001B | B162: 松立電業社 | C162: 19560806 | D162: 90720487 | E162: 高屏營銷處 | F162: GWB | G162: 高屏 | H162: DEALER_TT | I162: DLC_TT | J162: TW002870001B | K162: =VLOOKUP(A162,[3]工作表5!$A$2:$D$529,4,0) -> 29756 | L162: 高屏營銷處 | N162: A | P162: =COUNTIF([4]BALANCE!$A$1:$A$65536,[4]notouch!$A162) ->  | Q162: =COUNTIF([4]BALANCE!$A$1:$A$65536,[4]notouch!$H162) ->  | R162: =VLOOKUP(A162,'[5]Bill+Ship to Code (Active)_08'!$B$1:$N$3286,13,0) -> DLC_TT
A163: TW002886001B | B163: 三信電氣行 | C163: 19570402 | D163: 08359830 | E163: 台中營銷處 | F163: DJB | G163: 台中 | H163: DEALER_TT | I163: SPD_TT | J163: TW002886001B | K163: =VLOOKUP(A163,[3]工作表5!$A$2:$D$529,4,0) -> 756166 | L163: 台中營銷處 | N163: A | P163: =COUNTIF([4]BALANCE!$A$1:$A$65536,[4]notouch!$A163) ->  | Q163: =COUNTIF([4]BALANCE!$A$1:$A$65536,[4]notouch!$H163) ->  | R163: =VLOOKUP(A163,'[5]Bill+Ship to Code (Active)_08'!$B$1:$N$3286,13,0) -> SPD_TT
A164: TW002887001B | B164: 仙風電器有限公司 | C164: XXXXXXXX | D164: XXXXXXXX | E164: 桃竹營銷處 | F164: DWB | G164: 桃竹 | H164: DEALER_TT | I164: DLC_TT | J164: TW002887001B | K164: =VLOOKUP(A164,[3]工作表5!$A$2:$D$529,4,0) -> 73360 | L164: 桃竹營銷處 | N164: A | P164: =COUNTIF([4]BALANCE!$A$1:$A$65536,[4]notouch!$A164) ->  | Q164: =COUNTIF([4]BALANCE!$A$1:$A$65536,[4]notouch!$H164) ->  | R164: =VLOOKUP(A164,'[5]Bill+Ship to Code (Active)_08'!$B$1:$N$3286,13,0) -> DLC_TT
A165: TW002896001B | B165: 三星電器行 | C165: 19670620 | D165: 59096683 | E165: 台中營銷處 | F165: DJB | G165: 台中 | H165: DEALER_TT | I165: DCS_TT | J165: TW002896001B | K165: =VLOOKUP(A165,[3]工作表5!$A$2:$D$529,4,0) -> 11850 | L165: 台中營銷處 | N165: A | P165: =COUNTIF([4]BALANCE!$A$1:$A$65536,[4]notouch!$A165) ->  | Q165: =COUNTIF([4]BALANCE!$A$1:$A$65536,[4]notouch!$H165) ->  | R165: =VLOOKUP(A165,'[5]Bill+Ship to Code (Active)_08'!$B$1:$N$3286,13,0) -> DCS_TT
A166: TW002897001B | B166: 南山電器行 | C166: 19700420 | D166: 17925152 | E166: 台北營銷處 | F166: TPH | G166: 台北 | H166: DEALER_TT | I166: DLC_TT | N166: A | P166: =COUNTIF([4]BALANCE!$A$1:$A$65536,[4]notouch!$A166) ->  | Q166: =COUNTIF([4]BALANCE!$A$1:$A$65536,[4]notouch!$H166) ->  | R166: =VLOOKUP(A166,'[5]Bill+Ship to Code (Active)_08'!$B$1:$N$3286,13,0) -> DLC_TT
A167: TW002904001B | B167: 天烽電器有限公司 | C167: 19711108 | D167: 80272502 | E167: 台北營銷處 | F167: TPH | G167: 台北 | H167: DEALER_TT | I167: DLC_TT | J167: TW002904001B | L167: 台北營銷處 | N167: A | P167: =COUNTIF([4]BALANCE!$A$1:$A$65536,[4]notouch!$A167) ->  | Q167: =COUNTIF([4]BALANCE!$A$1:$A$65536,[4]notouch!$H167) ->  | R167: =VLOOKUP(A167,'[5]Bill+Ship to Code (Active)_08'!$B$1:$N$3286,13,0) -> DLC_TT
A168: TW002919001B | B168: 建鑫電器行 | C168: 19721112 | D168: 18282184 | E168: 嘉南營銷處 | F168: DNB | G168: 嘉南 | H168: DEALER_TT | I168: DCS_TT | J168: TW002919001B | K168: =VLOOKUP(A168,[3]工作表5!$A$2:$D$529,4,0) -> 131709 | L168: 嘉南營銷處 | N168: A | P168: =COUNTIF([4]BALANCE!$A$1:$A$65536,[4]notouch!$A168) ->  | Q168: =COUNTIF([4]BALANCE!$A$1:$A$65536,[4]notouch!$H168) ->  | R168: =VLOOKUP(A168,'[5]Bill+Ship to Code (Active)_08'!$B$1:$N$3286,13,0) -> DCS_TT
A169: TW002927001B | B169: 中信冷凍電器行 | C169: 19710227 | D169: 19801699 | E169: 高屏營銷處 | F169: GWB | G169: 高屏 | H169: DEALER_TT | I169: DCS_TT | J169: TW002927001B | K169: =VLOOKUP(A169,[3]工作表5!$A$2:$D$529,4,0) -> 241766 | L169: 高屏營銷處 | N169: A | P169: =COUNTIF([4]BALANCE!$A$1:$A$65536,[4]notouch!$A169) ->  | Q169: =COUNTIF([4]BALANCE!$A$1:$A$65536,[4]notouch!$H169) ->  | R169: =VLOOKUP(A169,'[5]Bill+Ship to Code (Active)_08'!$B$1:$N$3286,13,0) -> DCS_TT
A170: TW002945001B | B170: 勁鋒電器行 | C170: 19641113 | D170: 87753771 | E170: 高屏營銷處 | F170: GWB | G170: 高屏 | H170: DEALER_TT | I170: DLC_TT | J170: TW002945001B | K170: =VLOOKUP(A170,[3]工作表5!$A$2:$D$529,4,0) -> 0 | L170: 高屏營銷處 | N170: A | P170: =COUNTIF([4]BALANCE!$A$1:$A$65536,[4]notouch!$A170) ->  | Q170: =COUNTIF([4]BALANCE!$A$1:$A$65536,[4]notouch!$H170) ->  | R170: =VLOOKUP(A170,'[5]Bill+Ship to Code (Active)_08'!$B$1:$N$3286,13,0) -> DLC_TT
A171: TW002946001B | B171: 佑均電器商行 | C171: 19800403 | D171: 98119827 | E171: 桃竹營銷處 | F171: DWB | G171: 桃竹 | H171: DEALER_TT | I171: DLC_TT | J171: TW002946001B | N171: A | P171: =COUNTIF([4]BALANCE!$A$1:$A$65536,[4]notouch!$A171) ->  | Q171: =COUNTIF([4]BALANCE!$A$1:$A$65536,[4]notouch!$H171) ->  | R171: =VLOOKUP(A171,'[5]Bill+Ship to Code (Active)_08'!$B$1:$N$3286,13,0) -> DLC_TT
A172: TW002950001B | B172: 廣昌電器行 | C172: TW002950 | D172: 97885688 | E172: 台中營銷處 | F172: DJB | G172: 台中 | H172: DEALER_TT | I172: SPD_TT | J172: TW002950001B | K172: =VLOOKUP(A172,[3]工作表5!$A$2:$D$529,4,0) -> 641792 | L172: 台中營銷處 | N172: A | P172: =COUNTIF([4]BALANCE!$A$1:$A$65536,[4]notouch!$A172) ->  | Q172: =COUNTIF([4]BALANCE!$A$1:$A$65536,[4]notouch!$H172) ->  | R172: =VLOOKUP(A172,'[5]Bill+Ship to Code (Active)_08'!$B$1:$N$3286,13,0) -> SPD_TT
A173: TW002952001B | B173: 廣駿電器行 | C173: 24925933 | D173: 24921827 | E173: 台中營銷處 | F173: DJB | G173: 台中 | H173: DEALER_TT | I173: DLC_TT | J173: TW002952001B | K173: =VLOOKUP(A173,[3]工作表5!$A$2:$D$529,4,0) -> 51071 | L173: 台中營銷處 | N173: A | P173: =COUNTIF([4]BALANCE!$A$1:$A$65536,[4]notouch!$A173) ->  | Q173: =COUNTIF([4]BALANCE!$A$1:$A$65536,[4]notouch!$H173) ->  | R173: =VLOOKUP(A173,'[5]Bill+Ship to Code (Active)_08'!$B$1:$N$3286,13,0) -> DLC_TT
A174: TW002960001B | B174: 正賢電器行 | C174: TW002960 | D174: 84042476 | E174: 台中營銷處 | F174: DJB | G174: 台中 | H174: DEALER_TT | I174: DLC_TT | J174: TW002960001B | K174: =VLOOKUP(A174,[3]工作表5!$A$2:$D$529,4,0) -> 0 | L174: 台中營銷處 | N174: A | P174: =COUNTIF([4]BALANCE!$A$1:$A$65536,[4]notouch!$A174) ->  | Q174: =COUNTIF([4]BALANCE!$A$1:$A$65536,[4]notouch!$H174) ->  | R174: =VLOOKUP(A174,'[5]Bill+Ship to Code (Active)_08'!$B$1:$N$3286,13,0) -> DLC_TT
A175: TW002964001B | B175: 台灣樂金顯示科技股份有限公司 | C175: XXXXXXXX | D175: XXXXXXXX | E175: B2B2C | F175: B2B2C | G175: B2B2C | H175: B2B_TT | I175: B2B_TT | N175: A | P175: =COUNTIF([4]BALANCE!$A$1:$A$65536,[4]notouch!$A175) ->  | Q175: =COUNTIF([4]BALANCE!$A$1:$A$65536,[4]notouch!$H175) ->  | R175: =VLOOKUP(A175,'[5]Bill+Ship to Code (Active)_08'!$B$1:$N$3286,13,0) -> B2B_TT
A176: TW002965001B | B176: 永定電器有限公司 | C176: 19781001 | D176: 96857734 | E176: 高屏營銷處 | F176: GWB | G176: 高屏 | H176: DEALER_TT | I176: DLC_TT | J176: TW002965001B | K176: =VLOOKUP(A176,[3]工作表5!$A$2:$D$529,4,0) -> 0 | L176: 高屏營銷處 | N176: A | P176: =COUNTIF([4]BALANCE!$A$1:$A$65536,[4]notouch!$A176) ->  | Q176: =COUNTIF([4]BALANCE!$A$1:$A$65536,[4]notouch!$H176) ->  | R176: =VLOOKUP(A176,'[5]Bill+Ship to Code (Active)_08'!$B$1:$N$3286,13,0) -> DLC_TT
A177: TW002975001B | B177: 佳美電器行 | C177: 19550202 | D177: 06644845 | E177: 嘉南營銷處 | F177: DNB | G177: 嘉南 | H177: DEALER_TT | I177: DLC_TT | N177: I | O177: 無往來 | P177: =COUNTIF([4]BALANCE!$A$1:$A$65536,[4]notouch!$A177) ->  | Q177: =COUNTIF([4]BALANCE!$A$1:$A$65536,[4]notouch!$H177) ->  | R177: =VLOOKUP(A177,'[5]Bill+Ship to Code (Active)_08'!$B$1:$N$3286,13,0) -> 
A178: TW002978001B | B178: 匯豐家電有限公司 | C178: 23383896 | D178: 23366784 | E178: 台中營銷處 | F178: DJB | G178: 台中 | H178: DEALER_TT | I178: DLC_TT | J178: TW002978001B | K178: =VLOOKUP(A178,[3]工作表5!$A$2:$D$529,4,0) -> 0 | L178: 台中營銷處 | N178: A | P178: =COUNTIF([4]BALANCE!$A$1:$A$65536,[4]notouch!$A178) ->  | Q178: =COUNTIF([4]BALANCE!$A$1:$A$65536,[4]notouch!$H178) ->  | R178: =VLOOKUP(A178,'[5]Bill+Ship to Code (Active)_08'!$B$1:$N$3286,13,0) -> DLC_TT
A179: TW002989001B | B179: 隆松電器有限公司 | C179: 36663666 | D179: 69845546 | E179: 嘉南營銷處 | F179: DNB | G179: 嘉南 | H179: DEALER_TT | I179: DLC_TT | J179: TW002989001B | L179: 嘉南營銷處 | N179: A | P179: =COUNTIF([4]BALANCE!$A$1:$A$65536,[4]notouch!$A179) ->  | Q179: =COUNTIF([4]BALANCE!$A$1:$A$65536,[4]notouch!$H179) ->  | R179: =VLOOKUP(A179,'[5]Bill+Ship to Code (Active)_08'!$B$1:$N$3286,13,0) -> 
A180: TW002990001B | B180: 國際水電冷氣工程行 | C180: 19651008 | D180: 49776492 | E180: 桃竹營銷處 | F180: DWB | G180: 桃竹 | H180: DEALER_TT | I180: DLC_TT | K180: =VLOOKUP(A180,[3]工作表5!$A$2:$D$529,4,0) -> 775947 | L180: 桃竹營銷處 | N180: A | P180: =COUNTIF([4]BALANCE!$A$1:$A$65536,[4]notouch!$A180) ->  | Q180: =COUNTIF([4]BALANCE!$A$1:$A$65536,[4]notouch!$H180) ->  | R180: =VLOOKUP(A180,'[5]Bill+Ship to Code (Active)_08'!$B$1:$N$3286,13,0) -> DLC_TT
A181: TW002991001B | B181: 偉誠電器 | C181: 19740120 | D181: 96888413 | E181: 台北營銷處 | F181: TPH | G181: 台北 | H181: DEALER_TT | I181: DLC_TT | N181: I | O181: 無往來 | P181: =COUNTIF([4]BALANCE!$A$1:$A$65536,[4]notouch!$A181) ->  | Q181: =COUNTIF([4]BALANCE!$A$1:$A$65536,[4]notouch!$H181) ->  | R181: =VLOOKUP(A181,'[5]Bill+Ship to Code (Active)_08'!$B$1:$N$3286,13,0) -> 
A182: TW002997001B | B182: 鎰銘電器有限公司 | C182: 19670216 | D182: 80103181 | E182: 台北營銷處 | F182: TPH | G182: 台北 | H182: DEALER_TT | I182: SPD_TT | J182: TW002997001B | K182: =VLOOKUP(A182,[3]工作表5!$A$2:$D$529,4,0) -> 5608625 | L182: 台北營銷處 | N182: A | P182: =COUNTIF([4]BALANCE!$A$1:$A$65536,[4]notouch!$A182) ->  | Q182: =COUNTIF([4]BALANCE!$A$1:$A$65536,[4]notouch!$H182) ->  | R182: =VLOOKUP(A182,'[5]Bill+Ship to Code (Active)_08'!$B$1:$N$3286,13,0) -> SPD_TT
A183: TW003001001B | B183: 銘盛電器有限公司 | C183: 19560401 | D183: 97184980 | E183: 台北營銷處 | F183: TPH | G183: 台北 | H183: DEALER_TT | I183: DLC_TT | J183: TW003001001B | L183: 台北營銷處 | N183: A | P183: =COUNTIF([4]BALANCE!$A$1:$A$65536,[4]notouch!$A183) ->  | Q183: =COUNTIF([4]BALANCE!$A$1:$A$65536,[4]notouch!$H183) ->  | R183: =VLOOKUP(A183,'[5]Bill+Ship to Code (Active)_08'!$B$1:$N$3286,13,0) -> 
A184: TW003013001B | B184: 重慶國際有限公司 | C184: TW003013 | D184: 79955373 | E184: 台中營銷處 | F184: DJB | G184: 台中 | H184: DEALER_TT | I184: DCS_TT | J184: TW003013001B | K184: =VLOOKUP(A184,[3]工作表5!$A$2:$D$529,4,0) -> 0 | L184: 台中營銷處 | N184: A | P184: =COUNTIF([4]BALANCE!$A$1:$A$65536,[4]notouch!$A184) ->  | Q184: =COUNTIF([4]BALANCE!$A$1:$A$65536,[4]notouch!$H184) ->  | R184: =VLOOKUP(A184,'[5]Bill+Ship to Code (Active)_08'!$B$1:$N$3286,13,0) -> DCS_TT
A185: TW003020002B | B185: 華笙音響企業有限公司 | C185: TW003020 | D185: 23688754 | E185: 台中營銷處 | F185: DJB | G185: 台中 | H185: DEALER_TT | I185: DLC_TT | J185: TW003020002B | K185: =VLOOKUP(A185,[3]工作表5!$A$2:$D$529,4,0) -> 0 | L185: 台中營銷處 | N185: A | P185: =COUNTIF([4]BALANCE!$A$1:$A$65536,[4]notouch!$A185) ->  | Q185: =COUNTIF([4]BALANCE!$A$1:$A$65536,[4]notouch!$H185) ->  | R185: =VLOOKUP(A185,'[5]Bill+Ship to Code (Active)_08'!$B$1:$N$3286,13,0) -> DLC_TT
A186: TW003023001B | B186: 翠亨企業股份有限公司 | C186: 19820909 | D186: 16129431 | E186: 高屏營銷處 | F186: GWB | G186: 高屏 | H186: DEALER_TT | I186: DCS_TT | J186: TW003023001B | K186: =VLOOKUP(A186,[3]工作表5!$A$2:$D$529,4,0) -> 821457 | L186: 高屏營銷處 | N186: A | P186: =COUNTIF([4]BALANCE!$A$1:$A$65536,[4]notouch!$A186) ->  | Q186: =COUNTIF([4]BALANCE!$A$1:$A$65536,[4]notouch!$H186) ->  | R186: =VLOOKUP(A186,'[5]Bill+Ship to Code (Active)_08'!$B$1:$N$3286,13,0) -> DCS_TT
A187: TW003029001B | B187: 大統電器行 | C187: 19581106 | D187: 02846102 | E187: 桃竹營銷處 | F187: DWB | G187: 桃竹 | H187: DEALER_TT | I187: DLC_TT | J187: TW003029001B | K187: =VLOOKUP(A187,[3]工作表5!$A$2:$D$529,4,0) -> 30524 | L187: 桃竹營銷處 | N187: A | P187: =COUNTIF([4]BALANCE!$A$1:$A$65536,[4]notouch!$A187) ->  | Q187: =COUNTIF([4]BALANCE!$A$1:$A$65536,[4]notouch!$H187) ->  | R187: =VLOOKUP(A187,'[5]Bill+Ship to Code (Active)_08'!$B$1:$N$3286,13,0) -> DLC_TT
A188: TW003034001B | B188: 九瑜電氣行 | C188: TW003034 | D188: 97887216 | E188: 台中營銷處 | F188: DJB | G188: 台中 | H188: DEALER_TT | I188: DLC_TT | J188: TW003034001B | L188: 台中營銷處 | N188: A | P188: =COUNTIF([4]BALANCE!$A$1:$A$65536,[4]notouch!$A188) ->  | Q188: =COUNTIF([4]BALANCE!$A$1:$A$65536,[4]notouch!$H188) ->  | R188: =VLOOKUP(A188,'[5]Bill+Ship to Code (Active)_08'!$B$1:$N$3286,13,0) -> 
A189: TW003035001B | B189: 友信電器有限公司 | C189: 19571230 | D189: 97341659 | E189: 嘉南營銷處 | F189: DNB | G189: 嘉南 | H189: DEALER_TT | I189: DLC_TT | J189: TW003035001B | K189: =VLOOKUP(A189,[3]工作表5!$A$2:$D$529,4,0) -> 0 | L189: 嘉南營銷處 | N189: A | P189: =COUNTIF([4]BALANCE!$A$1:$A$65536,[4]notouch!$A189) ->  | Q189: =COUNTIF([4]BALANCE!$A$1:$A$65536,[4]notouch!$H189) ->  | R189: =VLOOKUP(A189,'[5]Bill+Ship to Code (Active)_08'!$B$1:$N$3286,13,0) -> DLC_TT
A190: TW003040001B | B190: 悅鼎電器有限公司 | C190: 19690102 | D190: 84693028 | E190: 台北營銷處 | F190: TPH | G190: 台北 | H190: DEALER_TT | I190: SPD_TT | J190: TW003040001B | K190: =VLOOKUP(A190,[3]工作表5!$A$2:$D$529,4,0) -> 3149100 | L190: 台北營銷處 | N190: A | P190: =COUNTIF([4]BALANCE!$A$1:$A$65536,[4]notouch!$A190) ->  | Q190: =COUNTIF([4]BALANCE!$A$1:$A$65536,[4]notouch!$H190) ->  | R190: =VLOOKUP(A190,'[5]Bill+Ship to Code (Active)_08'!$B$1:$N$3286,13,0) -> SPD_TT
A191: TW003052001B | B191: 蓁筳園企業有限公司 | C191: XXXXXXXX | D191: XXXXXXXX | E191: B2B2C | F191: B2B2C | G191: B2B2C | H191: B2B_TT | I191: B2B_TT | N191: A | P191: =COUNTIF([4]BALANCE!$A$1:$A$65536,[4]notouch!$A191) ->  | Q191: =COUNTIF([4]BALANCE!$A$1:$A$65536,[4]notouch!$H191) ->  | R191: =VLOOKUP(A191,'[5]Bill+Ship to Code (Active)_08'!$B$1:$N$3286,13,0) -> B2B_TT
A192: TW003052002B | B192: 蓁筳園企業有限公司 | C192: XXXXXXXX | D192: XXXXXXXX | E192: SAC | F192: ID&SAC | G192: SAC Sales | H192: B2B_TT | I192: CAC_TT | N192: I | O192: 無往來 | P192: =COUNTIF([4]BALANCE!$A$1:$A$65536,[4]notouch!$A192) ->  | Q192: =COUNTIF([4]BALANCE!$A$1:$A$65536,[4]notouch!$H192) ->  | R192: =VLOOKUP(A192,'[5]Bill+Ship to Code (Active)_08'!$B$1:$N$3286,13,0) -> 
A193: TW003053001B | B193: 尚德師企業有限公司 | C193: 19630211 | D193: 12933843 | E193: 台北營銷處 | F193: TPH | G193: 台北 | H193: DEALER_TT | I193: DLC_TT | J193: TW003053001B | K193: =VLOOKUP(A193,[3]工作表5!$A$2:$D$529,4,0) -> 0 | L193: 台北營銷處 | N193: A | P193: =COUNTIF([4]BALANCE!$A$1:$A$65536,[4]notouch!$A193) ->  | Q193: =COUNTIF([4]BALANCE!$A$1:$A$65536,[4]notouch!$H193) ->  | R193: =VLOOKUP(A193,'[5]Bill+Ship to Code (Active)_08'!$B$1:$N$3286,13,0) -> DLC_TT
A194: TW003054001B | B194: 上益 | C194: 19550615 | D194: 15719466 | E194: 嘉南營銷處 | F194: DNB | G194: 嘉南 | H194: DEALER_TT | I194: DLC_TT | N194: I | O194: 無往來 | P194: =COUNTIF([4]BALANCE!$A$1:$A$65536,[4]notouch!$A194) ->  | Q194: =COUNTIF([4]BALANCE!$A$1:$A$65536,[4]notouch!$H194) ->  | R194: =VLOOKUP(A194,'[5]Bill+Ship to Code (Active)_08'!$B$1:$N$3286,13,0) -> 
A195: TW003071001B | B195: 泰昀企業有限公司 | C195: 19490915 | D195: 22866800 | E195: 台北營銷處 | F195: TPH | G195: 台北 | H195: DEALER_TT | I195: DCS_TT | J195: TW003071001B | K195: =VLOOKUP(A195,[3]工作表5!$A$2:$D$529,4,0) -> 995767 | L195: 台北營銷處 | N195: A | P195: =COUNTIF([4]BALANCE!$A$1:$A$65536,[4]notouch!$A195) ->  | Q195: =COUNTIF([4]BALANCE!$A$1:$A$65536,[4]notouch!$H195) ->  | R195: =VLOOKUP(A195,'[5]Bill+Ship to Code (Active)_08'!$B$1:$N$3286,13,0) -> DCS_TT
A196: TW003094001B | B196: 大銀幕視聽音響有限公司 | C196: TW003094 | D196: 97033415 | E196: 台中營銷處 | F196: DJB | G196: 台中 | H196: DEALER_TT | I196: DCS_TT | J196: TW003094001B | K196: =VLOOKUP(A196,[3]工作表5!$A$2:$D$529,4,0) -> 0 | L196: 台中營銷處 | N196: A | P196: =COUNTIF([4]BALANCE!$A$1:$A$65536,[4]notouch!$A196) ->  | Q196: =COUNTIF([4]BALANCE!$A$1:$A$65536,[4]notouch!$H196) ->  | R196: =VLOOKUP(A196,'[5]Bill+Ship to Code (Active)_08'!$B$1:$N$3286,13,0) -> DCS_TT
A197: TW003096001B | B197: 極品家電 | C197: 47226905 | D197: 47293663 | E197: 台中營銷處 | F197: DJB | G197: 台中 | H197: DEALER_TT | I197: DCS_TT | N197: I | O197: 無往來 | P197: =COUNTIF([4]BALANCE!$A$1:$A$65536,[4]notouch!$A197) ->  | Q197: =COUNTIF([4]BALANCE!$A$1:$A$65536,[4]notouch!$H197) ->  | R197: =VLOOKUP(A197,'[5]Bill+Ship to Code (Active)_08'!$B$1:$N$3286,13,0) -> 
A198: TW003125001B | B198: 宏暉電器行 | C198: 19730421 | D198: 14194891 | E198: 高屏營銷處 | F198: GWB | G198: 高屏 | H198: DEALER_TT | I198: DLC_TT | J198: TW003125001B | K198: =VLOOKUP(A198,[3]工作表5!$A$2:$D$529,4,0) -> 0 | L198: 高屏營銷處 | N198: A | P198: =COUNTIF([4]BALANCE!$A$1:$A$65536,[4]notouch!$A198) ->  | Q198: =COUNTIF([4]BALANCE!$A$1:$A$65536,[4]notouch!$H198) ->  | R198: =VLOOKUP(A198,'[5]Bill+Ship to Code (Active)_08'!$B$1:$N$3286,13,0) -> DLC_TT
A199: TW003126001B | B199: 東圓電器行 | C199: 19811028 | D199: 19656246 | E199: 桃竹營銷處 | F199: DWB | G199: 桃竹 | H199: DEALER_TT | I199: SPD_TT | J199: TW003126001B | K199: =VLOOKUP(A199,[3]工作表5!$A$2:$D$529,4,0) -> 0 | L199: 桃竹營銷處 | N199: A | P199: =COUNTIF([4]BALANCE!$A$1:$A$65536,[4]notouch!$A199) ->  | Q199: =COUNTIF([4]BALANCE!$A$1:$A$65536,[4]notouch!$H199) ->  | R199: =VLOOKUP(A199,'[5]Bill+Ship to Code (Active)_08'!$B$1:$N$3286,13,0) -> SPD_TT
A200: TW003127001B | B200: 富盟企業社 | C200: TW003127 | D200: 13400211 | E200: 台中營銷處 | F200: DJB | G200: 台中 | H200: DEALER_TT | I200: DCS_TT | J200: TW003127001B | K200: =VLOOKUP(A200,[3]工作表5!$A$2:$D$529,4,0) -> 1010054 | L200: 台中營銷處 | N200: A | P200: =COUNTIF([4]BALANCE!$A$1:$A$65536,[4]notouch!$A200) ->  | Q200: =COUNTIF([4]BALANCE!$A$1:$A$65536,[4]notouch!$H200) ->  | R200: =VLOOKUP(A200,'[5]Bill+Ship to Code (Active)_08'!$B$1:$N$3286,13,0) -> DCS_TT
... 837 more rows

Sheet 預算表
A3: 2023年9月 | B3: 台 灣 樂 金 電 器 股 份 有 限 公 司
A4: =確認code正確 ->  | B4: =店CODE -> 0 | D4: 密 碼
A5: 店Code： | C5: 第一組： | E5: =確認1 -> 0
A6: 店 名： | B6: =確認店 ->  | C6: 第二組： | E6: =確認2 -> 0
A7: =確認區 ->  | B7: =確認BG ->  | C7: =確認BG1 ->  | D7: =R好CODE1 ->  | E7: =R好CODE2 ->  | J7: =R好CODE3 -> 
A8: 店代號 | B8: Promotion No | C8: Promotion Name | D8: 起始日 | E8: 到期日 | F8: 獎勵內容 | G8: 型號 | H8: AMT/% | I8: 單價/%

Sheet BALANCE (hidden)
A1: Bill To Customer Code | B1: Bill To Customer Code | C1: Promotion No | D1: Promotion Name | E1: Start Date | F1: End Date | G1: Property Type | H1: Start Date | I1: End Date | J1: 內容 | K1: 店代號 | L1: 店名 | M1: NO | N1: AA(必填) | O1: AMT/% | P1: Description | Q1: Division | R1: Model | S1: Unit / % | T1: QTY / Sales | U1: Expected Cost
A2: =IFERROR(VLOOKUP(N2,多CODE,2,0),IF(RIGHT($B2,1)="H",LEFT($B2,11)&"B",IFERROR(VLOOKUP($B2,SHIP,3,0),$B2))) -> TW004694001B | B2: TW004694001B | C2: TT-TTSI-20220921-0005 | D2: YLB22070005-LTV-TW004694-CornerSupport(Y1)-202210~202409 | E2: 2022-10-01 | F2: 2023-09-30 | G2: =MID(C2,4,4) -> TTSI | H2: =IF(OR($G2="NTSI",$G2="TTSI"),$E2,LEFT($E2,4)&"/"&MID($E2,5,2)&"/"&RIGHT($E2,2)) -> 2022-10-01 | I2: =IF(OR($G2="NTSI",$G2="TTSI"),$F2,LEFT($F2,4)&"/"&MID($F2,5,2)&"/"&RIGHT($F2,2)) -> 2023-09-30 | J2: 協議-電視-領侁羅東分店補助(基本目標每年達2,130,590未稅，補助101,457未稅，Year1)-202210~202409 | K2: TW004694001B | L2: 領侁電器 | M2: TW | O2: % | P2: 領侁羅東分店補助(基本目標每年達2,130,590未稅，補助101,457未稅，Year1) | R2: 電視 | T2: 0
A3: TW004758001B | B3: TW004758001B | C3: TT-TTSI-20221004-0025 | D3: ASPM2022093001-AC/SAC-Dealer-Travel Support-20221005-20230930 | E3: 2022-10-05 | F3: 2023-09-30 | G3: TTSI | H3: 2022-10-05 | I3: 2023-09-30 | J3: 協議-冷氣/系統空調-旅遊補助(達成1000萬後，每達成200萬業績給予2.2%旅遊補助金)-20221005~20230930 | K3: TW004758001B | L3: 同勝電器 | M3: TW | O3: % | P3: 旅遊補助(達成1000萬後，每達成200萬業績給予2.2%旅遊補助金) | R3: 冷氣 | T3: 0
A4: TW004758001B | B4: TW004758001B | C4: TT-TTSI-20221004-0025 | D4: ASPM2022093001-AC/SAC-Dealer-Travel Support-20221005-20230930 | E4: 2022-10-05 | F4: 2023-09-30 | G4: TTSI | H4: 2022-10-05 | I4: 2023-09-30 | J4: 協議-冷氣/系統空調-旅遊補助(達成1000萬後，每達成200萬業績給予2.2%旅遊補助金)-20221005~20230930 | K4: TW004758001B | L4: 同勝電器 | M4: TW | O4: % | P4: 旅遊補助(達成1000萬後，每達成200萬業績給予2.2%旅遊補助金) | R4: 系統空調 | T4: 0
A5: TW006823001B | B5: TW006823001B | C5: TT-TTSI-20221004-0025 | D5: ASPM2022093001-AC/SAC-Dealer-Travel Support-20221005-20230930 | E5: 2022-10-05 | F5: 2023-09-30 | G5: TTSI | H5: 2022-10-05 | I5: 2023-09-30 | J5: 協議-冷氣/系統空調-旅遊補助(達成1000萬後，每達成200萬業績給予2.2%旅遊補助金)-20221005~20230930 | K5: TW006823001B | L5: 米米實業有限公司 | M5: TW | O5: % | P5: 旅遊補助(達成1000萬後，每達成200萬業績給予2.2%旅遊補助金) | R5: 冷氣 | T5: 0
A6: TW006823001B | B6: TW006823001B | C6: TT-TTSI-20221004-0025 | D6: ASPM2022093001-AC/SAC-Dealer-Travel Support-20221005-20230930 | E6: 2022-10-05 | F6: 2023-09-30 | G6: TTSI | H6: 2022-10-05 | I6: 2023-09-30 | J6: 協議-冷氣/系統空調-旅遊補助(達成1000萬後，每達成200萬業績給予2.2%旅遊補助金)-20221005~20230930 | K6: TW006823001B | L6: 米米實業有限公司 | M6: TW | O6: % | P6: 旅遊補助(達成1000萬後，每達成200萬業績給予2.2%旅遊補助金) | R6: 系統空調 | T6: 0
A7: TW007140001B | B7: TW007140001B | C7: TT-TTSI-20221004-0025 | D7: ASPM2022093001-AC/SAC-Dealer-Travel Support-20221005-20230930 | E7: 2022-10-05 | F7: 2023-09-30 | G7: TTSI | H7: 2022-10-05 | I7: 2023-09-30 | J7: 協議-冷氣/系統空調-旅遊補助(達成1000萬後，每達成200萬業績給予2.2%旅遊補助金)-20221005~20230930 | K7: TW007140001B | L7: 老王科技 | M7: TW | O7: % | P7: 旅遊補助(達成1000萬後，每達成200萬業績給予2.2%旅遊補助金) | R7: 冷氣 | T7: 0
A8: TW007140001B | B8: TW007140001B | C8: TT-TTSI-20221004-0025 | D8: ASPM2022093001-AC/SAC-Dealer-Travel Support-20221005-20230930 | E8: 2022-10-05 | F8: 2023-09-30 | G8: TTSI | H8: 2022-10-05 | I8: 2023-09-30 | J8: 協議-冷氣/系統空調-旅遊補助(達成1000萬後，每達成200萬業績給予2.2%旅遊補助金)-20221005~20230930 | K8: TW007140001B | L8: 老王科技 | M8: TW | O8: % | P8: 旅遊補助(達成1000萬後，每達成200萬業績給予2.2%旅遊補助金) | R8: 系統空調 | T8: 0
A9: TW006897001B | B9: TW006897001B | C9: TT-TTSI-20221004-0025 | D9: ASPM2022093001-AC/SAC-Dealer-Travel Support-20221005-20230930 | E9: 2022-10-05 | F9: 2023-09-30 | G9: TTSI | H9: 2022-10-05 | I9: 2023-09-30 | J9: 協議-冷氣/系統空調-旅遊補助(達成1000萬後，每達成200萬業績給予2.2%旅遊補助金)-20221005~20230930 | K9: TW006897001B | L9: 姿芳科技有限公司 | M9: TW | O9: % | P9: 旅遊補助(達成1000萬後，每達成200萬業績給予2.2%旅遊補助金) | R9: 冷氣 | T9: 0
A10: TW006897001B | B10: TW006897001B | C10: TT-TTSI-20221004-0025 | D10: ASPM2022093001-AC/SAC-Dealer-Travel Support-20221005-20230930 | E10: 2022-10-05 | F10: 2023-09-30 | G10: TTSI | H10: 2022-10-05 | I10: 2023-09-30 | J10: 協議-冷氣/系統空調-旅遊補助(達成1000萬後，每達成200萬業績給予2.2%旅遊補助金)-20221005~20230930 | K10: TW006897001B | L10: 姿芳科技有限公司 | M10: TW | O10: % | P10: 旅遊補助(達成1000萬後，每達成200萬業績給予2.2%旅遊補助金) | R10: 系統空調 | T10: 0
A11: TW002997001B | B11: TW002997001B | C11: TT-TTSI-20221004-0025 | D11: ASPM2022093001-AC/SAC-Dealer-Travel Support-20221005-20230930 | E11: 2022-10-05 | F11: 2023-09-30 | G11: TTSI | H11: 2022-10-05 | I11: 2023-09-30 | J11: 協議-冷氣/系統空調-旅遊補助(達成1000萬後，每達成200萬業績給予2.2%旅遊補助金)-20221005~20230930 | K11: TW002997001B | L11: 鎰銘電器 | M11: TW | O11: % | P11: 旅遊補助(達成1000萬後，每達成200萬業績給予2.2%旅遊補助金) | R11: 冷氣 | T11: 0
A12: TW002997001B | B12: TW002997001B | C12: TT-TTSI-20221004-0025 | D12: ASPM2022093001-AC/SAC-Dealer-Travel Support-20221005-20230930 | E12: 2022-10-05 | F12: 2023-09-30 | G12: TTSI | H12: 2022-10-05 | I12: 2023-09-30 | J12: 協議-冷氣/系統空調-旅遊補助(達成1000萬後，每達成200萬業績給予2.2%旅遊補助金)-20221005~20230930 | K12: TW002997001B | L12: 鎰銘電器 | M12: TW | O12: % | P12: 旅遊補助(達成1000萬後，每達成200萬業績給予2.2%旅遊補助金) | R12: 系統空調 | T12: 0
A13: TW002106001B | B13: TW002106001B | C13: TT-TTSI-20221004-0024 | D13: ASPM2022093001-AC/SAC-Dealer-President Incentive-20221005-20230930 | E13: 2022-10-05 | F13: 2023-09-30 | G13: TTSI | H13: 2022-10-05 | I13: 2023-09-30 | J13: 協議-冷氣/系統空調-進貨達成獎勵(達成250萬-400萬1.8%，400萬-800萬2%，800萬-1600萬2.3%，1600萬以上2.8%)-20221005~20230930 | K13: TW002106001B | L13: 大時代量販家電 | M13: TW | O13: % | P13: 進貨達成獎勵(達成250萬-400萬1.8%，400萬-800萬2%，800萬-1600萬2.3%，1600萬以上2.8%) | R13: 冷氣 | T13: 0
A14: TW002106001B | B14: TW002106001B | C14: TT-TTSI-20221004-0024 | D14: ASPM2022093001-AC/SAC-Dealer-President Incentive-20221005-20230930 | E14: 2022-10-05 | F14: 2023-09-30 | G14: TTSI | H14: 2022-10-05 | I14: 2023-09-30 | J14: 協議-冷氣/系統空調-進貨達成獎勵(達成250萬-400萬1.8%，400萬-800萬2%，800萬-1600萬2.3%，1600萬以上2.8%)-20221005~20230930 | K14: TW002106001B | L14: 大時代量販家電 | M14: TW | O14: % | P14: 進貨達成獎勵(達成250萬-400萬1.8%，400萬-800萬2%，800萬-1600萬2.3%，1600萬以上2.8%) | R14: 系統空調 | T14: 0
A15: TW002173001B | B15: TW002173001B | C15: TT-TTSI-20221004-0024 | D15: ASPM2022093001-AC/SAC-Dealer-President Incentive-20221005-20230930 | E15: 2022-10-05 | F15: 2023-09-30 | G15: TTSI | H15: 2022-10-05 | I15: 2023-09-30 | J15: 協議-冷氣/系統空調-進貨達成獎勵(達成250萬-400萬1.8%，400萬-800萬2%，800萬-1600萬2.3%，1600萬以上2.8%)-20221005~20230930 | K15: TW002173001B | L15: 泰欣電器 | M15: TW | O15: % | P15: 進貨達成獎勵(達成250萬-400萬1.8%，400萬-800萬2%，800萬-1600萬2.3%，1600萬以上2.8%) | R15: 冷氣 | T15: 0
A16: TW002173001B | B16: TW002173001B | C16: TT-TTSI-20221004-0024 | D16: ASPM2022093001-AC/SAC-Dealer-President Incentive-20221005-20230930 | E16: 2022-10-05 | F16: 2023-09-30 | G16: TTSI | H16: 2022-10-05 | I16: 2023-09-30 | J16: 協議-冷氣/系統空調-進貨達成獎勵(達成250萬-400萬1.8%，400萬-800萬2%，800萬-1600萬2.3%，1600萬以上2.8%)-20221005~20230930 | K16: TW002173001B | L16: 泰欣電器 | M16: TW | O16: % | P16: 進貨達成獎勵(達成250萬-400萬1.8%，400萬-800萬2%，800萬-1600萬2.3%，1600萬以上2.8%) | R16: 系統空調 | T16: 0
A17: TW002291001B | B17: TW002291001B | C17: TT-TTSI-20221004-0024 | D17: ASPM2022093001-AC/SAC-Dealer-President Incentive-20221005-20230930 | E17: 2022-10-05 | F17: 2023-09-30 | G17: TTSI | H17: 2022-10-05 | I17: 2023-09-30 | J17: 協議-冷氣/系統空調-進貨達成獎勵(達成250萬-400萬1.8%，400萬-800萬2%，800萬-1600萬2.3%，1600萬以上2.8%)-20221005~20230930 | K17: TW002291001B | L17: 金一電器 | M17: TW | O17: % | P17: 進貨達成獎勵(達成250萬-400萬1.8%，400萬-800萬2%，800萬-1600萬2.3%，1600萬以上2.8%) | R17: 冷氣 | T17: 0
A18: TW002291001B | B18: TW002291001B | C18: TT-TTSI-20221004-0024 | D18: ASPM2022093001-AC/SAC-Dealer-President Incentive-20221005-20230930 | E18: 2022-10-05 | F18: 2023-09-30 | G18: TTSI | H18: 2022-10-05 | I18: 2023-09-30 | J18: 協議-冷氣/系統空調-進貨達成獎勵(達成250萬-400萬1.8%，400萬-800萬2%，800萬-1600萬2.3%，1600萬以上2.8%)-20221005~20230930 | K18: TW002291001B | L18: 金一電器 | M18: TW | O18: % | P18: 進貨達成獎勵(達成250萬-400萬1.8%，400萬-800萬2%，800萬-1600萬2.3%，1600萬以上2.8%) | R18: 系統空調 | T18: 0
A19: TW002514001B | B19: TW002514001B | C19: TT-TTSI-20221004-0024 | D19: ASPM2022093001-AC/SAC-Dealer-President Incentive-20221005-20230930 | E19: 2022-10-05 | F19: 2023-09-30 | G19: TTSI | H19: 2022-10-05 | I19: 2023-09-30 | J19: 協議-冷氣/系統空調-進貨達成獎勵(達成250萬-400萬1.8%，400萬-800萬2%，800萬-1600萬2.3%，1600萬以上2.8%)-20221005~20230930 | K19: TW002514001B | L19: 今漢 | M19: TW | O19: % | P19: 進貨達成獎勵(達成250萬-400萬1.8%，400萬-800萬2%，800萬-1600萬2.3%，1600萬以上2.8%) | R19: 冷氣 | T19: 0
A20: TW002514001B | B20: TW002514001B | C20: TT-TTSI-20221004-0024 | D20: ASPM2022093001-AC/SAC-Dealer-President Incentive-20221005-20230930 | E20: 2022-10-05 | F20: 2023-09-30 | G20: TTSI | H20: 2022-10-05 | I20: 2023-09-30 | J20: 協議-冷氣/系統空調-進貨達成獎勵(達成250萬-400萬1.8%，400萬-800萬2%，800萬-1600萬2.3%，1600萬以上2.8%)-20221005~20230930 | K20: TW002514001B | L20: 今漢 | M20: TW | O20: % | P20: 進貨達成獎勵(達成250萬-400萬1.8%，400萬-800萬2%，800萬-1600萬2.3%，1600萬以上2.8%) | R20: 系統空調 | T20: 0
A21: TW002557001B | B21: TW002557001B | C21: TT-TTSI-20221004-0024 | D21: ASPM2022093001-AC/SAC-Dealer-President Incentive-20221005-20230930 | E21: 2022-10-05 | F21: 2023-09-30 | G21: TTSI | H21: 2022-10-05 | I21: 2023-09-30 | J21: 協議-冷氣/系統空調-進貨達成獎勵(達成250萬-400萬1.8%，400萬-800萬2%，800萬-1600萬2.3%，1600萬以上2.8%)-20221005~20230930 | K21: TW002557001B | L21: 全民電子 | M21: TW | O21: % | P21: 進貨達成獎勵(達成250萬-400萬1.8%，400萬-800萬2%，800萬-1600萬2.3%，1600萬以上2.8%) | R21: 冷氣 | T21: 0
A22: TW002557001B | B22: TW002557001B | C22: TT-TTSI-20221004-0024 | D22: ASPM2022093001-AC/SAC-Dealer-President Incentive-20221005-20230930 | E22: 2022-10-05 | F22: 2023-09-30 | G22: TTSI | H22: 2022-10-05 | I22: 2023-09-30 | J22: 協議-冷氣/系統空調-進貨達成獎勵(達成250萬-400萬1.8%，400萬-800萬2%，800萬-1600萬2.3%，1600萬以上2.8%)-20221005~20230930 | K22: TW002557001B | L22: 全民電子 | M22: TW | O22: % | P22: 進貨達成獎勵(達成250萬-400萬1.8%，400萬-800萬2%，800萬-1600萬2.3%，1600萬以上2.8%) | R22: 系統空調 | T22: 0
A23: TW002769001B | B23: TW002769001B | C23: TT-TTSI-20221004-0024 | D23: ASPM2022093001-AC/SAC-Dealer-President Incentive-20221005-20230930 | E23: 2022-10-05 | F23: 2023-09-30 | G23: TTSI | H23: 2022-10-05 | I23: 2023-09-30 | J23: 協議-冷氣/系統空調-進貨達成獎勵(達成250萬-400萬1.8%，400萬-800萬2%，800萬-1600萬2.3%，1600萬以上2.8%)-20221005~20230930 | K23: TW002769001B | L23: 東農電器 | M23: TW | O23: % | P23: 進貨達成獎勵(達成250萬-400萬1.8%，400萬-800萬2%，800萬-1600萬2.3%，1600萬以上2.8%) | R23: 冷氣 | T23: 0
A24: TW002769001B | B24: TW002769001B | C24: TT-TTSI-20221004-0024 | D24: ASPM2022093001-AC/SAC-Dealer-President Incentive-20221005-20230930 | E24: 2022-10-05 | F24: 2023-09-30 | G24: TTSI | H24: 2022-10-05 | I24: 2023-09-30 | J24: 協議-冷氣/系統空調-進貨達成獎勵(達成250萬-400萬1.8%，400萬-800萬2%，800萬-1600萬2.3%，1600萬以上2.8%)-20221005~20230930 | K24: TW002769001B | L24: 東農電器 | M24: TW | O24: % | P24: 進貨達成獎勵(達成250萬-400萬1.8%，400萬-800萬2%，800萬-1600萬2.3%，1600萬以上2.8%) | R24: 系統空調 | T24: 0
A25: TW002789001B | B25: TW002789001B | C25: TT-TTSI-20221004-0024 | D25: ASPM2022093001-AC/SAC-Dealer-President Incentive-20221005-20230930 | E25: 2022-10-05 | F25: 2023-09-30 | G25: TTSI | H25: 2022-10-05 | I25: 2023-09-30 | J25: 協議-冷氣/系統空調-進貨達成獎勵(達成250萬-400萬1.8%，400萬-800萬2%，800萬-1600萬2.3%，1600萬以上2.8%)-20221005~20230930 | K25: TW002789001B | L25: 宏昇電器 | M25: TW | O25: % | P25: 進貨達成獎勵(達成250萬-400萬1.8%，400萬-800萬2%，800萬-1600萬2.3%，1600萬以上2.8%) | R25: 冷氣 | T25: 0
A26: TW002789001B | B26: TW002789001B | C26: TT-TTSI-20221004-0024 | D26: ASPM2022093001-AC/SAC-Dealer-President Incentive-20221005-20230930 | E26: 2022-10-05 | F26: 2023-09-30 | G26: TTSI | H26: 2022-10-05 | I26: 2023-09-30 | J26: 協議-冷氣/系統空調-進貨達成獎勵(達成250萬-400萬1.8%，400萬-800萬2%，800萬-1600萬2.3%，1600萬以上2.8%)-20221005~20230930 | K26: TW002789001B | L26: 宏昇電器 | M26: TW | O26: % | P26: 進貨達成獎勵(達成250萬-400萬1.8%，400萬-800萬2%，800萬-1600萬2.3%，1600萬以上2.8%) | R26: 系統空調 | T26: 0
A27: TW002811001B | B27: TW002811001B | C27: TT-TTSI-20221004-0024 | D27: ASPM2022093001-AC/SAC-Dealer-President Incentive-20221005-20230930 | E27: 2022-10-05 | F27: 2023-09-30 | G27: TTSI | H27: 2022-10-05 | I27: 2023-09-30 | J27: 協議-冷氣/系統空調-進貨達成獎勵(達成250萬-400萬1.8%，400萬-800萬2%，800萬-1600萬2.3%，1600萬以上2.8%)-20221005~20230930 | K27: TW002811001B | L27: 棋杰電器 | M27: TW | O27: % | P27: 進貨達成獎勵(達成250萬-400萬1.8%，400萬-800萬2%，800萬-1600萬2.3%，1600萬以上2.8%) | R27: 冷氣 | T27: 0
A28: TW002811001B | B28: TW002811001B | C28: TT-TTSI-20221004-0024 | D28: ASPM2022093001-AC/SAC-Dealer-President Incentive-20221005-20230930 | E28: 2022-10-05 | F28: 2023-09-30 | G28: TTSI | H28: 2022-10-05 | I28: 2023-09-30 | J28: 協議-冷氣/系統空調-進貨達成獎勵(達成250萬-400萬1.8%，400萬-800萬2%，800萬-1600萬2.3%，1600萬以上2.8%)-20221005~20230930 | K28: TW002811001B | L28: 棋杰電器 | M28: TW | O28: % | P28: 進貨達成獎勵(達成250萬-400萬1.8%，400萬-800萬2%，800萬-1600萬2.3%，1600萬以上2.8%) | R28: 系統空調 | T28: 0
A29: TW002927001B | B29: TW002927001B | C29: TT-TTSI-20221004-0024 | D29: ASPM2022093001-AC/SAC-Dealer-President Incentive-20221005-20230930 | E29: 2022-10-05 | F29: 2023-09-30 | G29: TTSI | H29: 2022-10-05 | I29: 2023-09-30 | J29: 協議-冷氣/系統空調-進貨達成獎勵(達成250萬-400萬1.8%，400萬-800萬2%，800萬-1600萬2.3%，1600萬以上2.8%)-20221005~20230930 | K29: TW002927001B | L29: 中信冷凍電器 | M29: TW | O29: % | P29: 進貨達成獎勵(達成250萬-400萬1.8%，400萬-800萬2%，800萬-1600萬2.3%，1600萬以上2.8%) | R29: 冷氣 | T29: 0
A30: TW002927001B | B30: TW002927001B | C30: TT-TTSI-20221004-0024 | D30: ASPM2022093001-AC/SAC-Dealer-President Incentive-20221005-20230930 | E30: 2022-10-05 | F30: 2023-09-30 | G30: TTSI | H30: 2022-10-05 | I30: 2023-09-30 | J30: 協議-冷氣/系統空調-進貨達成獎勵(達成250萬-400萬1.8%，400萬-800萬2%，800萬-1600萬2.3%，1600萬以上2.8%)-20221005~20230930 | K30: TW002927001B | L30: 中信冷凍電器 | M30: TW | O30: % | P30: 進貨達成獎勵(達成250萬-400萬1.8%，400萬-800萬2%，800萬-1600萬2.3%，1600萬以上2.8%) | R30: 系統空調 | T30: 0
A31: TW003834001B | B31: TW003834001B | C31: TT-TTSI-20221004-0024 | D31: ASPM2022093001-AC/SAC-Dealer-President Incentive-20221005-20230930 | E31: 2022-10-05 | F31: 2023-09-30 | G31: TTSI | H31: 2022-10-05 | I31: 2023-09-30 | J31: 協議-冷氣/系統空調-進貨達成獎勵(達成250萬-400萬1.8%，400萬-800萬2%，800萬-1600萬2.3%，1600萬以上2.8%)-20221005~20230930 | K31: TW003834001B | L31: 萊旺企業 | M31: TW | O31: % | P31: 進貨達成獎勵(達成250萬-400萬1.8%，400萬-800萬2%，800萬-1600萬2.3%，1600萬以上2.8%) | R31: 冷氣 | T31: 0
A32: TW003834001B | B32: TW003834001B | C32: TT-TTSI-20221004-0024 | D32: ASPM2022093001-AC/SAC-Dealer-President Incentive-20221005-20230930 | E32: 2022-10-05 | F32: 2023-09-30 | G32: TTSI | H32: 2022-10-05 | I32: 2023-09-30 | J32: 協議-冷氣/系統空調-進貨達成獎勵(達成250萬-400萬1.8%，400萬-800萬2%，800萬-1600萬2.3%，1600萬以上2.8%)-20221005~20230930 | K32: TW003834001B | L32: 萊旺企業 | M32: TW | O32: % | P32: 進貨達成獎勵(達成250萬-400萬1.8%，400萬-800萬2%，800萬-1600萬2.3%，1600萬以上2.8%) | R32: 系統空調 | T32: 0
A33: TW004700001B | B33: TW004700001B | C33: TT-TTSI-20221004-0024 | D33: ASPM2022093001-AC/SAC-Dealer-President Incentive-20221005-20230930 | E33: 2022-10-05 | F33: 2023-09-30 | G33: TTSI | H33: 2022-10-05 | I33: 2023-09-30 | J33: 協議-冷氣/系統空調-進貨達成獎勵(達成250萬-400萬1.8%，400萬-800萬2%，800萬-1600萬2.3%，1600萬以上2.8%)-20221005~20230930 | K33: TW004700001B | L33: 鐠羅影音 | M33: TW | O33: % | P33: 進貨達成獎勵(達成250萬-400萬1.8%，400萬-800萬2%，800萬-1600萬2.3%，1600萬以上2.8%) | R33: 冷氣 | T33: 0
A34: TW004700001B | B34: TW004700001B | C34: TT-TTSI-20221004-0024 | D34: ASPM2022093001-AC/SAC-Dealer-President Incentive-20221005-20230930 | E34: 2022-10-05 | F34: 2023-09-30 | G34: TTSI | H34: 2022-10-05 | I34: 2023-09-30 | J34: 協議-冷氣/系統空調-進貨達成獎勵(達成250萬-400萬1.8%，400萬-800萬2%，800萬-1600萬2.3%，1600萬以上2.8%)-20221005~20230930 | K34: TW004700001B | L34: 鐠羅影音 | M34: TW | O34: % | P34: 進貨達成獎勵(達成250萬-400萬1.8%，400萬-800萬2%，800萬-1600萬2.3%，1600萬以上2.8%) | R34: 系統空調 | T34: 0
A35: TW004724001B | B35: TW004724001B | C35: TT-TTSI-20221004-0024 | D35: ASPM2022093001-AC/SAC-Dealer-President Incentive-20221005-20230930 | E35: 2022-10-05 | F35: 2023-09-30 | G35: TTSI | H35: 2022-10-05 | I35: 2023-09-30 | J35: 協議-冷氣/系統空調-進貨達成獎勵(達成250萬-400萬1.8%，400萬-800萬2%，800萬-1600萬2.3%，1600萬以上2.8%)-20221005~20230930 | K35: TW004724001B | L35: 新視紀科技 | M35: TW | O35: % | P35: 進貨達成獎勵(達成250萬-400萬1.8%，400萬-800萬2%，800萬-1600萬2.3%，1600萬以上2.8%) | R35: 冷氣 | T35: 0
A36: TW004724001B | B36: TW004724001B | C36: TT-TTSI-20221004-0024 | D36: ASPM2022093001-AC/SAC-Dealer-President Incentive-20221005-20230930 | E36: 2022-10-05 | F36: 2023-09-30 | G36: TTSI | H36: 2022-10-05 | I36: 2023-09-30 | J36: 協議-冷氣/系統空調-進貨達成獎勵(達成250萬-400萬1.8%，400萬-800萬2%，800萬-1600萬2.3%，1600萬以上2.8%)-20221005~20230930 | K36: TW004724001B | L36: 新視紀科技 | M36: TW | O36: % | P36: 進貨達成獎勵(達成250萬-400萬1.8%，400萬-800萬2%，800萬-1600萬2.3%，1600萬以上2.8%) | R36: 系統空調 | T36: 0
A37: TW004758001B | B37: TW004758001B | C37: TT-TTSI-20221004-0024 | D37: ASPM2022093001-AC/SAC-Dealer-President Incentive-20221005-20230930 | E37: 2022-10-05 | F37: 2023-09-30 | G37: TTSI | H37: 2022-10-05 | I37: 2023-09-30 | J37: 協議-冷氣/系統空調-進貨達成獎勵(達成250萬-400萬1.8%，400萬-800萬2%，800萬-1600萬2.3%，1600萬以上2.8%)-20221005~20230930 | K37: TW004758001B | L37: 同勝電器 | M37: TW | O37: % | P37: 進貨達成獎勵(達成250萬-400萬1.8%，400萬-800萬2%，800萬-1600萬2.3%，1600萬以上2.8%) | R37: 冷氣 | T37: 0
A38: TW004758001B | B38: TW004758001B | C38: TT-TTSI-20221004-0024 | D38: ASPM2022093001-AC/SAC-Dealer-President Incentive-20221005-20230930 | E38: 2022-10-05 | F38: 2023-09-30 | G38: TTSI | H38: 2022-10-05 | I38: 2023-09-30 | J38: 協議-冷氣/系統空調-進貨達成獎勵(達成250萬-400萬1.8%，400萬-800萬2%，800萬-1600萬2.3%，1600萬以上2.8%)-20221005~20230930 | K38: TW004758001B | L38: 同勝電器 | M38: TW | O38: % | P38: 進貨達成獎勵(達成250萬-400萬1.8%，400萬-800萬2%，800萬-1600萬2.3%，1600萬以上2.8%) | R38: 系統空調 | T38: 0
A39: TW005264001B | B39: TW005264001B | C39: TT-TTSI-20221004-0024 | D39: ASPM2022093001-AC/SAC-Dealer-President Incentive-20221005-20230930 | E39: 2022-10-05 | F39: 2023-09-30 | G39: TTSI | H39: 2022-10-05 | I39: 2023-09-30 | J39: 協議-冷氣/系統空調-進貨達成獎勵(達成250萬-400萬1.8%，400萬-800萬2%，800萬-1600萬2.3%，1600萬以上2.8%)-20221005~20230930 | K39: TW005264001B | L39: 禾昌電器 | M39: TW | O39: % | P39: 進貨達成獎勵(達成250萬-400萬1.8%，400萬-800萬2%，800萬-1600萬2.3%，1600萬以上2.8%) | R39: 冷氣 | T39: 0
A40: TW005264001B | B40: TW005264001B | C40: TT-TTSI-20221004-0024 | D40: ASPM2022093001-AC/SAC-Dealer-President Incentive-20221005-20230930 | E40: 2022-10-05 | F40: 2023-09-30 | G40: TTSI | H40: 2022-10-05 | I40: 2023-09-30 | J40: 協議-冷氣/系統空調-進貨達成獎勵(達成250萬-400萬1.8%，400萬-800萬2%，800萬-1600萬2.3%，1600萬以上2.8%)-20221005~20230930 | K40: TW005264001B | L40: 禾昌電器 | M40: TW | O40: % | P40: 進貨達成獎勵(達成250萬-400萬1.8%，400萬-800萬2%，800萬-1600萬2.3%，1600萬以上2.8%) | R40: 系統空調 | T40: 0
A41: TW005288001B | B41: TW005288001B | C41: TT-TTSI-20221004-0024 | D41: ASPM2022093001-AC/SAC-Dealer-President Incentive-20221005-20230930 | E41: 2022-10-05 | F41: 2023-09-30 | G41: TTSI | H41: 2022-10-05 | I41: 2023-09-30 | J41: 協議-冷氣/系統空調-進貨達成獎勵(達成250萬-400萬1.8%，400萬-800萬2%，800萬-1600萬2.3%，1600萬以上2.8%)-20221005~20230930 | K41: TW005288001B | L41: 五順電器 | M41: TW | O41: % | P41: 進貨達成獎勵(達成250萬-400萬1.8%，400萬-800萬2%，800萬-1600萬2.3%，1600萬以上2.8%) | R41: 冷氣 | T41: 0
A42: TW005288001B | B42: TW005288001B | C42: TT-TTSI-20221004-0024 | D42: ASPM2022093001-AC/SAC-Dealer-President Incentive-20221005-20230930 | E42: 2022-10-05 | F42: 2023-09-30 | G42: TTSI | H42: 2022-10-05 | I42: 2023-09-30 | J42: 協議-冷氣/系統空調-進貨達成獎勵(達成250萬-400萬1.8%，400萬-800萬2%，800萬-1600萬2.3%，1600萬以上2.8%)-20221005~20230930 | K42: TW005288001B | L42: 五順電器 | M42: TW | O42: % | P42: 進貨達成獎勵(達成250萬-400萬1.8%，400萬-800萬2%，800萬-1600萬2.3%，1600萬以上2.8%) | R42: 系統空調 | T42: 0
A43: TW005301001B | B43: TW005301001B | C43: TT-TTSI-20221004-0024 | D43: ASPM2022093001-AC/SAC-Dealer-President Incentive-20221005-20230930 | E43: 2022-10-05 | F43: 2023-09-30 | G43: TTSI | H43: 2022-10-05 | I43: 2023-09-30 | J43: 協議-冷氣/系統空調-進貨達成獎勵(達成250萬-400萬1.8%，400萬-800萬2%，800萬-1600萬2.3%，1600萬以上2.8%)-20221005~20230930 | K43: TW005301001B | L43: 南霸天電器 | M43: TW | O43: % | P43: 進貨達成獎勵(達成250萬-400萬1.8%，400萬-800萬2%，800萬-1600萬2.3%，1600萬以上2.8%) | R43: 冷氣 | T43: 0
A44: TW005301001B | B44: TW005301001B | C44: TT-TTSI-20221004-0024 | D44: ASPM2022093001-AC/SAC-Dealer-President Incentive-20221005-20230930 | E44: 2022-10-05 | F44: 2023-09-30 | G44: TTSI | H44: 2022-10-05 | I44: 2023-09-30 | J44: 協議-冷氣/系統空調-進貨達成獎勵(達成250萬-400萬1.8%，400萬-800萬2%，800萬-1600萬2.3%，1600萬以上2.8%)-20221005~20230930 | K44: TW005301001B | L44: 南霸天電器 | M44: TW | O44: % | P44: 進貨達成獎勵(達成250萬-400萬1.8%，400萬-800萬2%，800萬-1600萬2.3%，1600萬以上2.8%) | R44: 系統空調 | T44: 0
A45: TW005542001B | B45: TW005542001B | C45: TT-TTSI-20221004-0024 | D45: ASPM2022093001-AC/SAC-Dealer-President Incentive-20221005-20230930 | E45: 2022-10-05 | F45: 2023-09-30 | G45: TTSI | H45: 2022-10-05 | I45: 2023-09-30 | J45: 協議-冷氣/系統空調-進貨達成獎勵(達成250萬-400萬1.8%，400萬-800萬2%，800萬-1600萬2.3%，1600萬以上2.8%)-20221005~20230930 | K45: TW005542001B | L45: 萬家吉商行 | M45: TW | O45: % | P45: 進貨達成獎勵(達成250萬-400萬1.8%，400萬-800萬2%，800萬-1600萬2.3%，1600萬以上2.8%) | R45: 冷氣 | T45: 0
A46: TW005542001B | B46: TW005542001B | C46: TT-TTSI-20221004-0024 | D46: ASPM2022093001-AC/SAC-Dealer-President Incentive-20221005-20230930 | E46: 2022-10-05 | F46: 2023-09-30 | G46: TTSI | H46: 2022-10-05 | I46: 2023-09-30 | J46: 協議-冷氣/系統空調-進貨達成獎勵(達成250萬-400萬1.8%，400萬-800萬2%，800萬-1600萬2.3%，1600萬以上2.8%)-20221005~20230930 | K46: TW005542001B | L46: 萬家吉商行 | M46: TW | O46: % | P46: 進貨達成獎勵(達成250萬-400萬1.8%，400萬-800萬2%，800萬-1600萬2.3%，1600萬以上2.8%) | R46: 系統空調 | T46: 0
A47: TW005602001B | B47: TW005602001B | C47: TT-TTSI-20221004-0024 | D47: ASPM2022093001-AC/SAC-Dealer-President Incentive-20221005-20230930 | E47: 2022-10-05 | F47: 2023-09-30 | G47: TTSI | H47: 2022-10-05 | I47: 2023-09-30 | J47: 協議-冷氣/系統空調-進貨達成獎勵(達成250萬-400萬1.8%，400萬-800萬2%，800萬-1600萬2.3%，1600萬以上2.8%)-20221005~20230930 | K47: TW005602001B | L47: 好佳貨家電影音生活館 | M47: TW | O47: % | P47: 進貨達成獎勵(達成250萬-400萬1.8%，400萬-800萬2%，800萬-1600萬2.3%，1600萬以上2.8%) | R47: 冷氣 | T47: 0
A48: TW005602001B | B48: TW005602001B | C48: TT-TTSI-20221004-0024 | D48: ASPM2022093001-AC/SAC-Dealer-President Incentive-20221005-20230930 | E48: 2022-10-05 | F48: 2023-09-30 | G48: TTSI | H48: 2022-10-05 | I48: 2023-09-30 | J48: 協議-冷氣/系統空調-進貨達成獎勵(達成250萬-400萬1.8%，400萬-800萬2%，800萬-1600萬2.3%，1600萬以上2.8%)-20221005~20230930 | K48: TW005602001B | L48: 好佳貨家電影音生活館 | M48: TW | O48: % | P48: 進貨達成獎勵(達成250萬-400萬1.8%，400萬-800萬2%，800萬-1600萬2.3%，1600萬以上2.8%) | R48: 系統空調 | T48: 0
A49: TW006084001B | B49: TW006084001B | C49: TT-TTSI-20221004-0024 | D49: ASPM2022093001-AC/SAC-Dealer-President Incentive-20221005-20230930 | E49: 2022-10-05 | F49: 2023-09-30 | G49: TTSI | H49: 2022-10-05 | I49: 2023-09-30 | J49: 協議-冷氣/系統空調-進貨達成獎勵(達成250萬-400萬1.8%，400萬-800萬2%，800萬-1600萬2.3%，1600萬以上2.8%)-20221005~20230930 | K49: TW006084001B | L49: 上晟國際 | M49: TW | O49: % | P49: 進貨達成獎勵(達成250萬-400萬1.8%，400萬-800萬2%，800萬-1600萬2.3%，1600萬以上2.8%) | R49: 冷氣 | T49: 0
A50: TW006084001B | B50: TW006084001B | C50: TT-TTSI-20221004-0024 | D50: ASPM2022093001-AC/SAC-Dealer-President Incentive-20221005-20230930 | E50: 2022-10-05 | F50: 2023-09-30 | G50: TTSI | H50: 2022-10-05 | I50: 2023-09-30 | J50: 協議-冷氣/系統空調-進貨達成獎勵(達成250萬-400萬1.8%，400萬-800萬2%，800萬-1600萬2.3%，1600萬以上2.8%)-20221005~20230930 | K50: TW006084001B | L50: 上晟國際 | M50: TW | O50: % | P50: 進貨達成獎勵(達成250萬-400萬1.8%，400萬-800萬2%，800萬-1600萬2.3%，1600萬以上2.8%) | R50: 系統空調 | T50: 0
A51: TW006143001B | B51: TW006143001B | C51: TT-TTSI-20221004-0024 | D51: ASPM2022093001-AC/SAC-Dealer-President Incentive-20221005-20230930 | E51: 2022-10-05 | F51: 2023-09-30 | G51: TTSI | H51: 2022-10-05 | I51: 2023-09-30 | J51: 協議-冷氣/系統空調-進貨達成獎勵(達成250萬-400萬1.8%，400萬-800萬2%，800萬-1600萬2.3%，1600萬以上2.8%)-20221005~20230930 | K51: TW006143001B | L51: 立誠電器 | M51: TW | O51: % | P51: 進貨達成獎勵(達成250萬-400萬1.8%，400萬-800萬2%，800萬-1600萬2.3%，1600萬以上2.8%) | R51: 冷氣 | T51: 0
A52: TW006143001B | B52: TW006143001B | C52: TT-TTSI-20221004-0024 | D52: ASPM2022093001-AC/SAC-Dealer-President Incentive-20221005-20230930 | E52: 2022-10-05 | F52: 2023-09-30 | G52: TTSI | H52: 2022-10-05 | I52: 2023-09-30 | J52: 協議-冷氣/系統空調-進貨達成獎勵(達成250萬-400萬1.8%，400萬-800萬2%，800萬-1600萬2.3%，1600萬以上2.8%)-20221005~20230930 | K52: TW006143001B | L52: 立誠電器 | M52: TW | O52: % | P52: 進貨達成獎勵(達成250萬-400萬1.8%，400萬-800萬2%，800萬-1600萬2.3%，1600萬以上2.8%) | R52: 系統空調 | T52: 0
A53: TW006320001B | B53: TW006320001B | C53: TT-TTSI-20221004-0024 | D53: ASPM2022093001-AC/SAC-Dealer-President Incentive-20221005-20230930 | E53: 2022-10-05 | F53: 2023-09-30 | G53: TTSI | H53: 2022-10-05 | I53: 2023-09-30 | J53: 協議-冷氣/系統空調-進貨達成獎勵(達成250萬-400萬1.8%，400萬-800萬2%，800萬-1600萬2.3%，1600萬以上2.8%)-20221005~20230930 | K53: TW006320001B | L53: 小楊家電行 | M53: TW | O53: % | P53: 進貨達成獎勵(達成250萬-400萬1.8%，400萬-800萬2%，800萬-1600萬2.3%，1600萬以上2.8%) | R53: 冷氣 | T53: 0
A54: TW006320001B | B54: TW006320001B | C54: TT-TTSI-20221004-0024 | D54: ASPM2022093001-AC/SAC-Dealer-President Incentive-20221005-20230930 | E54: 2022-10-05 | F54: 2023-09-30 | G54: TTSI | H54: 2022-10-05 | I54: 2023-09-30 | J54: 協議-冷氣/系統空調-進貨達成獎勵(達成250萬-400萬1.8%，400萬-800萬2%，800萬-1600萬2.3%，1600萬以上2.8%)-20221005~20230930 | K54: TW006320001B | L54: 小楊家電行 | M54: TW | O54: % | P54: 進貨達成獎勵(達成250萬-400萬1.8%，400萬-800萬2%，800萬-1600萬2.3%，1600萬以上2.8%) | R54: 系統空調 | T54: 0
A55: TW006332001B | B55: TW006332001B | C55: TT-TTSI-20221004-0024 | D55: ASPM2022093001-AC/SAC-Dealer-President Incentive-20221005-20230930 | E55: 2022-10-05 | F55: 2023-09-30 | G55: TTSI | H55: 2022-10-05 | I55: 2023-09-30 | J55: 協議-冷氣/系統空調-進貨達成獎勵(達成250萬-400萬1.8%，400萬-800萬2%，800萬-1600萬2.3%，1600萬以上2.8%)-20221005~20230930 | K55: TW006332001B | L55: 萊旺電器行 | M55: TW | O55: % | P55: 進貨達成獎勵(達成250萬-400萬1.8%，400萬-800萬2%，800萬-1600萬2.3%，1600萬以上2.8%) | R55: 冷氣 | T55: 0
A56: TW006332001B | B56: TW006332001B | C56: TT-TTSI-20221004-0024 | D56: ASPM2022093001-AC/SAC-Dealer-President Incentive-20221005-20230930 | E56: 2022-10-05 | F56: 2023-09-30 | G56: TTSI | H56: 2022-10-05 | I56: 2023-09-30 | J56: 協議-冷氣/系統空調-進貨達成獎勵(達成250萬-400萬1.8%，400萬-800萬2%，800萬-1600萬2.3%，1600萬以上2.8%)-20221005~20230930 | K56: TW006332001B | L56: 萊旺電器行 | M56: TW | O56: % | P56: 進貨達成獎勵(達成250萬-400萬1.8%，400萬-800萬2%，800萬-1600萬2.3%，1600萬以上2.8%) | R56: 系統空調 | T56: 0
A57: TW006379001B | B57: TW006379001B | C57: TT-TTSI-20221004-0024 | D57: ASPM2022093001-AC/SAC-Dealer-President Incentive-20221005-20230930 | E57: 2022-10-05 | F57: 2023-09-30 | G57: TTSI | H57: 2022-10-05 | I57: 2023-09-30 | J57: 協議-冷氣/系統空調-進貨達成獎勵(達成250萬-400萬1.8%，400萬-800萬2%，800萬-1600萬2.3%，1600萬以上2.8%)-20221005~20230930 | K57: TW006379001B | L57: 東洋電器行 | M57: TW | O57: % | P57: 進貨達成獎勵(達成250萬-400萬1.8%，400萬-800萬2%，800萬-1600萬2.3%，1600萬以上2.8%) | R57: 冷氣 | T57: 0
A58: TW006379001B | B58: TW006379001B | C58: TT-TTSI-20221004-0024 | D58: ASPM2022093001-AC/SAC-Dealer-President Incentive-20221005-20230930 | E58: 2022-10-05 | F58: 2023-09-30 | G58: TTSI | H58: 2022-10-05 | I58: 2023-09-30 | J58: 協議-冷氣/系統空調-進貨達成獎勵(達成250萬-400萬1.8%，400萬-800萬2%，800萬-1600萬2.3%，1600萬以上2.8%)-20221005~20230930 | K58: TW006379001B | L58: 東洋電器行 | M58: TW | O58: % | P58: 進貨達成獎勵(達成250萬-400萬1.8%，400萬-800萬2%，800萬-1600萬2.3%，1600萬以上2.8%) | R58: 系統空調 | T58: 0
A59: TW006823001B | B59: TW006823001B | C59: TT-TTSI-20221004-0024 | D59: ASPM2022093001-AC/SAC-Dealer-President Incentive-20221005-20230930 | E59: 2022-10-05 | F59: 2023-09-30 | G59: TTSI | H59: 2022-10-05 | I59: 2023-09-30 | J59: 協議-冷氣/系統空調-進貨達成獎勵(達成250萬-400萬1.8%，400萬-800萬2%，800萬-1600萬2.3%，1600萬以上2.8%)-20221005~20230930 | K59: TW006823001B | L59: 米米實業有限公司 | M59: TW | O59: % | P59: 進貨達成獎勵(達成250萬-400萬1.8%，400萬-800萬2%，800萬-1600萬2.3%，1600萬以上2.8%) | R59: 冷氣 | T59: 0
A60: TW006823001B | B60: TW006823001B | C60: TT-TTSI-20221004-0024 | D60: ASPM2022093001-AC/SAC-Dealer-President Incentive-20221005-20230930 | E60: 2022-10-05 | F60: 2023-09-30 | G60: TTSI | H60: 2022-10-05 | I60: 2023-09-30 | J60: 協議-冷氣/系統空調-進貨達成獎勵(達成250萬-400萬1.8%，400萬-800萬2%，800萬-1600萬2.3%，1600萬以上2.8%)-20221005~20230930 | K60: TW006823001B | L60: 米米實業有限公司 | M60: TW | O60: % | P60: 進貨達成獎勵(達成250萬-400萬1.8%，400萬-800萬2%，800萬-1600萬2.3%，1600萬以上2.8%) | R60: 系統空調 | T60: 0
A61: TW007026001B | B61: TW007026001B | C61: TT-TTSI-20221004-0024 | D61: ASPM2022093001-AC/SAC-Dealer-President Incentive-20221005-20230930 | E61: 2022-10-05 | F61: 2023-09-30 | G61: TTSI | H61: 2022-10-05 | I61: 2023-09-30 | J61: 協議-冷氣/系統空調-進貨達成獎勵(達成250萬-400萬1.8%，400萬-800萬2%，800萬-1600萬2.3%，1600萬以上2.8%)-20221005~20230930 | K61: TW007026001B | L61: 友誠汽車行 | M61: TW | O61: % | P61: 進貨達成獎勵(達成250萬-400萬1.8%，400萬-800萬2%，800萬-1600萬2.3%，1600萬以上2.8%) | R61: 冷氣 | T61: 0
A62: TW007026001B | B62: TW007026001B | C62: TT-TTSI-20221004-0024 | D62: ASPM2022093001-AC/SAC-Dealer-President Incentive-20221005-20230930 | E62: 2022-10-05 | F62: 2023-09-30 | G62: TTSI | H62: 2022-10-05 | I62: 2023-09-30 | J62: 協議-冷氣/系統空調-進貨達成獎勵(達成250萬-400萬1.8%，400萬-800萬2%，800萬-1600萬2.3%，1600萬以上2.8%)-20221005~20230930 | K62: TW007026001B | L62: 友誠汽車行 | M62: TW | O62: % | P62: 進貨達成獎勵(達成250萬-400萬1.8%，400萬-800萬2%，800萬-1600萬2.3%，1600萬以上2.8%) | R62: 系統空調 | T62: 0
A63: TW007053001B | B63: TW007053001B | C63: TT-TTSI-20221004-0024 | D63: ASPM2022093001-AC/SAC-Dealer-President Incentive-20221005-20230930 | E63: 2022-10-05 | F63: 2023-09-30 | G63: TTSI | H63: 2022-10-05 | I63: 2023-09-30 | J63: 協議-冷氣/系統空調-進貨達成獎勵(達成250萬-400萬1.8%，400萬-800萬2%，800萬-1600萬2.3%，1600萬以上2.8%)-20221005~20230930 | K63: TW007053001B | L63: 尚合雅有限公司 | M63: TW | O63: % | P63: 進貨達成獎勵(達成250萬-400萬1.8%，400萬-800萬2%，800萬-1600萬2.3%，1600萬以上2.8%) | R63: 冷氣 | T63: 0
A64: TW007053001B | B64: TW007053001B | C64: TT-TTSI-20221004-0024 | D64: ASPM2022093001-AC/SAC-Dealer-President Incentive-20221005-20230930 | E64: 2022-10-05 | F64: 2023-09-30 | G64: TTSI | H64: 2022-10-05 | I64: 2023-09-30 | J64: 協議-冷氣/系統空調-進貨達成獎勵(達成250萬-400萬1.8%，400萬-800萬2%，800萬-1600萬2.3%，1600萬以上2.8%)-20221005~20230930 | K64: TW007053001B | L64: 尚合雅有限公司 | M64: TW | O64: % | P64: 進貨達成獎勵(達成250萬-400萬1.8%，400萬-800萬2%，800萬-1600萬2.3%，1600萬以上2.8%) | R64: 系統空調 | T64: 0
A65: TW007094001B | B65: TW007094001B | C65: TT-TTSI-20221004-0024 | D65: ASPM2022093001-AC/SAC-Dealer-President Incentive-20221005-20230930 | E65: 2022-10-05 | F65: 2023-09-30 | G65: TTSI | H65: 2022-10-05 | I65: 2023-09-30 | J65: 協議-冷氣/系統空調-進貨達成獎勵(達成250萬-400萬1.8%，400萬-800萬2%，800萬-1600萬2.3%，1600萬以上2.8%)-20221005~20230930 | K65: TW007094001B | L65: 遠東空調家電有限公司 | M65: TW | O65: % | P65: 進貨達成獎勵(達成250萬-400萬1.8%，400萬-800萬2%，800萬-1600萬2.3%，1600萬以上2.8%) | R65: 冷氣 | T65: 0
A66: =IFERROR(VLOOKUP(N66,多CODE,2,0),IF(RIGHT($B66,1)="H",LEFT($B66,11)&"B",IFERROR(VLOOKUP($B66,SHIP,3,0),$B66))) -> TW007094001B | B66: TW007094001B | C66: TT-TTSI-20221004-0024 | D66: ASPM2022093001-AC/SAC-Dealer-President Incentive-20221005-20230930 | E66: 2022-10-05 | F66: 2023-09-30 | G66: =MID(C66,4,4) -> TTSI | H66: =IF(OR($G66="NTSI",$G66="TTSI"),$E66,LEFT($E66,4)&"/"&MID($E66,5,2)&"/"&RIGHT($E66,2)) -> 2022-10-05 | I66: =IF(OR($G66="NTSI",$G66="TTSI"),$F66,LEFT($F66,4)&"/"&MID($F66,5,2)&"/"&RIGHT($F66,2)) -> 2023-09-30 | J66: 協議-冷氣/系統空調-進貨達成獎勵(達成250萬-400萬1.8%，400萬-800萬2%，800萬-1600萬2.3%，1600萬以上2.8%)-20221005~20230930 | K66: TW007094001B | L66: 遠東空調家電有限公司 | M66: TW | O66: % | P66: 進貨達成獎勵(達成250萬-400萬1.8%，400萬-800萬2%，800萬-1600萬2.3%，1600萬以上2.8%) | R66: 系統空調 | T66: 0
A67: TW007112001B | B67: TW007112001B | C67: TT-TTSI-20221004-0024 | D67: ASPM2022093001-AC/SAC-Dealer-President Incentive-20221005-20230930 | E67: 2022-10-05 | F67: 2023-09-30 | G67: TTSI | H67: 2022-10-05 | I67: 2023-09-30 | J67: 協議-冷氣/系統空調-進貨達成獎勵(達成250萬-400萬1.8%，400萬-800萬2%，800萬-1600萬2.3%，1600萬以上2.8%)-20221005~20230930 | K67: TW007112001B | L67: 桂安家電空調 | M67: TW | O67: % | P67: 進貨達成獎勵(達成250萬-400萬1.8%，400萬-800萬2%，800萬-1600萬2.3%，1600萬以上2.8%) | R67: 冷氣 | T67: 0
A68: TW007112001B | B68: TW007112001B | C68: TT-TTSI-20221004-0024 | D68: ASPM2022093001-AC/SAC-Dealer-President Incentive-20221005-20230930 | E68: 2022-10-05 | F68: 2023-09-30 | G68: TTSI | H68: 2022-10-05 | I68: 2023-09-30 | J68: 協議-冷氣/系統空調-進貨達成獎勵(達成250萬-400萬1.8%，400萬-800萬2%，800萬-1600萬2.3%，1600萬以上2.8%)-20221005~20230930 | K68: TW007112001B | L68: 桂安家電空調 | M68: TW | O68: % | P68: 進貨達成獎勵(達成250萬-400萬1.8%，400萬-800萬2%，800萬-1600萬2.3%，1600萬以上2.8%) | R68: 系統空調 | T68: 0
A69: TW006200001B | B69: TW006200001B | C69: TT-TTSI-20221004-0024 | D69: ASPM2022093001-AC/SAC-Dealer-President Incentive-20221005-20230930 | E69: 2022-10-05 | F69: 2023-09-30 | G69: TTSI | H69: 2022-10-05 | I69: 2023-09-30 | J69: 協議-冷氣/系統空調-進貨達成獎勵(達成250萬-400萬1.8%，400萬-800萬2%，800萬-1600萬2.3%，1600萬以上2.8%)-20221005~20230930 | K69: TW006200001B | L69: 集盛股份有限公司 | M69: TW | O69: % | P69: 進貨達成獎勵(達成250萬-400萬1.8%，400萬-800萬2%，800萬-1600萬2.3%，1600萬以上2.8%) | R69: 冷氣 | T69: 0
A70: TW006200001B | B70: TW006200001B | C70: TT-TTSI-20221004-0024 | D70: ASPM2022093001-AC/SAC-Dealer-President Incentive-20221005-20230930 | E70: 2022-10-05 | F70: 2023-09-30 | G70: TTSI | H70: 2022-10-05 | I70: 2023-09-30 | J70: 協議-冷氣/系統空調-進貨達成獎勵(達成250萬-400萬1.8%，400萬-800萬2%，800萬-1600萬2.3%，1600萬以上2.8%)-20221005~20230930 | K70: TW006200001B | L70: 集盛股份有限公司 | M70: TW | O70: % | P70: 進貨達成獎勵(達成250萬-400萬1.8%，400萬-800萬2%，800萬-1600萬2.3%，1600萬以上2.8%) | R70: 系統空調 | T70: 0
A71: TW006180001B | B71: TW006180001B | C71: TT-TTSI-20221004-0024 | D71: ASPM2022093001-AC/SAC-Dealer-President Incentive-20221005-20230930 | E71: 2022-10-05 | F71: 2023-09-30 | G71: TTSI | H71: 2022-10-05 | I71: 2023-09-30 | J71: 協議-冷氣/系統空調-進貨達成獎勵(達成250萬-400萬1.8%，400萬-800萬2%，800萬-1600萬2.3%，1600萬以上2.8%)-20221005~20230930 | K71: TW006180001B | L71: 東翰企業社 | M71: TW | O71: % | P71: 進貨達成獎勵(達成250萬-400萬1.8%，400萬-800萬2%，800萬-1600萬2.3%，1600萬以上2.8%) | R71: 冷氣 | T71: 0
A72: TW006180001B | B72: TW006180001B | C72: TT-TTSI-20221004-0024 | D72: ASPM2022093001-AC/SAC-Dealer-President Incentive-20221005-20230930 | E72: 2022-10-05 | F72: 2023-09-30 | G72: TTSI | H72: 2022-10-05 | I72: 2023-09-30 | J72: 協議-冷氣/系統空調-進貨達成獎勵(達成250萬-400萬1.8%，400萬-800萬2%，800萬-1600萬2.3%，1600萬以上2.8%)-20221005~20230930 | K72: TW006180001B | L72: 東翰企業社 | M72: TW | O72: % | P72: 進貨達成獎勵(達成250萬-400萬1.8%，400萬-800萬2%，800萬-1600萬2.3%，1600萬以上2.8%) | R72: 系統空調 | T72: 0
A73: TW002400001B | B73: TW002400001B | C73: TT-TTSI-20221004-0024 | D73: ASPM2022093001-AC/SAC-Dealer-President Incentive-20221005-20230930 | E73: 2022-10-05 | F73: 2023-09-30 | G73: TTSI | H73: 2022-10-05 | I73: 2023-09-30 | J73: 協議-冷氣/系統空調-進貨達成獎勵(達成250萬-400萬1.8%，400萬-800萬2%，800萬-1600萬2.3%，1600萬以上2.8%)-20221005~20230930 | K73: TW002400001B | L73: 金亞實業 | M73: TW | O73: % | P73: 進貨達成獎勵(達成250萬-400萬1.8%，400萬-800萬2%，800萬-1600萬2.3%，1600萬以上2.8%) | R73: 冷氣 | T73: 0
A74: TW002400001B | B74: TW002400001B | C74: TT-TTSI-20221004-0024 | D74: ASPM2022093001-AC/SAC-Dealer-President Incentive-20221005-20230930 | E74: 2022-10-05 | F74: 2023-09-30 | G74: TTSI | H74: 2022-10-05 | I74: 2023-09-30 | J74: 協議-冷氣/系統空調-進貨達成獎勵(達成250萬-400萬1.8%，400萬-800萬2%，800萬-1600萬2.3%，1600萬以上2.8%)-20221005~20230930 | K74: TW002400001B | L74: 金亞實業 | M74: TW | O74: % | P74: 進貨達成獎勵(達成250萬-400萬1.8%，400萬-800萬2%，800萬-1600萬2.3%，1600萬以上2.8%) | R74: 系統空調 | T74: 0
A75: TW002381001B | B75: TW002381001B | C75: TT-TTSI-20221004-0024 | D75: ASPM2022093001-AC/SAC-Dealer-President Incentive-20221005-20230930 | E75: 2022-10-05 | F75: 2023-09-30 | G75: TTSI | H75: 2022-10-05 | I75: 2023-09-30 | J75: 協議-冷氣/系統空調-進貨達成獎勵(達成250萬-400萬1.8%，400萬-800萬2%，800萬-1600萬2.3%，1600萬以上2.8%)-20221005~20230930 | K75: TW002381001B | L75: 萬豐視聽 | M75: TW | O75: % | P75: 進貨達成獎勵(達成250萬-400萬1.8%，400萬-800萬2%，800萬-1600萬2.3%，1600萬以上2.8%) | R75: 冷氣 | T75: 0
A76: TW002381001B | B76: TW002381001B | C76: TT-TTSI-20221004-0024 | D76: ASPM2022093001-AC/SAC-Dealer-President Incentive-20221005-20230930 | E76: 2022-10-05 | F76: 2023-09-30 | G76: TTSI | H76: 2022-10-05 | I76: 2023-09-30 | J76: 協議-冷氣/系統空調-進貨達成獎勵(達成250萬-400萬1.8%，400萬-800萬2%，800萬-1600萬2.3%，1600萬以上2.8%)-20221005~20230930 | K76: TW002381001B | L76: 萬豐視聽 | M76: TW | O76: % | P76: 進貨達成獎勵(達成250萬-400萬1.8%，400萬-800萬2%，800萬-1600萬2.3%，1600萬以上2.8%) | R76: 系統空調 | T76: 0
A77: TW005084001B | B77: TW005084001B | C77: TT-TTSI-20221004-0024 | D77: ASPM2022093001-AC/SAC-Dealer-President Incentive-20221005-20230930 | E77: 2022-10-05 | F77: 2023-09-30 | G77: TTSI | H77: 2022-10-05 | I77: 2023-09-30 | J77: 協議-冷氣/系統空調-進貨達成獎勵(達成250萬-400萬1.8%，400萬-800萬2%，800萬-1600萬2.3%，1600萬以上2.8%)-20221005~20230930 | K77: TW005084001B | L77: 東隆電器 | M77: TW | O77: % | P77: 進貨達成獎勵(達成250萬-400萬1.8%，400萬-800萬2%，800萬-1600萬2.3%，1600萬以上2.8%) | R77: 冷氣 | T77: 0
A78: TW005084001B | B78: TW005084001B | C78: TT-TTSI-20221004-0024 | D78: ASPM2022093001-AC/SAC-Dealer-President Incentive-20221005-20230930 | E78: 2022-10-05 | F78: 2023-09-30 | G78: TTSI | H78: 2022-10-05 | I78: 2023-09-30 | J78: 協議-冷氣/系統空調-進貨達成獎勵(達成250萬-400萬1.8%，400萬-800萬2%，800萬-1600萬2.3%，1600萬以上2.8%)-20221005~20230930 | K78: TW005084001B | L78: 東隆電器 | M78: TW | O78: % | P78: 進貨達成獎勵(達成250萬-400萬1.8%，400萬-800萬2%，800萬-1600萬2.3%，1600萬以上2.8%) | R78: 系統空調 | T78: 0
A79: TW005027002B | B79: TW005027002B | C79: TT-TTSI-20221004-0024 | D79: ASPM2022093001-AC/SAC-Dealer-President Incentive-20221005-20230930 | E79: 2022-10-05 | F79: 2023-09-30 | G79: TTSI | H79: 2022-10-05 | I79: 2023-09-30 | J79: 協議-冷氣/系統空調-進貨達成獎勵(達成250萬-400萬1.8%，400萬-800萬2%，800萬-1600萬2.3%，1600萬以上2.8%)-20221005~20230930 | K79: TW005027002B | L79: 華資電有限公司 | M79: TW | O79: % | P79: 進貨達成獎勵(達成250萬-400萬1.8%，400萬-800萬2%，800萬-1600萬2.3%，1600萬以上2.8%) | R79: 冷氣 | T79: 0
A80: TW005027002B | B80: TW005027002B | C80: TT-TTSI-20221004-0024 | D80: ASPM2022093001-AC/SAC-Dealer-President Incentive-20221005-20230930 | E80: 2022-10-05 | F80: 2023-09-30 | G80: TTSI | H80: 2022-10-05 | I80: 2023-09-30 | J80: 協議-冷氣/系統空調-進貨達成獎勵(達成250萬-400萬1.8%，400萬-800萬2%，800萬-1600萬2.3%，1600萬以上2.8%)-20221005~20230930 | K80: TW005027002B | L80: 華資電有限公司 | M80: TW | O80: % | P80: 進貨達成獎勵(達成250萬-400萬1.8%，400萬-800萬2%，800萬-1600萬2.3%，1600萬以上2.8%) | R80: 系統空調 | T80: 0
A81: TW002288001B | B81: TW002288001B | C81: TT-TTSI-20221004-0024 | D81: ASPM2022093001-AC/SAC-Dealer-President Incentive-20221005-20230930 | E81: 2022-10-05 | F81: 2023-09-30 | G81: TTSI | H81: 2022-10-05 | I81: 2023-09-30 | J81: 協議-冷氣/系統空調-進貨達成獎勵(達成250萬-400萬1.8%，400萬-800萬2%，800萬-1600萬2.3%，1600萬以上2.8%)-20221005~20230930 | K81: TW002288001B | L81: 幸韻電器 | M81: TW | O81: % | P81: 進貨達成獎勵(達成250萬-400萬1.8%，400萬-800萬2%，800萬-1600萬2.3%，1600萬以上2.8%) | R81: 冷氣 | T81: 0
A82: TW002288001B | B82: TW002288001B | C82: TT-TTSI-20221004-0024 | D82: ASPM2022093001-AC/SAC-Dealer-President Incentive-20221005-20230930 | E82: 2022-10-05 | F82: 2023-09-30 | G82: TTSI | H82: 2022-10-05 | I82: 2023-09-30 | J82: 協議-冷氣/系統空調-進貨達成獎勵(達成250萬-400萬1.8%，400萬-800萬2%，800萬-1600萬2.3%，1600萬以上2.8%)-20221005~20230930 | K82: TW002288001B | L82: 幸韻電器 | M82: TW | O82: % | P82: 進貨達成獎勵(達成250萬-400萬1.8%，400萬-800萬2%，800萬-1600萬2.3%，1600萬以上2.8%) | R82: 系統空調 | T82: 0
A83: TW007058001B | B83: TW007058001B | C83: TT-TTSI-20221004-0024 | D83: ASPM2022093001-AC/SAC-Dealer-President Incentive-20221005-20230930 | E83: 2022-10-05 | F83: 2023-09-30 | G83: TTSI | H83: 2022-10-05 | I83: 2023-09-30 | J83: 協議-冷氣/系統空調-進貨達成獎勵(達成250萬-400萬1.8%，400萬-800萬2%，800萬-1600萬2.3%，1600萬以上2.8%)-20221005~20230930 | K83: TW007058001B | L83: 東緣電器行 | M83: TW | O83: % | P83: 進貨達成獎勵(達成250萬-400萬1.8%，400萬-800萬2%，800萬-1600萬2.3%，1600萬以上2.8%) | R83: 冷氣 | T83: 0
A84: TW007058001B | B84: TW007058001B | C84: TT-TTSI-20221004-0024 | D84: ASPM2022093001-AC/SAC-Dealer-President Incentive-20221005-20230930 | E84: 2022-10-05 | F84: 2023-09-30 | G84: TTSI | H84: 2022-10-05 | I84: 2023-09-30 | J84: 協議-冷氣/系統空調-進貨達成獎勵(達成250萬-400萬1.8%，400萬-800萬2%，800萬-1600萬2.3%，1600萬以上2.8%)-20221005~20230930 | K84: TW007058001B | L84: 東緣電器行 | M84: TW | O84: % | P84: 進貨達成獎勵(達成250萬-400萬1.8%，400萬-800萬2%，800萬-1600萬2.3%，1600萬以上2.8%) | R84: 系統空調 | T84: 0
A85: TW003310001B | B85: TW003310001B | C85: TT-TTSI-20221004-0024 | D85: ASPM2022093001-AC/SAC-Dealer-President Incentive-20221005-20230930 | E85: 2022-10-05 | F85: 2023-09-30 | G85: TTSI | H85: 2022-10-05 | I85: 2023-09-30 | J85: 協議-冷氣/系統空調-進貨達成獎勵(達成250萬-400萬1.8%，400萬-800萬2%，800萬-1600萬2.3%，1600萬以上2.8%)-20221005~20230930 | K85: TW003310001B | L85: 陽曜企業 | M85: TW | O85: % | P85: 進貨達成獎勵(達成250萬-400萬1.8%，400萬-800萬2%，800萬-1600萬2.3%，1600萬以上2.8%) | R85: 冷氣 | T85: 0
A86: TW003310001B | B86: TW003310001B | C86: TT-TTSI-20221004-0024 | D86: ASPM2022093001-AC/SAC-Dealer-President Incentive-20221005-20230930 | E86: 2022-10-05 | F86: 2023-09-30 | G86: TTSI | H86: 2022-10-05 | I86: 2023-09-30 | J86: 協議-冷氣/系統空調-進貨達成獎勵(達成250萬-400萬1.8%，400萬-800萬2%，800萬-1600萬2.3%，1600萬以上2.8%)-20221005~20230930 | K86: TW003310001B | L86: 陽曜企業 | M86: TW | O86: % | P86: 進貨達成獎勵(達成250萬-400萬1.8%，400萬-800萬2%，800萬-1600萬2.3%，1600萬以上2.8%) | R86: 系統空調 | T86: 0
A87: TW007140001B | B87: TW007140001B | C87: TT-TTSI-20221004-0024 | D87: ASPM2022093001-AC/SAC-Dealer-President Incentive-20221005-20230930 | E87: 2022-10-05 | F87: 2023-09-30 | G87: TTSI | H87: 2022-10-05 | I87: 2023-09-30 | J87: 協議-冷氣/系統空調-進貨達成獎勵(達成250萬-400萬1.8%，400萬-800萬2%，800萬-1600萬2.3%，1600萬以上2.8%)-20221005~20230930 | K87: TW007140001B | L87: 老王科技 | M87: TW | O87: % | P87: 進貨達成獎勵(達成250萬-400萬1.8%，400萬-800萬2%，800萬-1600萬2.3%，1600萬以上2.8%) | R87: 冷氣 | T87: 0
A88: TW007140001B | B88: TW007140001B | C88: TT-TTSI-20221004-0024 | D88: ASPM2022093001-AC/SAC-Dealer-President Incentive-20221005-20230930 | E88: 2022-10-05 | F88: 2023-09-30 | G88: TTSI | H88: 2022-10-05 | I88: 2023-09-30 | J88: 協議-冷氣/系統空調-進貨達成獎勵(達成250萬-400萬1.8%，400萬-800萬2%，800萬-1600萬2.3%，1600萬以上2.8%)-20221005~20230930 | K88: TW007140001B | L88: 老王科技 | M88: TW | O88: % | P88: 進貨達成獎勵(達成250萬-400萬1.8%，400萬-800萬2%，800萬-1600萬2.3%，1600萬以上2.8%) | R88: 系統空調 | T88: 0
A89: TW005258001B | B89: TW005258001B | C89: TT-TTSI-20221004-0024 | D89: ASPM2022093001-AC/SAC-Dealer-President Incentive-20221005-20230930 | E89: 2022-10-05 | F89: 2023-09-30 | G89: TTSI | H89: 2022-10-05 | I89: 2023-09-30 | J89: 協議-冷氣/系統空調-進貨達成獎勵(達成250萬-400萬1.8%，400萬-800萬2%，800萬-1600萬2.3%，1600萬以上2.8%)-20221005~20230930 | K89: TW005258001B | L89: 禾佳電器 | M89: TW | O89: % | P89: 進貨達成獎勵(達成250萬-400萬1.8%，400萬-800萬2%，800萬-1600萬2.3%，1600萬以上2.8%) | R89: 冷氣 | T89: 0
A90: TW005258001B | B90: TW005258001B | C90: TT-TTSI-20221004-0024 | D90: ASPM2022093001-AC/SAC-Dealer-President Incentive-20221005-20230930 | E90: 2022-10-05 | F90: 2023-09-30 | G90: TTSI | H90: 2022-10-05 | I90: 2023-09-30 | J90: 協議-冷氣/系統空調-進貨達成獎勵(達成250萬-400萬1.8%，400萬-800萬2%，800萬-1600萬2.3%，1600萬以上2.8%)-20221005~20230930 | K90: TW005258001B | L90: 禾佳電器 | M90: TW | O90: % | P90: 進貨達成獎勵(達成250萬-400萬1.8%，400萬-800萬2%，800萬-1600萬2.3%，1600萬以上2.8%) | R90: 系統空調 | T90: 0
A91: TW006409001B | B91: TW006409001B | C91: TT-TTSI-20221004-0024 | D91: ASPM2022093001-AC/SAC-Dealer-President Incentive-20221005-20230930 | E91: 2022-10-05 | F91: 2023-09-30 | G91: TTSI | H91: 2022-10-05 | I91: 2023-09-30 | J91: 協議-冷氣/系統空調-進貨達成獎勵(達成250萬-400萬1.8%，400萬-800萬2%，800萬-1600萬2.3%，1600萬以上2.8%)-20221005~20230930 | K91: TW006409001B | L91: 特家麗企業鹿港分公司 | M91: TW | O91: % | P91: 進貨達成獎勵(達成250萬-400萬1.8%，400萬-800萬2%，800萬-1600萬2.3%，1600萬以上2.8%) | R91: 冷氣 | T91: 0
A92: TW006409001B | B92: TW006409001B | C92: TT-TTSI-20221004-0024 | D92: ASPM2022093001-AC/SAC-Dealer-President Incentive-20221005-20230930 | E92: 2022-10-05 | F92: 2023-09-30 | G92: TTSI | H92: 2022-10-05 | I92: 2023-09-30 | J92: 協議-冷氣/系統空調-進貨達成獎勵(達成250萬-400萬1.8%，400萬-800萬2%，800萬-1600萬2.3%，1600萬以上2.8%)-20221005~20230930 | K92: TW006409001B | L92: 特家麗企業鹿港分公司 | M92: TW | O92: % | P92: 進貨達成獎勵(達成250萬-400萬1.8%，400萬-800萬2%，800萬-1600萬2.3%，1600萬以上2.8%) | R92: 系統空調 | T92: 0
A93: TW002851001B | B93: TW002851001B | C93: TT-TTSI-20221004-0024 | D93: ASPM2022093001-AC/SAC-Dealer-President Incentive-20221005-20230930 | E93: 2022-10-05 | F93: 2023-09-30 | G93: TTSI | H93: 2022-10-05 | I93: 2023-09-30 | J93: 協議-冷氣/系統空調-進貨達成獎勵(達成250萬-400萬1.8%，400萬-800萬2%，800萬-1600萬2.3%，1600萬以上2.8%)-20221005~20230930 | K93: TW002851001B | L93: 隆慶電器 | M93: TW | O93: % | P93: 進貨達成獎勵(達成250萬-400萬1.8%，400萬-800萬2%，800萬-1600萬2.3%，1600萬以上2.8%) | R93: 冷氣 | T93: 0
A94: TW002851001B | B94: TW002851001B | C94: TT-TTSI-20221004-0024 | D94: ASPM2022093001-AC/SAC-Dealer-President Incentive-20221005-20230930 | E94: 2022-10-05 | F94: 2023-09-30 | G94: TTSI | H94: 2022-10-05 | I94: 2023-09-30 | J94: 協議-冷氣/系統空調-進貨達成獎勵(達成250萬-400萬1.8%，400萬-800萬2%，800萬-1600萬2.3%，1600萬以上2.8%)-20221005~20230930 | K94: TW002851001B | L94: 隆慶電器 | M94: TW | O94: % | P94: 進貨達成獎勵(達成250萬-400萬1.8%，400萬-800萬2%，800萬-1600萬2.3%，1600萬以上2.8%) | R94: 系統空調 | T94: 0
A95: TW006428001B | B95: TW006428001B | C95: TT-TTSI-20221004-0024 | D95: ASPM2022093001-AC/SAC-Dealer-President Incentive-20221005-20230930 | E95: 2022-10-05 | F95: 2023-09-30 | G95: TTSI | H95: 2022-10-05 | I95: 2023-09-30 | J95: 協議-冷氣/系統空調-進貨達成獎勵(達成250萬-400萬1.8%，400萬-800萬2%，800萬-1600萬2.3%，1600萬以上2.8%)-20221005~20230930 | K95: TW006428001B | L95: 高詮電器行 | M95: TW | O95: % | P95: 進貨達成獎勵(達成250萬-400萬1.8%，400萬-800萬2%，800萬-1600萬2.3%，1600萬以上2.8%) | R95: 冷氣 | T95: 0
A96: TW006428001B | B96: TW006428001B | C96: TT-TTSI-20221004-0024 | D96: ASPM2022093001-AC/SAC-Dealer-President Incentive-20221005-20230930 | E96: 2022-10-05 | F96: 2023-09-30 | G96: TTSI | H96: 2022-10-05 | I96: 2023-09-30 | J96: 協議-冷氣/系統空調-進貨達成獎勵(達成250萬-400萬1.8%，400萬-800萬2%，800萬-1600萬2.3%，1600萬以上2.8%)-20221005~20230930 | K96: TW006428001B | L96: 高詮電器行 | M96: TW | O96: % | P96: 進貨達成獎勵(達成250萬-400萬1.8%，400萬-800萬2%，800萬-1600萬2.3%，1600萬以上2.8%) | R96: 系統空調 | T96: 0
A97: TW004694001B | B97: TW004694001B | C97: TT-TTSI-20221004-0024 | D97: ASPM2022093001-AC/SAC-Dealer-President Incentive-20221005-20230930 | E97: 2022-10-05 | F97: 2023-09-30 | G97: TTSI | H97: 2022-10-05 | I97: 2023-09-30 | J97: 協議-冷氣/系統空調-進貨達成獎勵(達成250萬-400萬1.8%，400萬-800萬2%，800萬-1600萬2.3%，1600萬以上2.8%)-20221005~20230930 | K97: TW004694001B | L97: 領侁電器 | M97: TW | O97: % | P97: 進貨達成獎勵(達成250萬-400萬1.8%，400萬-800萬2%，800萬-1600萬2.3%，1600萬以上2.8%) | R97: 冷氣 | T97: 0
A98: TW004694001B | B98: TW004694001B | C98: TT-TTSI-20221004-0024 | D98: ASPM2022093001-AC/SAC-Dealer-President Incentive-20221005-20230930 | E98: 2022-10-05 | F98: 2023-09-30 | G98: TTSI | H98: 2022-10-05 | I98: 2023-09-30 | J98: 協議-冷氣/系統空調-進貨達成獎勵(達成250萬-400萬1.8%，400萬-800萬2%，800萬-1600萬2.3%，1600萬以上2.8%)-20221005~20230930 | K98: TW004694001B | L98: 領侁電器 | M98: TW | O98: % | P98: 進貨達成獎勵(達成250萬-400萬1.8%，400萬-800萬2%，800萬-1600萬2.3%，1600萬以上2.8%) | R98: 系統空調 | T98: 0
A99: TW004929001B | B99: TW004929001B | C99: TT-TTSI-20221004-0024 | D99: ASPM2022093001-AC/SAC-Dealer-President Incentive-20221005-20230930 | E99: 2022-10-05 | F99: 2023-09-30 | G99: TTSI | H99: 2022-10-05 | I99: 2023-09-30 | J99: 協議-冷氣/系統空調-進貨達成獎勵(達成250萬-400萬1.8%，400萬-800萬2%，800萬-1600萬2.3%，1600萬以上2.8%)-20221005~20230930 | K99: TW004929001B | L99: 聯錩順電器 | M99: TW | O99: % | P99: 進貨達成獎勵(達成250萬-400萬1.8%，400萬-800萬2%，800萬-1600萬2.3%，1600萬以上2.8%) | R99: 冷氣 | T99: 0
A100: TW004929001B | B100: TW004929001B | C100: TT-TTSI-20221004-0024 | D100: ASPM2022093001-AC/SAC-Dealer-President Incentive-20221005-20230930 | E100: 2022-10-05 | F100: 2023-09-30 | G100: TTSI | H100: 2022-10-05 | I100: 2023-09-30 | J100: 協議-冷氣/系統空調-進貨達成獎勵(達成250萬-400萬1.8%，400萬-800萬2%，800萬-1600萬2.3%，1600萬以上2.8%)-20221005~20230930 | K100: TW004929001B | L100: 聯錩順電器 | M100: TW | O100: % | P100: 進貨達成獎勵(達成250萬-400萬1.8%，400萬-800萬2%，800萬-1600萬2.3%，1600萬以上2.8%) | R100: 系統空調 | T100: 0
A101: TW007134001B | B101: TW007134001B | C101: TT-TTSI-20221004-0024 | D101: ASPM2022093001-AC/SAC-Dealer-President Incentive-20221005-20230930 | E101: 2022-10-05 | F101: 2023-09-30 | G101: TTSI | H101: 2022-10-05 | I101: 2023-09-30 | J101: 協議-冷氣/系統空調-進貨達成獎勵(達成250萬-400萬1.8%，400萬-800萬2%，800萬-1600萬2.3%，1600萬以上2.8%)-20221005~20230930 | K101: TW007134001B | L101: 威特家電 | M101: TW | O101: % | P101: 進貨達成獎勵(達成250萬-400萬1.8%，400萬-800萬2%，800萬-1600萬2.3%，1600萬以上2.8%) | R101: 冷氣 | T101: 0
A102: TW007134001B | B102: TW007134001B | C102: TT-TTSI-20221004-0024 | D102: ASPM2022093001-AC/SAC-Dealer-President Incentive-20221005-20230930 | E102: 2022-10-05 | F102: 2023-09-30 | G102: TTSI | H102: 2022-10-05 | I102: 2023-09-30 | J102: 協議-冷氣/系統空調-進貨達成獎勵(達成250萬-400萬1.8%，400萬-800萬2%，800萬-1600萬2.3%，1600萬以上2.8%)-20221005~20230930 | K102: TW007134001B | L102: 威特家電 | M102: TW | O102: % | P102: 進貨達成獎勵(達成250萬-400萬1.8%，400萬-800萬2%，800萬-1600萬2.3%，1600萬以上2.8%) | R102: 系統空調 | T102: 0
A103: TW002143001B | B103: TW002143001B | C103: TT-TTSI-20221004-0024 | D103: ASPM2022093001-AC/SAC-Dealer-President Incentive-20221005-20230930 | E103: 2022-10-05 | F103: 2023-09-30 | G103: TTSI | H103: 2022-10-05 | I103: 2023-09-30 | J103: 協議-冷氣/系統空調-進貨達成獎勵(達成250萬-400萬1.8%，400萬-800萬2%，800萬-1600萬2.3%，1600萬以上2.8%)-20221005~20230930 | K103: TW002143001B | L103: 全省電器 | M103: TW | O103: % | P103: 進貨達成獎勵(達成250萬-400萬1.8%，400萬-800萬2%，800萬-1600萬2.3%，1600萬以上2.8%) | R103: 冷氣 | T103: 0
A104: TW002143001B | B104: TW002143001B | C104: TT-TTSI-20221004-0024 | D104: ASPM2022093001-AC/SAC-Dealer-President Incentive-20221005-20230930 | E104: 2022-10-05 | F104: 2023-09-30 | G104: TTSI | H104: 2022-10-05 | I104: 2023-09-30 | J104: 協議-冷氣/系統空調-進貨達成獎勵(達成250萬-400萬1.8%，400萬-800萬2%，800萬-1600萬2.3%，1600萬以上2.8%)-20221005~20230930 | K104: TW002143001B | L104: 全省電器 | M104: TW | O104: % | P104: 進貨達成獎勵(達成250萬-400萬1.8%，400萬-800萬2%，800萬-1600萬2.3%，1600萬以上2.8%) | R104: 系統空調 | T104: 0
A105: TW005593001B | B105: TW005593001B | C105: TT-TTSI-20221004-0024 | D105: ASPM2022093001-AC/SAC-Dealer-President Incentive-20221005-20230930 | E105: 2022-10-05 | F105: 2023-09-30 | G105: TTSI | H105: 2022-10-05 | I105: 2023-09-30 | J105: 協議-冷氣/系統空調-進貨達成獎勵(達成250萬-400萬1.8%，400萬-800萬2%，800萬-1600萬2.3%，1600萬以上2.8%)-20221005~20230930 | K105: TW005593001B | L105: 美光節能科技有限公司 | M105: TW | O105: % | P105: 進貨達成獎勵(達成250萬-400萬1.8%，400萬-800萬2%，800萬-1600萬2.3%，1600萬以上2.8%) | R105: 冷氣 | T105: 0
A106: TW005593001B | B106: TW005593001B | C106: TT-TTSI-20221004-0024 | D106: ASPM2022093001-AC/SAC-Dealer-President Incentive-20221005-20230930 | E106: 2022-10-05 | F106: 2023-09-30 | G106: TTSI | H106: 2022-10-05 | I106: 2023-09-30 | J106: 協議-冷氣/系統空調-進貨達成獎勵(達成250萬-400萬1.8%，400萬-800萬2%，800萬-1600萬2.3%，1600萬以上2.8%)-20221005~20230930 | K106: TW005593001B | L106: 美光節能科技有限公司 | M106: TW | O106: % | P106: 進貨達成獎勵(達成250萬-400萬1.8%，400萬-800萬2%，800萬-1600萬2.3%，1600萬以上2.8%) | R106: 系統空調 | T106: 0
A107: TW002154001B | B107: TW002154001B | C107: TT-TTSI-20221004-0024 | D107: ASPM2022093001-AC/SAC-Dealer-President Incentive-20221005-20230930 | E107: 2022-10-05 | F107: 2023-09-30 | G107: TTSI | H107: 2022-10-05 | I107: 2023-09-30 | J107: 協議-冷氣/系統空調-進貨達成獎勵(達成250萬-400萬1.8%，400萬-800萬2%，800萬-1600萬2.3%，1600萬以上2.8%)-20221005~20230930 | K107: TW002154001B | L107: 信福電器 | M107: TW | O107: % | P107: 進貨達成獎勵(達成250萬-400萬1.8%，400萬-800萬2%，800萬-1600萬2.3%，1600萬以上2.8%) | R107: 冷氣 | T107: 0
A108: TW002154001B | B108: TW002154001B | C108: TT-TTSI-20221004-0024 | D108: ASPM2022093001-AC/SAC-Dealer-President Incentive-20221005-20230930 | E108: 2022-10-05 | F108: 2023-09-30 | G108: TTSI | H108: 2022-10-05 | I108: 2023-09-30 | J108: 協議-冷氣/系統空調-進貨達成獎勵(達成250萬-400萬1.8%，400萬-800萬2%，800萬-1600萬2.3%，1600萬以上2.8%)-20221005~20230930 | K108: TW002154001B | L108: 信福電器 | M108: TW | O108: % | P108: 進貨達成獎勵(達成250萬-400萬1.8%，400萬-800萬2%，800萬-1600萬2.3%，1600萬以上2.8%) | R108: 系統空調 | T108: 0
A109: TW006897001B | B109: TW006897001B | C109: TT-TTSI-20221004-0024 | D109: ASPM2022093001-AC/SAC-Dealer-President Incentive-20221005-20230930 | E109: 2022-10-05 | F109: 2023-09-30 | G109: TTSI | H109: 2022-10-05 | I109: 2023-09-30 | J109: 協議-冷氣/系統空調-進貨達成獎勵(達成250萬-400萬1.8%，400萬-800萬2%，800萬-1600萬2.3%，1600萬以上2.8%)-20221005~20230930 | K109: TW006897001B | L109: 姿芳科技有限公司 | M109: TW | O109: % | P109: 進貨達成獎勵(達成250萬-400萬1.8%，400萬-800萬2%，800萬-1600萬2.3%，1600萬以上2.8%) | R109: 冷氣 | T109: 0
A110: TW006897001B | B110: TW006897001B | C110: TT-TTSI-20221004-0024 | D110: ASPM2022093001-AC/SAC-Dealer-President Incentive-20221005-20230930 | E110: 2022-10-05 | F110: 2023-09-30 | G110: TTSI | H110: 2022-10-05 | I110: 2023-09-30 | J110: 協議-冷氣/系統空調-進貨達成獎勵(達成250萬-400萬1.8%，400萬-800萬2%，800萬-1600萬2.3%，1600萬以上2.8%)-20221005~20230930 | K110: TW006897001B | L110: 姿芳科技有限公司 | M110: TW | O110: % | P110: 進貨達成獎勵(達成250萬-400萬1.8%，400萬-800萬2%，800萬-1600萬2.3%，1600萬以上2.8%) | R110: 系統空調 | T110: 0
A111: TW002950001B | B111: TW002950001B | C111: TT-TTSI-20221004-0024 | D111: ASPM2022093001-AC/SAC-Dealer-President Incentive-20221005-20230930 | E111: 2022-10-05 | F111: 2023-09-30 | G111: TTSI | H111: 2022-10-05 | I111: 2023-09-30 | J111: 協議-冷氣/系統空調-進貨達成獎勵(達成250萬-400萬1.8%，400萬-800萬2%，800萬-1600萬2.3%，1600萬以上2.8%)-20221005~20230930 | K111: TW002950001B | L111: 廣昌電器 | M111: TW | O111: % | P111: 進貨達成獎勵(達成250萬-400萬1.8%，400萬-800萬2%，800萬-1600萬2.3%，1600萬以上2.8%) | R111: 冷氣 | T111: 0
A112: TW002950001B | B112: TW002950001B | C112: TT-TTSI-20221004-0024 | D112: ASPM2022093001-AC/SAC-Dealer-President Incentive-20221005-20230930 | E112: 2022-10-05 | F112: 2023-09-30 | G112: TTSI | H112: 2022-10-05 | I112: 2023-09-30 | J112: 協議-冷氣/系統空調-進貨達成獎勵(達成250萬-400萬1.8%，400萬-800萬2%，800萬-1600萬2.3%，1600萬以上2.8%)-20221005~20230930 | K112: TW002950001B | L112: 廣昌電器 | M112: TW | O112: % | P112: 進貨達成獎勵(達成250萬-400萬1.8%，400萬-800萬2%，800萬-1600萬2.3%，1600萬以上2.8%) | R112: 系統空調 | T112: 0
A113: TW004349001B | B113: TW004349001B | C113: TT-TTSI-20221004-0024 | D113: ASPM2022093001-AC/SAC-Dealer-President Incentive-20221005-20230930 | E113: 2022-10-05 | F113: 2023-09-30 | G113: TTSI | H113: 2022-10-05 | I113: 2023-09-30 | J113: 協議-冷氣/系統空調-進貨達成獎勵(達成250萬-400萬1.8%，400萬-800萬2%，800萬-1600萬2.3%，1600萬以上2.8%)-20221005~20230930 | K113: TW004349001B | L113: 瑨耀企業 | M113: TW | O113: % | P113: 進貨達成獎勵(達成250萬-400萬1.8%，400萬-800萬2%，800萬-1600萬2.3%，1600萬以上2.8%) | R113: 冷氣 | T113: 0
A114: TW004349001B | B114: TW004349001B | C114: TT-TTSI-20221004-0024 | D114: ASPM2022093001-AC/SAC-Dealer-President Incentive-20221005-20230930 | E114: 2022-10-05 | F114: 2023-09-30 | G114: TTSI | H114: 2022-10-05 | I114: 2023-09-30 | J114: 協議-冷氣/系統空調-進貨達成獎勵(達成250萬-400萬1.8%，400萬-800萬2%，800萬-1600萬2.3%，1600萬以上2.8%)-20221005~20230930 | K114: TW004349001B | L114: 瑨耀企業 | M114: TW | O114: % | P114: 進貨達成獎勵(達成250萬-400萬1.8%，400萬-800萬2%，800萬-1600萬2.3%，1600萬以上2.8%) | R114: 系統空調 | T114: 0
A115: TW003760001B | B115: TW003760001B | C115: TT-TTSI-20221004-0024 | D115: ASPM2022093001-AC/SAC-Dealer-President Incentive-20221005-20230930 | E115: 2022-10-05 | F115: 2023-09-30 | G115: TTSI | H115: 2022-10-05 | I115: 2023-09-30 | J115: 協議-冷氣/系統空調-進貨達成獎勵(達成250萬-400萬1.8%，400萬-800萬2%，800萬-1600萬2.3%，1600萬以上2.8%)-20221005~20230930 | K115: TW003760001B | L115: 德豐電器 | M115: TW | O115: % | P115: 進貨達成獎勵(達成250萬-400萬1.8%，400萬-800萬2%，800萬-1600萬2.3%，1600萬以上2.8%) | R115: 冷氣 | T115: 0
A116: TW003760001B | B116: TW003760001B | C116: TT-TTSI-20221004-0024 | D116: ASPM2022093001-AC/SAC-Dealer-President Incentive-20221005-20230930 | E116: 2022-10-05 | F116: 2023-09-30 | G116: TTSI | H116: 2022-10-05 | I116: 2023-09-30 | J116: 協議-冷氣/系統空調-進貨達成獎勵(達成250萬-400萬1.8%，400萬-800萬2%，800萬-1600萬2.3%，1600萬以上2.8%)-20221005~20230930 | K116: TW003760001B | L116: 德豐電器 | M116: TW | O116: % | P116: 進貨達成獎勵(達成250萬-400萬1.8%，400萬-800萬2%，800萬-1600萬2.3%，1600萬以上2.8%) | R116: 系統空調 | T116: 0
A117: TW002141001B | B117: TW002141001B | C117: TT-TTSI-20221004-0024 | D117: ASPM2022093001-AC/SAC-Dealer-President Incentive-20221005-20230930 | E117: 2022-10-05 | F117: 2023-09-30 | G117: TTSI | H117: 2022-10-05 | I117: 2023-09-30 | J117: 協議-冷氣/系統空調-進貨達成獎勵(達成250萬-400萬1.8%，400萬-800萬2%，800萬-1600萬2.3%，1600萬以上2.8%)-20221005~20230930 | K117: TW002141001B | L117: 冠銓電器 | M117: TW | O117: % | P117: 進貨達成獎勵(達成250萬-400萬1.8%，400萬-800萬2%，800萬-1600萬2.3%，1600萬以上2.8%) | R117: 冷氣 | T117: 0
A118: TW002141001B | B118: TW002141001B | C118: TT-TTSI-20221004-0024 | D118: ASPM2022093001-AC/SAC-Dealer-President Incentive-20221005-20230930 | E118: 2022-10-05 | F118: 2023-09-30 | G118: TTSI | H118: 2022-10-05 | I118: 2023-09-30 | J118: 協議-冷氣/系統空調-進貨達成獎勵(達成250萬-400萬1.8%，400萬-800萬2%，800萬-1600萬2.3%，1600萬以上2.8%)-20221005~20230930 | K118: TW002141001B | L118: 冠銓電器 | M118: TW | O118: % | P118: 進貨達成獎勵(達成250萬-400萬1.8%，400萬-800萬2%，800萬-1600萬2.3%，1600萬以上2.8%) | R118: 系統空調 | T118: 0
A119: TW002997001B | B119: TW002997001B | C119: TT-TTSI-20221004-0024 | D119: ASPM2022093001-AC/SAC-Dealer-President Incentive-20221005-20230930 | E119: 2022-10-05 | F119: 2023-09-30 | G119: TTSI | H119: 2022-10-05 | I119: 2023-09-30 | J119: 協議-冷氣/系統空調-進貨達成獎勵(達成250萬-400萬1.8%，400萬-800萬2%，800萬-1600萬2.3%，1600萬以上2.8%)-20221005~20230930 | K119: TW002997001B | L119: 鎰銘電器 | M119: TW | O119: % | P119: 進貨達成獎勵(達成250萬-400萬1.8%，400萬-800萬2%，800萬-1600萬2.3%，1600萬以上2.8%) | R119: 冷氣 | T119: 0
A120: TW002997001B | B120: TW002997001B | C120: TT-TTSI-20221004-0024 | D120: ASPM2022093001-AC/SAC-Dealer-President Incentive-20221005-20230930 | E120: 2022-10-05 | F120: 2023-09-30 | G120: TTSI | H120: 2022-10-05 | I120: 2023-09-30 | J120: 協議-冷氣/系統空調-進貨達成獎勵(達成250萬-400萬1.8%，400萬-800萬2%，800萬-1600萬2.3%，1600萬以上2.8%)-20221005~20230930 | K120: TW002997001B | L120: 鎰銘電器 | M120: TW | O120: % | P120: 進貨達成獎勵(達成250萬-400萬1.8%，400萬-800萬2%，800萬-1600萬2.3%，1600萬以上2.8%) | R120: 系統空調 | T120: 0
A121: TW003389001B | B121: TW003389001B | C121: TT-TTSI-20221004-0024 | D121: ASPM2022093001-AC/SAC-Dealer-President Incentive-20221005-20230930 | E121: 2022-10-05 | F121: 2023-09-30 | G121: TTSI | H121: 2022-10-05 | I121: 2023-09-30 | J121: 協議-冷氣/系統空調-進貨達成獎勵(達成250萬-400萬1.8%，400萬-800萬2%，800萬-1600萬2.3%，1600萬以上2.8%)-20221005~20230930 | K121: TW003389001B | L121: 金樹電器空調 | M121: TW | O121: % | P121: 進貨達成獎勵(達成250萬-400萬1.8%，400萬-800萬2%，800萬-1600萬2.3%，1600萬以上2.8%) | R121: 冷氣 | T121: 0
A122: TW003389001B | B122: TW003389001B | C122: TT-TTSI-20221004-0024 | D122: ASPM2022093001-AC/SAC-Dealer-President Incentive-20221005-20230930 | E122: 2022-10-05 | F122: 2023-09-30 | G122: TTSI | H122: 2022-10-05 | I122: 2023-09-30 | J122: 協議-冷氣/系統空調-進貨達成獎勵(達成250萬-400萬1.8%，400萬-800萬2%，800萬-1600萬2.3%，1600萬以上2.8%)-20221005~20230930 | K122: TW003389001B | L122: 金樹電器空調 | M122: TW | O122: % | P122: 進貨達成獎勵(達成250萬-400萬1.8%，400萬-800萬2%，800萬-1600萬2.3%，1600萬以上2.8%) | R122: 系統空調 | T122: 0
A123: TW002262001B | B123: TW002262001B | C123: TT-TTSI-20221004-0024 | D123: ASPM2022093001-AC/SAC-Dealer-President Incentive-20221005-20230930 | E123: 2022-10-05 | F123: 2023-09-30 | G123: TTSI | H123: 2022-10-05 | I123: 2023-09-30 | J123: 協議-冷氣/系統空調-進貨達成獎勵(達成250萬-400萬1.8%，400萬-800萬2%，800萬-1600萬2.3%，1600萬以上2.8%)-20221005~20230930 | K123: TW002262001B | L123: 太子電業 | M123: TW | O123: % | P123: 進貨達成獎勵(達成250萬-400萬1.8%，400萬-800萬2%，800萬-1600萬2.3%，1600萬以上2.8%) | R123: 冷氣 | T123: 0
A124: TW002262001B | B124: TW002262001B | C124: TT-TTSI-20221004-0024 | D124: ASPM2022093001-AC/SAC-Dealer-President Incentive-20221005-20230930 | E124: 2022-10-05 | F124: 2023-09-30 | G124: TTSI | H124: 2022-10-05 | I124: 2023-09-30 | J124: 協議-冷氣/系統空調-進貨達成獎勵(達成250萬-400萬1.8%，400萬-800萬2%，800萬-1600萬2.3%，1600萬以上2.8%)-20221005~20230930 | K124: TW002262001B | L124: 太子電業 | M124: TW | O124: % | P124: 進貨達成獎勵(達成250萬-400萬1.8%，400萬-800萬2%，800萬-1600萬2.3%，1600萬以上2.8%) | R124: 系統空調 | T124: 0
A125: TW002572001B | B125: TW002572001B | C125: TT-TTSI-20221004-0024 | D125: ASPM2022093001-AC/SAC-Dealer-President Incentive-20221005-20230930 | E125: 2022-10-05 | F125: 2023-09-30 | G125: TTSI | H125: 2022-10-05 | I125: 2023-09-30 | J125: 協議-冷氣/系統空調-進貨達成獎勵(達成250萬-400萬1.8%，400萬-800萬2%，800萬-1600萬2.3%，1600萬以上2.8%)-20221005~20230930 | K125: TW002572001B | L125: 新傑電器 | M125: TW | O125: % | P125: 進貨達成獎勵(達成250萬-400萬1.8%，400萬-800萬2%，800萬-1600萬2.3%，1600萬以上2.8%) | R125: 冷氣 | T125: 0
A126: TW002572001B | B126: TW002572001B | C126: TT-TTSI-20221004-0024 | D126: ASPM2022093001-AC/SAC-Dealer-President Incentive-20221005-20230930 | E126: 2022-10-05 | F126: 2023-09-30 | G126: TTSI | H126: 2022-10-05 | I126: 2023-09-30 | J126: 協議-冷氣/系統空調-進貨達成獎勵(達成250萬-400萬1.8%，400萬-800萬2%，800萬-1600萬2.3%，1600萬以上2.8%)-20221005~20230930 | K126: TW002572001B | L126: 新傑電器 | M126: TW | O126: % | P126: 進貨達成獎勵(達成250萬-400萬1.8%，400萬-800萬2%，800萬-1600萬2.3%，1600萬以上2.8%) | R126: 系統空調 | T126: 0
A127: TW006835001B | B127: TW006835001B | C127: TT-TTSI-20221004-0024 | D127: ASPM2022093001-AC/SAC-Dealer-President Incentive-20221005-20230930 | E127: 2022-10-05 | F127: 2023-09-30 | G127: TTSI | H127: 2022-10-05 | I127: 2023-09-30 | J127: 協議-冷氣/系統空調-進貨達成獎勵(達成250萬-400萬1.8%，400萬-800萬2%，800萬-1600萬2.3%，1600萬以上2.8%)-20221005~20230930 | K127: TW006835001B | L127: 嘉豐電器 | M127: TW | O127: % | P127: 進貨達成獎勵(達成250萬-400萬1.8%，400萬-800萬2%，800萬-1600萬2.3%，1600萬以上2.8%) | R127: 冷氣 | T127: 0
A128: TW006835001B | B128: TW006835001B | C128: TT-TTSI-20221004-0024 | D128: ASPM2022093001-AC/SAC-Dealer-President Incentive-20221005-20230930 | E128: 2022-10-05 | F128: 2023-09-30 | G128: TTSI | H128: 2022-10-05 | I128: 2023-09-30 | J128: 協議-冷氣/系統空調-進貨達成獎勵(達成250萬-400萬1.8%，400萬-800萬2%，800萬-1600萬2.3%，1600萬以上2.8%)-20221005~20230930 | K128: TW006835001B | L128: 嘉豐電器 | M128: TW | O128: % | P128: 進貨達成獎勵(達成250萬-400萬1.8%，400萬-800萬2%，800萬-1600萬2.3%，1600萬以上2.8%) | R128: 系統空調 | T128: 0
A129: TW002338001B | B129: TW002338001B | C129: TT-TTSI-20221004-0024 | D129: ASPM2022093001-AC/SAC-Dealer-President Incentive-20221005-20230930 | E129: 2022-10-05 | F129: 2023-09-30 | G129: TTSI | H129: 2022-10-05 | I129: 2023-09-30 | J129: 協議-冷氣/系統空調-進貨達成獎勵(達成250萬-400萬1.8%，400萬-800萬2%，800萬-1600萬2.3%，1600萬以上2.8%)-20221005~20230930 | K129: TW002338001B | L129: 福娥電業 | M129: TW | O129: % | P129: 進貨達成獎勵(達成250萬-400萬1.8%，400萬-800萬2%，800萬-1600萬2.3%，1600萬以上2.8%) | R129: 冷氣 | T129: 0
A130: =IFERROR(VLOOKUP(N130,多CODE,2,0),IF(RIGHT($B130,1)="H",LEFT($B130,11)&"B",IFERROR(VLOOKUP($B130,SHIP,3,0),$B130))) -> TW002338001B | B130: TW002338001B | C130: TT-TTSI-20221004-0024 | D130: ASPM2022093001-AC/SAC-Dealer-President Incentive-20221005-20230930 | E130: 2022-10-05 | F130: 2023-09-30 | G130: =MID(C130,4,4) -> TTSI | H130: =IF(OR($G130="NTSI",$G130="TTSI"),$E130,LEFT($E130,4)&"/"&MID($E130,5,2)&"/"&RIGHT($E130,2)) -> 2022-10-05 | I130: =IF(OR($G130="NTSI",$G130="TTSI"),$F130,LEFT($F130,4)&"/"&MID($F130,5,2)&"/"&RIGHT($F130,2)) -> 2023-09-30 | J130: 協議-冷氣/系統空調-進貨達成獎勵(達成250萬-400萬1.8%，400萬-800萬2%，800萬-1600萬2.3%，1600萬以上2.8%)-20221005~20230930 | K130: TW002338001B | L130: 福娥電業 | M130: TW | O130: % | P130: 進貨達成獎勵(達成250萬-400萬1.8%，400萬-800萬2%，800萬-1600萬2.3%，1600萬以上2.8%) | R130: 系統空調 | T130: 0
A131: TW002431001B | B131: TW002431001B | C131: TT-TTSI-20221004-0024 | D131: ASPM2022093001-AC/SAC-Dealer-President Incentive-20221005-20230930 | E131: 2022-10-05 | F131: 2023-09-30 | G131: TTSI | H131: 2022-10-05 | I131: 2023-09-30 | J131: 協議-冷氣/系統空調-進貨達成獎勵(達成250萬-400萬1.8%，400萬-800萬2%，800萬-1600萬2.3%，1600萬以上2.8%)-20221005~20230930 | K131: TW002431001B | L131: 一世代電氣 | M131: TW | O131: % | P131: 進貨達成獎勵(達成250萬-400萬1.8%，400萬-800萬2%，800萬-1600萬2.3%，1600萬以上2.8%) | R131: 冷氣 | T131: 0
A132: TW002431001B | B132: TW002431001B | C132: TT-TTSI-20221004-0024 | D132: ASPM2022093001-AC/SAC-Dealer-President Incentive-20221005-20230930 | E132: 2022-10-05 | F132: 2023-09-30 | G132: TTSI | H132: 2022-10-05 | I132: 2023-09-30 | J132: 協議-冷氣/系統空調-進貨達成獎勵(達成250萬-400萬1.8%，400萬-800萬2%，800萬-1600萬2.3%，1600萬以上2.8%)-20221005~20230930 | K132: TW002431001B | L132: 一世代電氣 | M132: TW | O132: % | P132: 進貨達成獎勵(達成250萬-400萬1.8%，400萬-800萬2%，800萬-1600萬2.3%，1600萬以上2.8%) | R132: 系統空調 | T132: 0
A133: TW004348001B | B133: TW004348001B | C133: TT-TTSI-20221004-0024 | D133: ASPM2022093001-AC/SAC-Dealer-President Incentive-20221005-20230930 | E133: 2022-10-05 | F133: 2023-09-30 | G133: TTSI | H133: 2022-10-05 | I133: 2023-09-30 | J133: 協議-冷氣/系統空調-進貨達成獎勵(達成250萬-400萬1.8%，400萬-800萬2%，800萬-1600萬2.3%，1600萬以上2.8%)-20221005~20230930 | K133: TW004348001B | L133: 晉宏電器 | M133: TW | O133: % | P133: 進貨達成獎勵(達成250萬-400萬1.8%，400萬-800萬2%，800萬-1600萬2.3%，1600萬以上2.8%) | R133: 冷氣 | T133: 0
A134: TW004348001B | B134: TW004348001B | C134: TT-TTSI-20221004-0024 | D134: ASPM2022093001-AC/SAC-Dealer-President Incentive-20221005-20230930 | E134: 2022-10-05 | F134: 2023-09-30 | G134: TTSI | H134: 2022-10-05 | I134: 2023-09-30 | J134: 協議-冷氣/系統空調-進貨達成獎勵(達成250萬-400萬1.8%，400萬-800萬2%，800萬-1600萬2.3%，1600萬以上2.8%)-20221005~20230930 | K134: TW004348001B | L134: 晉宏電器 | M134: TW | O134: % | P134: 進貨達成獎勵(達成250萬-400萬1.8%，400萬-800萬2%，800萬-1600萬2.3%，1600萬以上2.8%) | R134: 系統空調 | T134: 0
A135: TW004826001B | B135: TW004826001B | C135: TT-TTSI-20221004-0024 | D135: ASPM2022093001-AC/SAC-Dealer-President Incentive-20221005-20230930 | E135: 2022-10-05 | F135: 2023-09-30 | G135: TTSI | H135: 2022-10-05 | I135: 2023-09-30 | J135: 協議-冷氣/系統空調-進貨達成獎勵(達成250萬-400萬1.8%，400萬-800萬2%，800萬-1600萬2.3%，1600萬以上2.8%)-20221005~20230930 | K135: TW004826001B | L135: 龍輝電業 | M135: TW | O135: % | P135: 進貨達成獎勵(達成250萬-400萬1.8%，400萬-800萬2%，800萬-1600萬2.3%，1600萬以上2.8%) | R135: 冷氣 | T135: 0
A136: TW004826001B | B136: TW004826001B | C136: TT-TTSI-20221004-0024 | D136: ASPM2022093001-AC/SAC-Dealer-President Incentive-20221005-20230930 | E136: 2022-10-05 | F136: 2023-09-30 | G136: TTSI | H136: 2022-10-05 | I136: 2023-09-30 | J136: 協議-冷氣/系統空調-進貨達成獎勵(達成250萬-400萬1.8%，400萬-800萬2%，800萬-1600萬2.3%，1600萬以上2.8%)-20221005~20230930 | K136: TW004826001B | L136: 龍輝電業 | M136: TW | O136: % | P136: 進貨達成獎勵(達成250萬-400萬1.8%，400萬-800萬2%，800萬-1600萬2.3%，1600萬以上2.8%) | R136: 系統空調 | T136: 0
A137: TW007244001B | B137: TW007244001B | C137: TT-TTSI-20221004-0024 | D137: ASPM2022093001-AC/SAC-Dealer-President Incentive-20221005-20230930 | E137: 2022-10-05 | F137: 2023-09-30 | G137: TTSI | H137: 2022-10-05 | I137: 2023-09-30 | J137: 協議-冷氣/系統空調-進貨達成獎勵(達成250萬-400萬1.8%，400萬-800萬2%，800萬-1600萬2.3%，1600萬以上2.8%)-20221005~20230930 | K137: TW007244001B | L137: 克拉企業 | M137: TW | O137: % | P137: 進貨達成獎勵(達成250萬-400萬1.8%，400萬-800萬2%，800萬-1600萬2.3%，1600萬以上2.8%) | R137: 冷氣 | T137: 0
A138: TW007244001B | B138: TW007244001B | C138: TT-TTSI-20221004-0024 | D138: ASPM2022093001-AC/SAC-Dealer-President Incentive-20221005-20230930 | E138: 2022-10-05 | F138: 2023-09-30 | G138: TTSI | H138: 2022-10-05 | I138: 2023-09-30 | J138: 協議-冷氣/系統空調-進貨達成獎勵(達成250萬-400萬1.8%，400萬-800萬2%，800萬-1600萬2.3%，1600萬以上2.8%)-20221005~20230930 | K138: TW007244001B | L138: 克拉企業 | M138: TW | O138: % | P138: 進貨達成獎勵(達成250萬-400萬1.8%，400萬-800萬2%，800萬-1600萬2.3%，1600萬以上2.8%) | R138: 系統空調 | T138: 0
A139: TW007217001B | B139: TW007217001B | C139: TT-TTSI-20221004-0024 | D139: ASPM2022093001-AC/SAC-Dealer-President Incentive-20221005-20230930 | E139: 2022-10-05 | F139: 2023-09-30 | G139: TTSI | H139: 2022-10-05 | I139: 2023-09-30 | J139: 協議-冷氣/系統空調-進貨達成獎勵(達成250萬-400萬1.8%，400萬-800萬2%，800萬-1600萬2.3%，1600萬以上2.8%)-20221005~20230930 | K139: TW007217001B | L139: 三瀛實業有限公司 | M139: TW | O139: % | P139: 進貨達成獎勵(達成250萬-400萬1.8%，400萬-800萬2%，800萬-1600萬2.3%，1600萬以上2.8%) | R139: 冷氣 | T139: 0
A140: TW007217001B | B140: TW007217001B | C140: TT-TTSI-20221004-0024 | D140: ASPM2022093001-AC/SAC-Dealer-President Incentive-20221005-20230930 | E140: 2022-10-05 | F140: 2023-09-30 | G140: TTSI | H140: 2022-10-05 | I140: 2023-09-30 | J140: 協議-冷氣/系統空調-進貨達成獎勵(達成250萬-400萬1.8%，400萬-800萬2%，800萬-1600萬2.3%，1600萬以上2.8%)-20221005~20230930 | K140: TW007217001B | L140: 三瀛實業有限公司 | M140: TW | O140: % | P140: 進貨達成獎勵(達成250萬-400萬1.8%，400萬-800萬2%，800萬-1600萬2.3%，1600萬以上2.8%) | R140: 系統空調 | T140: 0
A141: TW003134001B | B141: TW003134001B | C141: TT-TTSI-20221004-0024 | D141: ASPM2022093001-AC/SAC-Dealer-President Incentive-20221005-20230930 | E141: 2022-10-05 | F141: 2023-09-30 | G141: TTSI | H141: 2022-10-05 | I141: 2023-09-30 | J141: 協議-冷氣/系統空調-進貨達成獎勵(達成250萬-400萬1.8%，400萬-800萬2%，800萬-1600萬2.3%，1600萬以上2.8%)-20221005~20230930 | K141: TW003134001B | L141: 鴻輝電器 | M141: TW | O141: % | P141: 進貨達成獎勵(達成250萬-400萬1.8%，400萬-800萬2%，800萬-1600萬2.3%，1600萬以上2.8%) | R141: 冷氣 | T141: 0
A142: TW003134001B | B142: TW003134001B | C142: TT-TTSI-20221004-0024 | D142: ASPM2022093001-AC/SAC-Dealer-President Incentive-20221005-20230930 | E142: 2022-10-05 | F142: 2023-09-30 | G142: TTSI | H142: 2022-10-05 | I142: 2023-09-30 | J142: 協議-冷氣/系統空調-進貨達成獎勵(達成250萬-400萬1.8%，400萬-800萬2%，800萬-1600萬2.3%，1600萬以上2.8%)-20221005~20230930 | K142: TW003134001B | L142: 鴻輝電器 | M142: TW | O142: % | P142: 進貨達成獎勵(達成250萬-400萬1.8%，400萬-800萬2%，800萬-1600萬2.3%，1600萬以上2.8%) | R142: 系統空調 | T142: 0
A143: TW005266001B | B143: TW005266001B | C143: TT-TTSI-20221004-0024 | D143: ASPM2022093001-AC/SAC-Dealer-President Incentive-20221005-20230930 | E143: 2022-10-05 | F143: 2023-09-30 | G143: TTSI | H143: 2022-10-05 | I143: 2023-09-30 | J143: 協議-冷氣/系統空調-進貨達成獎勵(達成250萬-400萬1.8%，400萬-800萬2%，800萬-1600萬2.3%，1600萬以上2.8%)-20221005~20230930 | K143: TW005266001B | L143: 承鑫電器 | M143: TW | O143: % | P143: 進貨達成獎勵(達成250萬-400萬1.8%，400萬-800萬2%，800萬-1600萬2.3%，1600萬以上2.8%) | R143: 冷氣 | T143: 0
A144: TW005266001B | B144: TW005266001B | C144: TT-TTSI-20221004-0024 | D144: ASPM2022093001-AC/SAC-Dealer-President Incentive-20221005-20230930 | E144: 2022-10-05 | F144: 2023-09-30 | G144: TTSI | H144: 2022-10-05 | I144: 2023-09-30 | J144: 協議-冷氣/系統空調-進貨達成獎勵(達成250萬-400萬1.8%，400萬-800萬2%，800萬-1600萬2.3%，1600萬以上2.8%)-20221005~20230930 | K144: TW005266001B | L144: 承鑫電器 | M144: TW | O144: % | P144: 進貨達成獎勵(達成250萬-400萬1.8%，400萬-800萬2%，800萬-1600萬2.3%，1600萬以上2.8%) | R144: 系統空調 | T144: 0
A145: TW007239001B | B145: TW007239001B | C145: TT-TTSI-20221004-0024 | D145: ASPM2022093001-AC/SAC-Dealer-President Incentive-20221005-20230930 | E145: 2022-10-05 | F145: 2023-09-30 | G145: TTSI | H145: 2022-10-05 | I145: 2023-09-30 | J145: 協議-冷氣/系統空調-進貨達成獎勵(達成250萬-400萬1.8%，400萬-800萬2%，800萬-1600萬2.3%，1600萬以上2.8%)-20221005~20230930 | K145: TW007239001B | L145: 鴻昇興業行 | M145: TW | O145: % | P145: 進貨達成獎勵(達成250萬-400萬1.8%，400萬-800萬2%，800萬-1600萬2.3%，1600萬以上2.8%) | R145: 冷氣 | T145: 0
A146: TW007239001B | B146: TW007239001B | C146: TT-TTSI-20221004-0024 | D146: ASPM2022093001-AC/SAC-Dealer-President Incentive-20221005-20230930 | E146: 2022-10-05 | F146: 2023-09-30 | G146: TTSI | H146: 2022-10-05 | I146: 2023-09-30 | J146: 協議-冷氣/系統空調-進貨達成獎勵(達成250萬-400萬1.8%，400萬-800萬2%，800萬-1600萬2.3%，1600萬以上2.8%)-20221005~20230930 | K146: TW007239001B | L146: 鴻昇興業行 | M146: TW | O146: % | P146: 進貨達成獎勵(達成250萬-400萬1.8%，400萬-800萬2%，800萬-1600萬2.3%，1600萬以上2.8%) | R146: 系統空調 | T146: 0
A147: TW002748001B | B147: TW002748001B | C147: TT-TTSI-20221004-0024 | D147: ASPM2022093001-AC/SAC-Dealer-President Incentive-20221005-20230930 | E147: 2022-10-05 | F147: 2023-09-30 | G147: TTSI | H147: 2022-10-05 | I147: 2023-09-30 | J147: 協議-冷氣/系統空調-進貨達成獎勵(達成250萬-400萬1.8%，400萬-800萬2%，800萬-1600萬2.3%，1600萬以上2.8%)-20221005~20230930 | K147: TW002748001B | L147: 創作電子音響 | M147: TW | O147: % | P147: 進貨達成獎勵(達成250萬-400萬1.8%，400萬-800萬2%，800萬-1600萬2.3%，1600萬以上2.8%) | R147: 冷氣 | T147: 0
A148: TW002748001B | B148: TW002748001B | C148: TT-TTSI-20221004-0024 | D148: ASPM2022093001-AC/SAC-Dealer-President Incentive-20221005-20230930 | E148: 2022-10-05 | F148: 2023-09-30 | G148: TTSI | H148: 2022-10-05 | I148: 2023-09-30 | J148: 協議-冷氣/系統空調-進貨達成獎勵(達成250萬-400萬1.8%，400萬-800萬2%，800萬-1600萬2.3%，1600萬以上2.8%)-20221005~20230930 | K148: TW002748001B | L148: 創作電子音響 | M148: TW | O148: % | P148: 進貨達成獎勵(達成250萬-400萬1.8%，400萬-800萬2%，800萬-1600萬2.3%，1600萬以上2.8%) | R148: 系統空調 | T148: 0
A149: TW007207001B | B149: TW007207001B | C149: TT-TTSI-20221004-0024 | D149: ASPM2022093001-AC/SAC-Dealer-President Incentive-20221005-20230930 | E149: 2022-10-05 | F149: 2023-09-30 | G149: TTSI | H149: 2022-10-05 | I149: 2023-09-30 | J149: 協議-冷氣/系統空調-進貨達成獎勵(達成250萬-400萬1.8%，400萬-800萬2%，800萬-1600萬2.3%，1600萬以上2.8%)-20221005~20230930 | K149: TW007207001B | L149: 泳菘水電工程行 | M149: TW | O149: % | P149: 進貨達成獎勵(達成250萬-400萬1.8%，400萬-800萬2%，800萬-1600萬2.3%，1600萬以上2.8%) | R149: 冷氣 | T149: 0
A150: TW007207001B | B150: TW007207001B | C150: TT-TTSI-20221004-0024 | D150: ASPM2022093001-AC/SAC-Dealer-President Incentive-20221005-20230930 | E150: 2022-10-05 | F150: 2023-09-30 | G150: TTSI | H150: 2022-10-05 | I150: 2023-09-30 | J150: 協議-冷氣/系統空調-進貨達成獎勵(達成250萬-400萬1.8%，400萬-800萬2%，800萬-1600萬2.3%，1600萬以上2.8%)-20221005~20230930 | K150: TW007207001B | L150: 泳菘水電工程行 | M150: TW | O150: % | P150: 進貨達成獎勵(達成250萬-400萬1.8%，400萬-800萬2%，800萬-1600萬2.3%，1600萬以上2.8%) | R150: 系統空調 | T150: 0
A151: TW002387001B | B151: TW002387001B | C151: TT-TTSI-20221004-0024 | D151: ASPM2022093001-AC/SAC-Dealer-President Incentive-20221005-20230930 | E151: 2022-10-05 | F151: 2023-09-30 | G151: TTSI | H151: 2022-10-05 | I151: 2023-09-30 | J151: 協議-冷氣/系統空調-進貨達成獎勵(達成250萬-400萬1.8%，400萬-800萬2%，800萬-1600萬2.3%，1600萬以上2.8%)-20221005~20230930 | K151: TW002387001B | L151: 鎮吉實業 | M151: TW | O151: % | P151: 進貨達成獎勵(達成250萬-400萬1.8%，400萬-800萬2%，800萬-1600萬2.3%，1600萬以上2.8%) | R151: 冷氣 | T151: 0
A152: TW002387001B | B152: TW002387001B | C152: TT-TTSI-20221004-0024 | D152: ASPM2022093001-AC/SAC-Dealer-President Incentive-20221005-20230930 | E152: 2022-10-05 | F152: 2023-09-30 | G152: TTSI | H152: 2022-10-05 | I152: 2023-09-30 | J152: 協議-冷氣/系統空調-進貨達成獎勵(達成250萬-400萬1.8%，400萬-800萬2%，800萬-1600萬2.3%，1600萬以上2.8%)-20221005~20230930 | K152: TW002387001B | L152: 鎮吉實業 | M152: TW | O152: % | P152: 進貨達成獎勵(達成250萬-400萬1.8%，400萬-800萬2%，800萬-1600萬2.3%，1600萬以上2.8%) | R152: 系統空調 | T152: 0
A153: TW002525001B | B153: TW002525001H | C153: TT-TTSI-20221226-0049 | D153: Contract MMCSN2212J031-Black-TW002525-Year-2023 | E153: 2023-01-01 | F153: 2023-12-31 | G153: TTSI | H153: 2023-01-01 | I153: 2023-12-31 | J153: 合約-黑電-年扣(180M*0.4%,215M*0.6%,255M*0.8%,295M*1%)-01~12 | K153: TW002525001H | L153: 大潤發總公司 | M153: TW | N153: MMCS-大潤發 | O153: % | P153: 年扣(180M*0.4%,215M*0.6%,255M*0.8%,295M*1%) | R153: 電視 | T153: 0
A154: TW002525001B | B154: TW002525001H | C154: TT-TTSI-20221226-0049 | D154: Contract MMCSN2212J031-Black-TW002525-Year-2023 | E154: 2023-01-01 | F154: 2023-12-31 | G154: TTSI | H154: 2023-01-01 | I154: 2023-12-31 | J154: 合約-黑電-年扣(180M*0.4%,215M*0.6%,255M*0.8%,295M*1%)-01~12 | K154: TW002525001H | L154: 大潤發總公司 | M154: TW | N154: MMCS-大潤發 | O154: % | P154: 年扣(180M*0.4%,215M*0.6%,255M*0.8%,295M*1%) | R154: 多媒體 | T154: 0
A155: TW002525001B | B155: TW002525001H | C155: TT-TTSI-20221226-0050 | D155: Contract MMCSN2212J031-Small-TW002525-Year-2023 | E155: 2023-01-01 | F155: 2023-12-31 | G155: TTSI | H155: 2023-01-01 | I155: 2023-12-31 | J155: 合約-小家電-年扣(10M*1.5%,15M*1.7%,20M*1.9%,25M以上*2%)-01~12 | K155: TW002525001H | L155: 大潤發總公司 | M155: TW | N155: MMCS-大潤發 | O155: % | P155: 年扣(10M*1.5%,15M*1.7%,20M*1.9%,25M以上*2%) | R155: 吸塵器 | T155: 0
A156: TW002525001B | B156: TW002525001H | C156: TT-TTSI-20221226-0050 | D156: Contract MMCSN2212J031-Small-TW002525-Year-2023 | E156: 2023-01-01 | F156: 2023-12-31 | G156: TTSI | H156: 2023-01-01 | I156: 2023-12-31 | J156: 合約-小家電-年扣(10M*1.5%,15M*1.7%,20M*1.9%,25M以上*2%)-01~12 | K156: TW002525001H | L156: 大潤發總公司 | M156: TW | N156: MMCS-大潤發 | O156: % | P156: 年扣(10M*1.5%,15M*1.7%,20M*1.9%,25M以上*2%) | R156: 微波爐 | T156: 0
A157: TW002525001B | B157: TW002525001H | C157: TT-TTSI-20221226-0051 | D157: Contract MMCSN2212J031-White-TW002525-Year-2023 | E157: 2023-01-01 | F157: 2023-12-31 | G157: TTSI | H157: 2023-01-01 | I157: 2023-12-31 | J157: 合約-白電-年扣(300M*1.55%,342M*1.75%,376M*1.95%,510M以上*2.15%)-01~12 | K157: TW002525001H | L157: 大潤發總公司 | M157: TW | N157: MMCS-大潤發 | O157: % | P157: 年扣(300M*1.55%,342M*1.75%,376M*1.95%,510M以上*2.15%) | R157: 冰箱 | T157: 0
A158: TW002525001B | B158: TW002525001H | C158: TT-TTSI-20221226-0051 | D158: Contract MMCSN2212J031-White-TW002525-Year-2023 | E158: 2023-01-01 | F158: 2023-12-31 | G158: TTSI | H158: 2023-01-01 | I158: 2023-12-31 | J158: 合約-白電-年扣(300M*1.55%,342M*1.75%,376M*1.95%,510M以上*2.15%)-01~12 | K158: TW002525001H | L158: 大潤發總公司 | M158: TW | N158: MMCS-大潤發 | O158: % | P158: 年扣(300M*1.55%,342M*1.75%,376M*1.95%,510M以上*2.15%) | R158: 洗衣機 | T158: 0
A159: TW002525001B | B159: TW002525001H | C159: TT-TTSI-20221226-0051 | D159: Contract MMCSN2212J031-White-TW002525-Year-2023 | E159: 2023-01-01 | F159: 2023-12-31 | G159: TTSI | H159: 2023-01-01 | I159: 2023-12-31 | J159: 合約-白電-年扣(300M*1.55%,342M*1.75%,376M*1.95%,510M以上*2.15%)-01~12 | K159: TW002525001H | L159: 大潤發總公司 | M159: TW | N159: MMCS-大潤發 | O159: % | P159: 年扣(300M*1.55%,342M*1.75%,376M*1.95%,510M以上*2.15%) | R159: 冷氣 | T159: 0
A160: TW002525001B | B160: TW002525001H | C160: TT-TTSI-20221226-0051 | D160: Contract MMCSN2212J031-White-TW002525-Year-2023 | E160: 2023-01-01 | F160: 2023-12-31 | G160: TTSI | H160: 2023-01-01 | I160: 2023-12-31 | J160: 合約-白電-年扣(300M*1.55%,342M*1.75%,376M*1.95%,510M以上*2.15%)-01~12 | K160: TW002525001H | L160: 大潤發總公司 | M160: TW | N160: MMCS-大潤發 | O160: % | P160: 年扣(300M*1.55%,342M*1.75%,376M*1.95%,510M以上*2.15%) | R160: 除濕/清淨機 | T160: 0
A161: TW002525001B | B161: TW002525001H | C161: TT-TTSI-20221226-0051 | D161: Contract MMCSN2212J031-White-TW002525-Year-2023 | E161: 2023-01-01 | F161: 2023-12-31 | G161: TTSI | H161: 2023-01-01 | I161: 2023-12-31 | J161: 合約-白電-年扣(300M*1.55%,342M*1.75%,376M*1.95%,510M以上*2.15%)-01~12 | K161: TW002525001H | L161: 大潤發總公司 | M161: TW | N161: MMCS-大潤發 | O161: % | P161: 年扣(300M*1.55%,342M*1.75%,376M*1.95%,510M以上*2.15%) | R161: 系統空調 | T161: 0
A162: TW002525001B | B162: TW002525001H | C162: TT-TTSI-20221226-0051 | D162: Contract MMCSN2212J031-White-TW002525-Year-2023 | E162: 2023-01-01 | F162: 2023-12-31 | G162: TTSI | H162: 2023-01-01 | I162: 2023-12-31 | J162: 合約-白電-年扣(300M*1.55%,342M*1.75%,376M*1.95%,510M以上*2.15%)-01~12 | K162: TW002525001H | L162: 大潤發總公司 | M162: TW | N162: MMCS-大潤發 | O162: % | P162: 年扣(300M*1.55%,342M*1.75%,376M*1.95%,510M以上*2.15%) | R162: 洗碗機 | T162: 0
A163: TW002525001B | B163: TW002525001H | C163: TT-TTSI-20221226-0088 | D163: Contract MMCSN2212J031-ALL-TW002525-AccessoryContractNewOpenAchieveTargetSupport-2023 | E163: 2023-01-01 | F163: 2023-12-31 | G163: TTSI | H163: 2023-01-01 | I163: 2023-12-31 | J163: 合約-全產品-附約全店改裝目標達成補助(0.1%*預計開4家)-01~12 | K163: TW002525001H | L163: 大潤發總公司 | M163: TW | N163: MMCS-大潤發 | O163: % | P163: 附約全店改裝目標達成補助(0.1%*預計開4家) | R163: 全產品 | T163: 0
A164: TW002529001B | B164: TW002529001B | C164: TT-TTSI-20221226-0124 | D164: Contract-AC-TW002529-Sellin Target Rebate-2023 | E164: 2023-01-01 | F164: 2023-12-31 | G164: TTSI | H164: 2023-01-01 | I164: 2023-12-31 | J164: 協議-冷氣-年度目標達成進貨獎勵3%(目標400組)-01~12 | K164: TW002529001B | L164: 愛買吉安總公司 | M164: TW | O164: % | P164: 年度目標達成進貨獎勵3%(目標400組) | R164: 冷氣 | T164: 0
A165: TW002529001B | B165: TW002529001B | C165: TT-TTSI-20221226-0124 | D165: Contract-AC-TW002529-Sellin Target Rebate-2023 | E165: 2023-01-01 | F165: 2023-12-31 | G165: TTSI | H165: 2023-01-01 | I165: 2023-12-31 | J165: 協議-冷氣-年度目標達成進貨獎勵3%(目標400組)-01~12 | K165: TW002529001B | L165: 愛買吉安總公司 | M165: TW | O165: % | P165: 年度目標達成進貨獎勵3%(目標400組) | R165: 系統空調 | T165: 0
A166: TW002529001B | B166: TW002529001B | C166: TT-TTSI-20221226-0125 | D166: Contract-All-TW002529-YEAR-2023 | E166: 2023-01-01 | F166: 2023-12-31 | G166: TTSI | H166: 2023-01-01 | I166: 2023-12-31 | J166: 合約-全產品-年扣(8,000萬*1.2%，1億1,000萬*1.5%，1億5,000萬*1.8%)-01~12 | K166: TW002529001B | L166: 愛買吉安總公司 | M166: TW | O166: % | P166: 年扣(8,000萬*1.2%，1億1,000萬*1.5%，1億5,000萬*1.8%) | R166: 全產品 | T166: 0
A167: TW007124001B | B167: TW007124001B | C167: TT-TTSI-20221228-0077 | D167: Contract-AC/SAC-TW007124-B&Q-Sales Target-2023 | E167: 2023-01-01 | F167: 2023-12-31 | G167: TTSI | H167: 2023-01-01 | I167: 2023-12-31 | J167: 合約-冷氣/系統空調-進貨達成獎勵(目標300台1%，500台以上1.5%)-01~12 | K167: TW007124001B | L167: 特力屋 | M167: TW | O167: % | P167: 進貨達成獎勵(目標300台1%，500台以上1.5%) | R167: 冷氣 | T167: 0
A168: TW007124001B | B168: TW007124001B | C168: TT-TTSI-20221228-0077 | D168: Contract-AC/SAC-TW007124-B&Q-Sales Target-2023 | E168: 2023-01-01 | F168: 2023-12-31 | G168: TTSI | H168: 2023-01-01 | I168: 2023-12-31 | J168: 合約-冷氣/系統空調-進貨達成獎勵(目標300台1%，500台以上1.5%)-01~12 | K168: TW007124001B | L168: 特力屋 | M168: TW | O168: % | P168: 進貨達成獎勵(目標300台1%，500台以上1.5%) | R168: 系統空調 | T168: 0
A169: TW007124001B | B169: TW007124001B | C169: TT-TTSI-20221228-0078 | D169: Contract-All-TW007124-B&Q-YearRebate-2023 | E169: 2023-01-01 | F169: 2023-12-31 | G169: TTSI | H169: 2023-01-01 | I169: 2023-12-31 | J169: 合約-全產品-年扣(10M*0.5%，40M*1%，100M以上*1.5%)-01~12 | K169: TW007124001B | L169: 特力屋 | M169: TW | O169: % | P169: 年扣(10M*0.5%，40M*1%，100M以上*1.5%) | R169: 全產品 | T169: 0
A170: TW002750001B | B170: TW002750001B | C170: TT-TTSI-20221230-0001 | D170: DEPT2212D007-All-TW002750-TargetRebate-Year-2023 | E170: 2023-01-01 | F170: 2023-12-31 | G170: TTSI | H170: 2023-01-01 | I170: 2023-12-31 | J170: 協議-全產品-年度目標達成獎勵(12億5%,14.5億:6%)-01~12 | K170: TW002750001B | L170: 集雅社 | M170: TW | O170: % | P170: 年度目標達成獎勵(12億5%,14.5億:6%) | R170: 全產品 | T170: 0
A171: TW002758001B | B171: TW002758001B | C171: TT-TTSI-20221230-0002 | D171: DEPT2212D007-All-TW002758-TargetRebate-Year-2023 | E171: 2023-01-01 | F171: 2023-12-31 | G171: TTSI | H171: 2023-01-01 | I171: 2023-12-31 | J171: 協議-全產品-年度目標達成獎勵(1億1.5%,1.25億:2%且冷氣In-Out各80台)-01~12 | K171: TW002758001B | L171: 秀翔 | M171: TW | O171: % | P171: 年度目標達成獎勵(1億1.5%,1.25億:2%且冷氣In-Out各80台) | R171: 全產品 | T171: 0
A172: TW005281001B | B172: TW005281001B | C172: TT-TTSI-20221230-0003 | D172: DEPT2212D007-All-TW005281-TargetRebate-Year-2023 | E172: 2023-01-01 | F172: 2023-12-31 | G172: TTSI | H172: 2023-01-01 | I172: 2023-12-31 | J172: 協議-全產品-年度目標達成獎勵(8000萬1%,1億:1.5%且冷氣In50台Out30台)-01~12 | K172: TW005281001B | L172: 映象國際 | M172: TW | O172: % | P172: 年度目標達成獎勵(8000萬1%,1億:1.5%且冷氣In50台Out30台) | R172: 全產品 | T172: 0
A173: TW007067001B | B173: TW007067001B | C173: TT-TTSI-20221230-0151 | D173: IT2211706706-ALL-TW007067-SuperTarget-2023 | E173: 2023-01-01 | F173: 2023-12-31 | G173: TTSI | H173: 2023-01-01 | I173: 2023-12-31 | J173: 合約-全產品-業績達成超出1億(含稅)部份獎勵0.3%-01~12 | K173: TW007067001B | L173: 燦坤實業 | M173: TW | O173: % | P173: 業績達成超出1億(含稅)部份獎勵0.3% | R173: 全產品 | T173: 0
A174: TW002718001B | B174: TW002718001B | C174: TT-TTSI-20230111-0002 | D174: MMCSN2212B002-ALL-TW002718-YearTarget-2023 | E174: 2023-01-01 | F174: 2023-12-31 | G174: TTSI | H174: 2023-01-01 | I174: 2023-12-31 | J174: 合約-全產品-年扣(進貨達未稅4億起獎勵，最高級距14億以上獎勵4.1%)-01~12 | K174: TW002718001B | L174: 全國電子 | M174: TW | O174: % | P174: 年扣(進貨達未稅4億起獎勵，最高級距14億以上獎勵4.1%) | R174: 全產品 | T174: 0
A175: TW002750001B | B175: TW002750001B | C175: TT-TTSI-20221226-0142 | D175: DEPT2112D015-LTV-TW002750-CornerSupport(Y2)-202303~202402 | E175: 2023-03-01 | F175: 2024-02-29 | G175: TTSI | H175: 2023-03-01 | I175: 2024-02-29 | J175: 協議-電視-台南三井Corner補助(基本目標每年達3,980,000未稅，補助199,000未稅，Year2)-202303~202402 | K175: TW002750001B | L175: 集雅社 | M175: TW | O175: % | P175: 台南三井Corner補助(基本目標每年達3,980,000未稅，補助199,000未稅，Year2) | R175: 電視 | T175: 0
A176: TW002758001B | B176: TW002758001B | C176: TT-TTSI-20220317-0004 | D176: DEPT2112D015-LTV-TW002758-CornerSupport(Y2)-202203~202402 | E176: 2023-03-01 | F176: 2024-02-29 | G176: TTSI | H176: 2023-03-01 | I176: 2024-02-29 | J176: 協議-電視-高雄SOGOCorner補助(基本目標每年達3,230,000未稅，補助161,500未稅，Year2)-202203~202402 | K176: TW002758001B | L176: 秀翔 | M176: TW | O176: % | P176: 高雄SOGOCorner補助(基本目標每年達3,230,000未稅，補助161,500未稅，Year2) | R176: 電視 | S176: 0.8 | T176: 0
A177: TW002758001B | B177: TW002758001B | C177: TT-TTSI-20220317-0008 | D177: DEPT2112D015-HA-TW002758-CornerSupport(Y2)-202203~202402 | E177: 2023-03-01 | F177: 2024-02-29 | G177: TTSI | H177: 2023-03-01 | I177: 2024-02-29 | J177: 協議-冰洗-高雄SOGOCorner補助(基本目標每年達3,410,000未稅，補助170,500未稅，Year2)-202203~202402 | K177: TW002758001B | L177: 秀翔 | M177: TW | O177: % | P177: 高雄SOGOCorner補助(基本目標每年達3,410,000未稅，補助170,500未稅，Year2) | R177: 冰箱 | S177: 0.4 | T177: 0
A178: TW002758001B | B178: TW002758001B | C178: TT-TTSI-20220317-0008 | D178: DEPT2112D015-HA-TW002758-CornerSupport(Y2)-202203~202402 | E178: 2023-03-01 | F178: 2024-02-29 | G178: TTSI | H178: 2023-03-01 | I178: 2024-02-29 | J178: 協議-冰洗-高雄SOGOCorner補助(基本目標每年達3,410,000未稅，補助170,500未稅，Year2)-202203~202402 | K178: TW002758001B | L178: 秀翔 | M178: TW | O178: % | P178: 高雄SOGOCorner補助(基本目標每年達3,410,000未稅，補助170,500未稅，Year2) | R178: 洗衣機 | S178: 0.4 | T178: 0
A179: TW005617001B | B179: TW005617001B | C179: TT-TTSI-20230324-0016 | D179: DWB2212A003-IL-TW005617-CornerSupport(Y1)-202304~202403 | E179: 2023-04-01 | F179: 2024-03-31 | G179: TTSI | H179: 2023-04-01 | I179: 2024-03-31 | J179: 協議-吸塵器.清淨機.除濕機-麥仕分店ILCorner補助(基本目標每年達2,249,500未稅，補助112,475未稅，Year1)-202304~202403 | K179: TW005617001B | L179: 麥仕視聽音響有限公司 | M179: TW | O179: % | P179: 麥仕分店ILCorner補助(基本目標每年達2,249,500未稅，補助112,475未稅，Year1) | R179: 除濕/清淨機 | T179: 0
A180: TW005617001B | B180: TW005617001B | C180: TT-TTSI-20230324-0016 | D180: DWB2212A003-IL-TW005617-CornerSupport(Y1)-202304~202403 | E180: 2023-04-01 | F180: 2024-03-31 | G180: TTSI | H180: 2023-04-01 | I180: 2024-03-31 | J180: 協議-吸塵器.清淨機.除濕機-麥仕分店ILCorner補助(基本目標每年達2,249,500未稅，補助112,475未稅，Year1)-202304~202403 | K180: TW005617001B | L180: 麥仕視聽音響有限公司 | M180: TW | O180: % | P180: 麥仕分店ILCorner補助(基本目標每年達2,249,500未稅，補助112,475未稅，Year1) | R180: 吸塵器 | T180: 0
A181: TW005617001B | B181: TW005617001B | C181: TT-TTSI-20230324-0017 | D181: DWB2212A003-TV-TW005617-CornerSupport(Y1)-202304~202403 | E181: 2023-04-01 | F181: 2024-03-31 | G181: TTSI | H181: 2023-04-01 | I181: 2024-03-31 | J181: 協議-電視-麥仕分店HECorner補助(基本目標每年達3,031,970未稅，補助151,599未稅，Year1)-202304~202403 | K181: TW005617001B | L181: 麥仕視聽音響有限公司 | M181: TW | O181: % | P181: 麥仕分店HECorner補助(基本目標每年達3,031,970未稅，補助151,599未稅，Year1) | R181: 電視 | T181: 0
A182: TW005617001B | B182: TW005617001B | C182: TT-TTSI-20230324-0019 | D182: DWB2212A003-RF.WM-TW005617-CornerSupport(Y1)-202304~202403 | E182: 2023-04-01 | F182: 2024-03-31 | G182: TTSI | H182: 2023-04-01 | I182: 2024-03-31 | J182: 協議-冰箱.洗衣機-麥仕分店HACorner補助(基本目標每年達3,164,300未稅，補助158,215未稅，Year1)-202304~202403 | K182: TW005617001B | L182: 麥仕視聽音響有限公司 | M182: TW | O182: % | P182: 麥仕分店HACorner補助(基本目標每年達3,164,300未稅，補助158,215未稅，Year1) | R182: 冰箱 | T182: 0
A183: TW005617001B | B183: TW005617001B | C183: TT-TTSI-20230324-0019 | D183: DWB2212A003-RF.WM-TW005617-CornerSupport(Y1)-202304~202403 | E183: 2023-04-01 | F183: 2024-03-31 | G183: TTSI | H183: 2023-04-01 | I183: 2024-03-31 | J183: 協議-冰箱.洗衣機-麥仕分店HACorner補助(基本目標每年達3,164,300未稅，補助158,215未稅，Year1)-202304~202403 | K183: TW005617001B | L183: 麥仕視聽音響有限公司 | M183: TW | O183: % | P183: 麥仕分店HACorner補助(基本目標每年達3,164,300未稅，補助158,215未稅，Year1) | R183: 洗衣機 | T183: 0
A184: TW005578001B | B184: TW005578001B | C184: TT-TTSI-20221215-0007 | D184: Contract-ALL-TW005578-SEASON-2023-Q3 | E184: 2023-07-01 | F184: 2023-09-30 | G184: TTSI | H184: 2023-07-01 | I184: 2023-09-30 | J184: 合約-全產品-季獎勵(2,500萬*3%，4,500萬*4%，6,000萬*5%)-07~09 | K184: TW005578001B | L184: 大同綜合訊電(股) | M184: TW | O184: % | P184: 季獎勵(2,500萬*3%，4,500萬*4%，6,000萬*5%) | R184: 全產品 | T184: 0
A185: TW006835001B | B185: TW006835001B | C185: TT-NTSI-20230731-0007 | D185: TPB2307F016-ALL-TW006835-Exhibition-Sale target Limited-0820-0920 | E185: 2023-08-20 | F185: 2023-09-20 | G185: NTSI | H185: 2023-08-20 | I185: 2023-09-20 | J185: 公司-全產品-0901-0904台北世貿電器空調影音展(切結未稅6,333,333,給予獎勵2.5%,上限未稅158,333)-0820~0920 | K185: TW006835001B | L185: 嘉豐電器 | M185: TW | O185: % | P185: 0901-0904台北世貿電器空調影音展(切結未稅6,333,333,給予獎勵2.5%,上限未稅158,333) | R185: 全產品 | T185: 0
A186: TW006857001B | B186: TW006857001B | C186: TT-NTSI-20230731-0008 | D186: TPB2307F016-ALL-TW006857-Exhibition-Sale target Limited-0820-0920 | E186: 2023-08-20 | F186: 2023-09-20 | G186: NTSI | H186: 2023-08-20 | I186: 2023-09-20 | J186: 公司-全產品-0901-0904台北世貿電器空調影音展(切結未稅6,333,333,給予獎勵2.5%,上限未稅158,333)-0820~0920 | K186: TW006857001B | L186: 誠鴻電器 | M186: TW | O186: % | P186: 0901-0904台北世貿電器空調影音展(切結未稅6,333,333,給予獎勵2.5%,上限未稅158,333) | R186: 全產品 | T186: 0
A187: TW002400001B | B187: TW002400001B | C187: TT-NTSI-20230731-0009 | D187: TPB2307F016-ALL-TW002400-Exhibition-Sale target Limited-0820-0920 | E187: 2023-08-20 | F187: 2023-09-20 | G187: NTSI | H187: 2023-08-20 | I187: 2023-09-20 | J187: 公司-全產品-0901-0904台北世貿電器空調影音展(切結未稅6,333,333,給予獎勵2.5%,上限未稅158,333)-0820~0920 | K187: TW002400001B | L187: 金亞實業 | M187: TW | O187: % | P187: 0901-0904台北世貿電器空調影音展(切結未稅6,333,333,給予獎勵2.5%,上限未稅158,333) | R187: 全產品 | T187: 0
A188: TW004399001B | B188: TW004399001B | C188: TT-NTSI-20230731-0010 | D188: TPB2307F016-ALL-TW004399-Exhibition-Sale target Limited-0820-0920 | E188: 2023-08-20 | F188: 2023-09-20 | G188: NTSI | H188: 2023-08-20 | I188: 2023-09-20 | J188: 公司-全產品-0901-0904台北世貿電器空調影音展(切結未稅6,333,333,給予獎勵2.5%,上限未稅158,333)-0820~0920 | K188: TW004399001B | L188: 祥建科技 | M188: TW | O188: % | P188: 0901-0904台北世貿電器空調影音展(切結未稅6,333,333,給予獎勵2.5%,上限未稅158,333) | R188: 全產品 | T188: 0
A189: TW006897001B | B189: TW006897001B | C189: TT-NTSI-20230731-0011 | D189: TPB2307F016-ALL-TW006897-Exhibition-Sale target Limited-0820-0920 | E189: 2023-08-20 | F189: 2023-09-20 | G189: NTSI | H189: 2023-08-20 | I189: 2023-09-20 | J189: 公司-全產品-0901-0904台北世貿電器空調影音展(切結未稅6,333,333,給予獎勵2.5%,上限未稅158,333)-0820~0920 | K189: TW006897001B | L189: 姿芳科技有限公司 | M189: TW | O189: % | P189: 0901-0904台北世貿電器空調影音展(切結未稅6,333,333,給予獎勵2.5%,上限未稅158,333) | R189: 全產品 | T189: 0
A190: TW007217001B | B190: TW007217001B | C190: TT-NTSI-20230731-0012 | D190: TPB2307F016-ALL-TW007217-Exhibition-Sale target Limited-0820-0920 | E190: 2023-08-20 | F190: 2023-09-20 | G190: NTSI | H190: 2023-08-20 | I190: 2023-09-20 | J190: 公司-全產品-0901-0904台北世貿電器空調影音展(切結未稅6,333,333,給予獎勵2.5%,上限未稅158,333)-0820~0920 | K190: TW007217001B | L190: 三瀛實業有限公司 | M190: TW | O190: % | P190: 0901-0904台北世貿電器空調影音展(切結未稅6,333,333,給予獎勵2.5%,上限未稅158,333) | R190: 全產品 | T190: 0
A191: TW003040001B | B191: TW003040001B | C191: TT-NTSI-20230731-0013 | D191: TPB2307F016-ALL-TW003040-Exhibition-Sale target Limited-0820-0920 | E191: 2023-08-20 | F191: 2023-09-20 | G191: NTSI | H191: 2023-08-20 | I191: 2023-09-20 | J191: 公司-全產品-0901-0904台北世貿電器空調影音展(切結未稅6,333,333,給予獎勵2.5%,上限未稅158,333)-0820~0920 | K191: TW003040001B | L191: 悅鼎電器 | M191: TW | O191: % | P191: 0901-0904台北世貿電器空調影音展(切結未稅6,333,333,給予獎勵2.5%,上限未稅158,333) | R191: 全產品 | T191: 0
A192: TW006084001B | B192: TW006084001B | C192: TT-NTSI-20230731-0014 | D192: TPB2307F016-ALL-TW006084-Exhibition-Sale target Limited-0820-0920 | E192: 2023-08-20 | F192: 2023-09-20 | G192: NTSI | H192: 2023-08-20 | I192: 2023-09-20 | J192: 公司-全產品-0901-0904台北世貿電器空調影音展(切結未稅6,333,333,給予獎勵2.5%,上限未稅158,333)-0820~0920 | K192: TW006084001B | L192: 上晟國際 | M192: TW | O192: % | P192: 0901-0904台北世貿電器空調影音展(切結未稅6,333,333,給予獎勵2.5%,上限未稅158,333) | R192: 全產品 | T192: 0
A193: TW006831001B | B193: TW006831001B | C193: TT-NTSI-20230119-0026 | D193: ECT2301A032-WM-TW006831-SaleGrowthIncentive-Month-202309 | E193: 2023-09-01 | F193: 2023-09-30 | G193: NTSI | H193: 2023-09-01 | I193: 2023-09-30 | J193: 公司-洗衣機-進貨達成獎勵(目標1M給2.5%,1.5M給3%)-09~09 | K193: TW006831001B | L193: 富基電通 | M193: TW | O193: % | P193: 進貨達成獎勵(目標1M給2.5%,1.5M給3%) | R193: 洗衣機 | T193: 0
A194: =IFERROR(VLOOKUP(N194,多CODE,2,0),IF(RIGHT($B194,1)="H",LEFT($B194,11)&"B",IFERROR(VLOOKUP($B194,SHIP,3,0),$B194))) -> TW007513001B | B194: TW007513001B | C194: TT-NTSI-20230131-0002 | D194: TPB2301D014-All-TW007513-RentalFeeSupport-Y1-202309 | E194: 2023-09-01 | F194: 2023-09-30 | G194: =MID(C194,4,4) -> NTSI | H194: =IF(OR($G194="NTSI",$G194="TTSI"),$E194,LEFT($E194,4)&"/"&MID($E194,5,2)&"/"&RIGHT($E194,2)) -> 2023-09-01 | I194: =IF(OR($G194="NTSI",$G194="TTSI"),$F194,LEFT($F194,4)&"/"&MID($F194,5,2)&"/"&RIGHT($F194,2)) -> 2023-09-30 | J194: 協議-全產品-樂天三峽專售店分店租金補助(基本目標每月達50萬未稅，補助上限70,000含稅，Year1)-09-09 | K194: TW007513001B | L194: 樂天行銷有限公司 | M194: TW | O194: % | P194: 樂天三峽專售店分店租金補助(基本目標每月達50萬未稅，補助上限70,000含稅，Year1) | R194: 全產品 | T194: 0
A195: TW006831001B | B195: TW006831001B | C195: TT-NTSI-20230330-0018 | D195: ECT2302A032-RF-TW006831-SaleTargetIncentive-Month-202309 | E195: 2023-09-01 | F195: 2023-09-30 | G195: NTSI | H195: 2023-09-01 | I195: 2023-09-30 | J195: 公司-冰箱-進貨達成獎勵(目標0.4M給2.5%,0.7M給3%)-09~09 | K195: TW006831001B | L195: 富基電通 | M195: TW | O195: % | P195: 進貨達成獎勵(目標0.4M給2.5%,0.7M給3%) | R195: 冰箱 | T195: 0
A196: TW006359001B | B196: TW006359001B | C196: TT-NTSI-20230510-0007 | D196: ECT2304A0902023-WM-TW006359-SaleTargetIncentive-Month-202309 | E196: 2023-09-01 | F196: 2023-09-30 | G196: NTSI | H196: 2023-09-01 | I196: 2023-09-30 | J196: 公司-洗衣機-進貨達成獎勵(目標25M給2.5%)-09~09 | K196: TW006359001B | L196: 展碁國際 | M196: TW | O196: % | P196: 進貨達成獎勵(目標25M給2.5%) | R196: 洗衣機 | T196: 0
A197: TW002291001B | B197: TW002291001B | C197: TT-NTSI-20230612-0011 | D197: DWB2305X01-ALL-TW002291-RentalFee-202309 | E197: 2023-09-01 | F197: 2023-09-30 | G197: NTSI | H197: 2023-09-01 | I197: 2023-09-30 | J197: 公司-家電-金一竹北C4門市租金補助(達100至150萬未稅補助3.5%/ 150萬至180萬4%/ 180萬以上4.3%)-09~09 | K197: TW002291001B | L197: 金一電器 | M197: TW | O197: % | P197: 金一竹北C4門市租金補助(達100至150萬未稅補助3.5%/ 150萬至180萬4%/ 180萬以上4.3%) | R197: 全產品 | T197: 0
A198: TW005281001B | B198: TW005281001B | C198: TT-NTSI-20230630-0029 | D198: DEPT2306E011-All-TW005281-RentalFeeSupport-Y1-202309 | E198: 2023-09-01 | F198: 2023-09-30 | G198: NTSI | H198: 2023-09-01 | I198: 2023-09-30 | J198: 公司-全產品-三重專售分店租金補助(基本目標每月達50萬未稅,補助2.5%,補助上限65,000含稅，Year1)-09-09 | K198: TW005281001B | L198: 映象國際 | M198: TW | O198: % | P198: 三重專售分店租金補助(基本目標每月達50萬未稅,補助2.5%,補助上限65,000含稅，Year1) | R198: 全產品 | T198: 0
A199: TW002501001B | B199: TW002501001B | C199: TT-NTSI-20230728-0001 | D199: MMCSN2307G022-AC-TW002501-InTarget8M-202309 | E199: 2023-09-01 | F199: 2023-09-30 | G199: NTSI | H199: 2023-09-01 | I199: 2023-09-30 | J199: 公司-冷氣-進貨達未稅800萬獎勵2%-09~09 | K199: TW002501001B | L199: 家福總公司 | M199: TW | O199: % | P199: 進貨達未稅800萬獎勵2% | R199: 冷氣 | S199: 2 | T199: 0
A200: TW002501001B | B200: TW002501001B | C200: TT-NTSI-20230728-0004 | D200: MMCSN2307G022-SAC-TW002501-InTarget0.3M-202309 | E200: 2023-09-01 | F200: 2023-09-30 | G200: NTSI | H200: 2023-09-01 | I200: 2023-09-30 | J200: 公司-系統空調-進貨達未稅30萬獎勵2%-09~09 | K200: TW002501001B | L200: 家福總公司 | M200: TW | O200: % | P200: 進貨達未稅30萬獎勵2% | R200: 系統空調 | S200: 2 | T200: 0
... 4300 more rows
